Workbook

Sheet Início
D11: Dúvidas sobre a ferramenta?
D12: Assista ao vídeo tutorial clicando aqui
F14: Clique nos botões acima para verificar a planilha
B16: Versão Especial da Planilha de Precificação da 4blue disponibilizada GRATUITAMENTE.
B17: Proibido qualquer tipo compartilhamento fora da sua empresa; Proibida a venda; Proibido o uso em serviços (consultorias, acessorias, etc.)
B18: Visto que esta versão foi especialmente disponibilizada gratuitamente, não conseguiremos dar suporte ou tirar dúvidas específicas.
B19: Assista o vídeo tutorial para garantir o uso correto.

Sheet Instruções
B2: 7 passos ESSENCIAIS para utilizar a ferramenta de Precificação para Serviços
B3: Este mini manual é muito simples e visual, perca 5 minutos aqui e ganhe anos de vida da sua empresa =) | O3: Assista ao vídeo tutorial clicando aqui
I12: Você pode preencher suas contas e valores de acordo
I13: com a necessidade da sua empresa.
I15: Ao lado um exemplo de uma empresa
I16: qualquer: foi utilizado outras nomenclaturas
I17: para as contas destacadas, também pode-se
I18: adicionar contas nos espaços vazios.
I19: Logo depois foram adicionados os valores
I20: das despesas de cada conta
I22: A mesma situação acontece para os os outros
I23: tipos de despesas e também na parte dos
I24: Investimentos!
I27: ATENÇÃO: NUNCA exclua ou insira linhas,
I28: senão algumas fórmulas serão perdidas
I40: Neste momento você deve preencher de acordo
I41: com sua equipe que executa os trabalhos, ou seja,
I42: pessoas da equipe administrativas não são conside-
I43: radas aqui.
I45: No exemplo a direita, adicionamos mais uma pessoa
I46: à equipe e consideramos um % menor de produti-
I47: vidade.
I49: Atenção! Cuidado para não superestimar a
I50: capacidade produtiva da equipe! Isto pode fazer
I51: grande diferença em seu preço!
I62: Na parte de cima da tabela de percentuais
I63: deve-se preencher os percentuais que incidem
I64: sobre as vendas.
I65: No exemplo ao lado inserimos novos valores.
I67: Já o lucro desejado e o investimento são valores
I68: percentuais que se deseja obter, ou seja, quero
I69: ter 22% de lucro líquido e quero reinvestir na
I70: empresa 10% do meu faturamento.
I72: Atenção! Não é só porque você colocou no lucro
I73: líquido desejado um valor que ele vai efetivamente
B74: * O "Preço por hora" é a multiplicação do Custo Fixo | I74: acontecer. Para tal seria necessário que você vendesse
B75: Unitário (Despesa Fixa Total dividido pelas horas de capacidade) | I75: sua capacidade máxima produtiva pelo preço ideal.
B76: vezes a Taxa de Marcação.
B77: No exemplo acima, o preço (sem considerar outros custos
B78: variáveis) por hora seria de R$ 159,06.
C88: Abaixo uma explicação sobre cada um dos campos a serem preenchidos:
C106: Todas as células pintadas são protegidas, pois estão com cálculos automáticos.
N150: A primeira coisa a se escolher é a Taxa de Marcação,
N151: se a linha premium, gold ou prata.
N152: A planilha já indica o valor/hora para a opção escolhida
N153: (este valor/hora é o mesmo da aba markup)
I159: Em seguida você irá colocar as horas previstas naquele
I160: projeto em específico. Para tal, você deve usar
I161: sua forma de cálculo e cronograma.
I163: Atenção! Você só deve colocar o projeto com base
I164: em horas, se na capacidade produtiva você conside-
I165: rou a capacidade máxima em horas.
I166: Se lá na Cap. Prod. você considerou a capacidade por
I167: cliente, por exemplo, aqui você deveria inserir
I168: o número 1, de um cliente.
I170: A seguir, basta você inserir os valores que estão
I171: diretamente ligados ao projeto, como no exemplo
I172: ao lado.
I175: A partir disso, seu preço ideal de venda estará
I176: calculado!
I179: Os conceitos de Taxa de Marcação, Despesa Fixa,
I180: Custo Variável, Gasto fixo rateado, preço da hora
I181: técnica estão todos no KA-dicas enviando junto
I182: com esta planilha!
L186: Nestes campos você poderá visualizar (tabela a esquerda)
L187: a decomposição do preço, ou seja, a partir do preço ideal
L188: tira-se todos os percentuais que incidem e os custos diretos
L189: até chegar na Margem de Contribuição.
L191: Na tabela da direita, a lógica é a mesma, mas você irá colocar
L192: o preço a ser cobrado (na primeira o cálculo é da própria
L193: planilha). É, literalmente, uma simulação.
L194: "A ferramenta diz que devo cobrar um preço, mas o que
L195: acontece se eu cobrar a mais ou a menos?"
B209: PONTO DE EQUILÍBRIO
K217: O cálculo é todo automático.
K218: A planilha traz a Despesa Fixa Total cadastrada
K220: e o percentual médio da margem de contribuição.
K222: O cálculo do PE faz-se dividindo a Despesa Fixa
K223: pelo % da margem de contribuição.
K224: Neste exemplo, a empresa tem que faturar mais de 41 mil
K225: para pagar os quase 16 mil de despesas fixas.
B237: Primeiro você preenche quais são suas contas ou
B238: investimentos e os valores:
B246: Para depois verificar o quanto precisa faturar a mais
B247: para alcançar o ponto de equilíbrio

Sheet Despesas Totais
B2: Despesas Totais Mensais
E4: Total Despesas e Investimentos (mês) | F4: =SUM(F6,F7) -> R$ 17,000.00
B5: Despesas Fixas (mês)
B6: Despesas Financeiras | C6: =SUM(C7:C12) -> R$ 17,000.00 | E6: Despesa Fixa Total (mês) | F6: =SUM(C6,C13,C28,C39,C45,C52) -> R$ 17,000.00
B7: Tarifas Bancárias | C7: R$ 17,000.00 | E7: Investimento Fixo Total (mês) | F7: =SUM(C62,C69,C75,C81) -> 0
B8: Aluguel e tarifas Operadora Cartão
B9: DOC/TED
B10: Outros custos com despesas financeiras
B13: Despesas Administrativas | C13: =SUM(C14:C27) -> 0
B14: Telefone e Internet
B15: Celular
B16: Energia Elétrica
B17: Aluguel e Condomínio
B18: Água
B19: IPTU
B20: VTs / Gasolina / Estacionamento / Táxi
B21: Almoço / Supermercado / Lanches
B22: Correios
B23: Cartórios
B24: Outras despesas administrativas
B28: Despesas com Pessoal | C28: =SUM(C29:C38) -> 0
B29: Salário de Funcionários
B30: Bolsa de Estágio
B31: VT e VR
B32: Rescisão
B33: FGTS
B34: INSS - Federação - Sindicato
B35: Pro-Labores
B36: Plano de Saúde
B37: Outras despesas com pessoal
B39: Despesas com Serviços de Terceiros | C39: =SUM(C40:C44) -> 0
B40: Contador
B41: TI
B42: Advogado
B43: Outras despesas com serviços de terceiros
B45: Despesas com Materiais e Equipamentos | C45: =SUM(C46:C51) -> 0
B46: Manutenção Equipamentos Informática
B47: Softwares
B48: Materiais de Expediente/Manutenção/Limpeza
B49: Manutenção Veículo
B50: Outras despesas com materiais
C52: =SUM(C53:C59) -> 0
B61: Investimentos Fixos (mês)
B62: Investimentos em Marketing | C62: =SUM(C63:C68) -> 0
B63: Papelaria | C63: 0
B64: Site / internet | C64: 0
B65: Mídias/ Propaganda
B66: Eventos
B67: Outros investimentos em marketing | C67: 0
B69: Investimentos em Bens Materiais | C69: =SUM(C70:C74) -> 0
B70: Compra de Equipamentos de Informárica | C70: 0
B71: Reformas / Estrutura | C71: 0
B72: Mobiliário | C72: 0
B73: Outros investimentos em bens materiais | C73: 0
C74: 0
B75: Investimentos em Gestão Empresarial | C75: =SUM(C76:C80) -> 0
B76: Consultoria | C76: 0
B77: Treinamentos
B78: Outros investimentos desenv. empresarial
B81: Outros investimentos | C81: =SUM(C82:C86) -> 0
C82: 0
C83: 0
C84: 0
C85: 0
C86: 0

Sheet Capacidade Produtiva
B2: CAPACIDADE PRODUTIVA
B4: Nesta parte você vai calcular sua capacidade produtiva máxima. Atenção: horas produtivas são diferentes de horas de trabalho. O objetivo aqui é identificar quantas horas você consegue, efetivamente vender!
B7: Número de pessoas produtivas | C7: 2
B8: Horas diárias máximas produtivas (média por pessoa) | C8: 6 | D8: =IF(C8>=8,"Hey! Você acha que as pessoas realmente conseguem PRODUZIR mais que 8h por dia, consegue?!","") -> 
B9: Dias trabalhados no mês (média por pessoa) | C9: 22
B10: HORAS PRODUTIVAS MÁXIMAS NO MÊS | C10: =C7*C8*C9 -> 264
B12: % de produtividade | C12: 70% | D12: =IF(C12<60%,"Hey! Você não está sendo improdutivo demais não? Se você diminuir demais sua produtividade, o seu preço final vai aumentar!",IF(C12>=95%,"Hey! Como pode uma empresa ser tão produtiva assim? Você não está exagerando não?!","")) -> 
B14: Horas reais de produtividade semanal por pessoa | C14: =C8*C9/4*C12 -> 23.1
B15: Horas reais de produtividade mensal por pessoa | C15: =C8*C9*C12 -> 92.4
B18: Horas reais de produtividade mensal total: | F18: =C10*C12 -> 184.8

Sheet Markup
W2: CAPACIDADE PRODUTIVA
G3: Custo Fixo Unitário (Cfun) | H3: ='Despesas Totais'!F4/'Capacidade Produtiva'!F18 -> R$ 91.99
W6: Nesta parte você vai calcular sua capacidade produtiva máxima. Atenção: horas produtivas são diferentes de horas de trabalho. O objetivo aqui é identificar quantas horas você consegue, efetivamente vender!
B7: Linha Premium | E7: Linha Gold | H7: Linha Prata
B8: =IF(B7="","",B7) -> Linha Premium | E8: =IF(E7="","",E7) -> Linha Gold | H8: =IF(H7="","",H7) -> Linha Prata
B9: Impostos sobre faturamento | C9: 6.0% | E9: Impostos sobre faturamento | F9: =C9 -> 6.0% | H9: Impostos sobre faturamento | I9: =F9 -> 6.0% | W9: Número de pessoas produtivas | X9: 2
B10: Comissões de venda | C10: 10.0% | E10: Comissões de venda | F10: =C10 -> 10.0% | H10: Comissões de venda | I10: =F10 -> 10.0% | W10: Horas diárias máximas produtivas (média por pessoa) | X10: 6 | Y10: =IF(X10>=8,"Hey! Você acha que as pessoas realmente conseguem PRODUZIR mais que 8h por dia, consegue?!","") -> 
B11: % de cartão crédito / débito | C11: 3.0% | E11: % de cartão crédito / débito | F11: 3.0% | H11: % de cartão crédito / débito | I11: 3.0% | W11: Dias trabalhados no mês (média por pessoa) | X11: 20
B12: Outro % sobre venda | E12: Outro % sobre venda | H12: Outro % sobre venda
W13: % de produtividade | X13: 70% | Y13: =IF(X13<60%,"Hey! Você não está sendo improdutivo demais não? Se você diminuir demais sua produtividade, o seu preço final vai aumentar!",IF(X13>=95%,"Hey! Como pode uma empresa ser tão produtiva assim? Você não está exagerando não?!","")) -> 
B14: % Lucro Líquido desejado | C14: 30.0% | E14: % Lucro Líquido desejado | F14: 25.0% | H14: % Lucro Líquido desejado | I14: 20.0%
W15: Horas reais de produtividade mensal por pessoa | X15: =X10*X11*X13 -> 84
B16: Taxa de Marcação | C16: =100%/(100%-SUM(C9:C14)) -> 1.961 | E16: Taxa de Marcação | F16: =100%/(100%-SUM(F9:F14)) -> 1.786 | H16: Taxa de Marcação | I16: =100%/(100%-SUM(I9:I14)) -> 1.639
B17: Preço por hora | C17: =C16*$H$3 -> R$ 180.38 | E17: Preço por hora | F17: =F16*$H$3 -> R$ 164.27 | H17: Preço por hora | I17: =I16*$H$3 -> R$ 150.81
W19: Horas reais de produtividade mensal total: | AA19: =#REF!*X13 -> 

Sheet Precificação
R1: Média ponderada
R2: =IF(SUM(T4:T500)=0,"",SUMPRODUCT(R4:R500,U4:U500)/SUM(U4:U500)) -> 78.8%
A3: Status do Preço | B3: Cód. serviço | C3: Serviço | D3: Custo variável do serviço | E3: Horas Consumidas no Serviço | F3: Linha do serviço | G3: Taxa Marcação Praticada | H3: Custo Variável Unitários | I3: Custo Fixo Unitário (CF do tempo) | J3: Preço Sugerido do serviço | L3: Preço Praticado | M3: Diferença | N3: % | Q3: Margem de Contribuição | R3: % Margem de Contribuição | T3: Faturamento por mês deste produto | U3: % de faturamento deste item | Y3: Linha do serviço | Z3: Taxa de Marcação | AC3: Impostos sobre faturamento | AD3: Comissões de venda | AE3: % de cartão crédito / débito | AF3: Outro % sobre venda
A4: =IF(M4="Falta Dados","",IF(M4="","",IF(M4<0,"Abaixo do ideal","Preço bom"))) -> Preço bom | C4: EXEMPLO | D4: 100.00 | E4: 20 | F4: Linha Premium | G4: =IF(F4=$Y$4,$Z$4,IF(F4=$Y$5,$Z$5,IF(F4=$Y$6,$Z$6,""))) -> 1.961 | H4: =IF(D4="","",D4) -> 100.00 | I4: =IF(C4="","",Markup!$H$3*E4) -> 1,839.83 | J4: =IF(OR(H4="",G4=""),"",(H4+I4)*G4) -> 3,804.00 | L4: 4,500.00 | M4: =IF(AND(L4>0,J4=""),"Falta Dados",IF(L4="","",L4-J4)) -> 696.00 | N4: =IF(L4="","",M4/L4) -> 15.5% | Q4: =IF(J4="","",(L4-H4-(L4*SUM($AC$4:$AF$4)))) -> 3,545.00 | R4: =IF(Q4="","",(Q4/L4)) -> 78.8% | T4: 1,000.00 | U4: =IF(T4="","",T4/SUM($T$4:$T$500)) -> 100.0% | Y4: =IF(Markup!B8="","",Markup!B8) -> Linha Premium | Z4: =IF(Y4="","",ROUNDUP(Markup!C16,3)) -> 1.961 | AC4: =IF($F4="","",IF($F4=Markup!$B$7,Markup!$C$9,IF($F4=Markup!$E$7,Markup!$F$9,IF($F4=Markup!$H$7,Markup!$I$9,"")))) -> 6.0% | AD4: =IF($F4="","",IF($F4=Markup!$B$7,Markup!$C$10,IF($F4=Markup!$E$7,Markup!$F$10,IF($F4=Markup!$H$7,Markup!$I$10,"")))) -> 10.0% | AE4: =IF($F4="","",IF($F4=Markup!$B$7,Markup!$C$11,IF($F4=Markup!$E$7,Markup!$F$11,IF($F4=Markup!$H$7,Markup!$I$11,"")))) -> 3.0% | AF4: =IF($F4="","",IF($F4=Markup!$B$7,Markup!$C$12,IF($F4=Markup!$E$7,Markup!$F$12,IF($F4=Markup!$H$7,Markup!$I$12,"")))) -> 0.0%
H5: =IF(D5="","",D5) ->  | I5: =IF(C5="","",Markup!$H$3*E5) ->  | J5: =IF(OR(H5="",G5=""),"",(H5+I5)*G5) ->  | N5: =IF(L5="","",M5/L5) ->  | Q5: =IF(J5="","",(L5-H5-(L5*SUM($AC$4:$AF$4)))) ->  | R5: =IF(Q5="","",(Q5/L5)) ->  | U5: =IF(T5="","",T5/SUM($T$4:$T$500)) ->  | Y5: =IF(Markup!E8="","",Markup!E8) -> Linha Gold | Z5: =IF(Y5="","",ROUNDUP(Markup!F16,3)) -> 1.786 | AC5: =IF($F5="","",IF($F5=Markup!$B$7,Markup!$C$9,IF($F5=Markup!$E$7,Markup!$F$9,IF($F5=Markup!$H$7,Markup!$I$9,"")))) ->  | AD5: =IF($F5="","",IF($F5=Markup!$B$7,Markup!$C$10,IF($F5=Markup!$E$7,Markup!$F$10,IF($F5=Markup!$H$7,Markup!$I$10,"")))) ->  | AE5: =IF($F5="","",IF($F5=Markup!$B$7,Markup!$C$11,IF($F5=Markup!$E$7,Markup!$F$11,IF($F5=Markup!$H$7,Markup!$I$11,"")))) ->  | AF5: =IF($F5="","",IF($F5=Markup!$B$7,Markup!$C$12,IF($F5=Markup!$E$7,Markup!$F$12,IF($F5=Markup!$H$7,Markup!$I$12,"")))) -> 
I6: =IF(C6="","",Markup!$H$3*E6) ->  | N6: =IF(L6="","",M6/L6) ->  | Y6: =IF(Markup!H8="","",Markup!H8) -> Linha Prata | Z6: =IF(Y6="","",ROUNDUP(Markup!I16,3)) -> 1.640 | AC6: =IF($F6="","",IF($F6=Markup!$B$7,Markup!$C$9,IF($F6=Markup!$E$7,Markup!$F$9,IF($F6=Markup!$H$7,Markup!$I$9,"")))) ->  | AD6: =IF($F6="","",IF($F6=Markup!$B$7,Markup!$C$10,IF($F6=Markup!$E$7,Markup!$F$10,IF($F6=Markup!$H$7,Markup!$I$10,"")))) ->  | AE6: =IF($F6="","",IF($F6=Markup!$B$7,Markup!$C$11,IF($F6=Markup!$E$7,Markup!$F$11,IF($F6=Markup!$H$7,Markup!$I$11,"")))) ->  | AF6: =IF($F6="","",IF($F6=Markup!$B$7,Markup!$C$12,IF($F6=Markup!$E$7,Markup!$F$12,IF($F6=Markup!$H$7,Markup!$I$12,"")))) -> 
A7: =IF(M7="Falta Dados","",IF(M7="","",IF(M7<0,"Abaixo do ideal","Preço bom"))) ->  | I7: =IF(C7="","",Markup!$H$3*E7) ->  | M7: =IF(AND(L7>0,J7=""),"Falta Dados",IF(L7="","",L7-J7)) ->  | N7: =IF(M7="Falta Dados","",IF(L7="","",M7/L7)) ->  | AC7: =IF($F7="","",IF($F7=Markup!$B$7,Markup!$C$9,IF($F7=Markup!$E$7,Markup!$F$9,IF($F7=Markup!$H$7,Markup!$I$9,"")))) ->  | AD7: =IF($F7="","",IF($F7=Markup!$B$7,Markup!$C$10,IF($F7=Markup!$E$7,Markup!$F$10,IF($F7=Markup!$H$7,Markup!$I$10,"")))) ->  | AE7: =IF($F7="","",IF($F7=Markup!$B$7,Markup!$C$11,IF($F7=Markup!$E$7,Markup!$F$11,IF($F7=Markup!$H$7,Markup!$I$11,"")))) ->  | AF7: =IF($F7="","",IF($F7=Markup!$B$7,Markup!$C$12,IF($F7=Markup!$E$7,Markup!$F$12,IF($F7=Markup!$H$7,Markup!$I$12,"")))) -> 
A8: =IF(M8="Falta Dados","",IF(M8="","",IF(M8<0,"Abaixo do ideal","Preço bom"))) ->  | I8: =IF(C8="","",Markup!$H$3*E8) ->  | M8: =IF(AND(L8>0,J8=""),"Falta Dados",IF(L8="","",L8-J8)) ->  | N8: =IF(L8="","",M8/L8) ->  | AC8: =IF($F8="","",IF($F8=Markup!$B$7,Markup!$C$9,IF($F8=Markup!$E$7,Markup!$F$9,IF($F8=Markup!$H$7,Markup!$I$9,"")))) ->  | AD8: =IF($F8="","",IF($F8=Markup!$B$7,Markup!$C$10,IF($F8=Markup!$E$7,Markup!$F$10,IF($F8=Markup!$H$7,Markup!$I$10,"")))) ->  | AE8: =IF($F8="","",IF($F8=Markup!$B$7,Markup!$C$11,IF($F8=Markup!$E$7,Markup!$F$11,IF($F8=Markup!$H$7,Markup!$I$11,"")))) ->  | AF8: =IF($F8="","",IF($F8=Markup!$B$7,Markup!$C$12,IF($F8=Markup!$E$7,Markup!$F$12,IF($F8=Markup!$H$7,Markup!$I$12,"")))) -> 
I9: =IF(C9="","",Markup!$H$3*E9) ->  | AC9: =IF($F9="","",IF($F9=Markup!$B$7,Markup!$C$9,IF($F9=Markup!$E$7,Markup!$F$9,IF($F9=Markup!$H$7,Markup!$I$9,"")))) ->  | AD9: =IF($F9="","",IF($F9=Markup!$B$7,Markup!$C$10,IF($F9=Markup!$E$7,Markup!$F$10,IF($F9=Markup!$H$7,Markup!$I$10,"")))) ->  | AE9: =IF($F9="","",IF($F9=Markup!$B$7,Markup!$C$11,IF($F9=Markup!$E$7,Markup!$F$11,IF($F9=Markup!$H$7,Markup!$I$11,"")))) ->  | AF9: =IF($F9="","",IF($F9=Markup!$B$7,Markup!$C$12,IF($F9=Markup!$E$7,Markup!$F$12,IF($F9=Markup!$H$7,Markup!$I$12,"")))) -> 
I10: =IF(C10="","",Markup!$H$3*E10) ->  | AC10: =IF($F10="","",IF($F10=Markup!$B$7,Markup!$C$9,IF($F10=Markup!$E$7,Markup!$F$9,IF($F10=Markup!$H$7,Markup!$I$9,"")))) ->  | AD10: =IF($F10="","",IF($F10=Markup!$B$7,Markup!$C$10,IF($F10=Markup!$E$7,Markup!$F$10,IF($F10=Markup!$H$7,Markup!$I$10,"")))) ->  | AE10: =IF($F10="","",IF($F10=Markup!$B$7,Markup!$C$11,IF($F10=Markup!$E$7,Markup!$F$11,IF($F10=Markup!$H$7,Markup!$I$11,"")))) ->  | AF10: =IF($F10="","",IF($F10=Markup!$B$7,Markup!$C$12,IF($F10=Markup!$E$7,Markup!$F$12,IF($F10=Markup!$H$7,Markup!$I$12,"")))) -> 
I11: =IF(C11="","",Markup!$H$3*E11) ->  | AC11: =IF($F11="","",IF($F11=Markup!$B$7,Markup!$C$9,IF($F11=Markup!$E$7,Markup!$F$9,IF($F11=Markup!$H$7,Markup!$I$9,"")))) ->  | AD11: =IF($F11="","",IF($F11=Markup!$B$7,Markup!$C$10,IF($F11=Markup!$E$7,Markup!$F$10,IF($F11=Markup!$H$7,Markup!$I$10,"")))) ->  | AE11: =IF($F11="","",IF($F11=Markup!$B$7,Markup!$C$11,IF($F11=Markup!$E$7,Markup!$F$11,IF($F11=Markup!$H$7,Markup!$I$11,"")))) ->  | AF11: =IF($F11="","",IF($F11=Markup!$B$7,Markup!$C$12,IF($F11=Markup!$E$7,Markup!$F$12,IF($F11=Markup!$H$7,Markup!$I$12,"")))) -> 
I12: =IF(C12="","",Markup!$H$3*E12) ->  | AC12: =IF($F12="","",IF($F12=Markup!$B$7,Markup!$C$9,IF($F12=Markup!$E$7,Markup!$F$9,IF($F12=Markup!$H$7,Markup!$I$9,"")))) ->  | AD12: =IF($F12="","",IF($F12=Markup!$B$7,Markup!$C$10,IF($F12=Markup!$E$7,Markup!$F$10,IF($F12=Markup!$H$7,Markup!$I$10,"")))) ->  | AE12: =IF($F12="","",IF($F12=Markup!$B$7,Markup!$C$11,IF($F12=Markup!$E$7,Markup!$F$11,IF($F12=Markup!$H$7,Markup!$I$11,"")))) ->  | AF12: =IF($F12="","",IF($F12=Markup!$B$7,Markup!$C$12,IF($F12=Markup!$E$7,Markup!$F$12,IF($F12=Markup!$H$7,Markup!$I$12,"")))) -> 
I13: =IF(C13="","",Markup!$H$3*E13) ->  | AC13: =IF($F13="","",IF($F13=Markup!$B$7,Markup!$C$9,IF($F13=Markup!$E$7,Markup!$F$9,IF($F13=Markup!$H$7,Markup!$I$9,"")))) ->  | AD13: =IF($F13="","",IF($F13=Markup!$B$7,Markup!$C$10,IF($F13=Markup!$E$7,Markup!$F$10,IF($F13=Markup!$H$7,Markup!$I$10,"")))) ->  | AE13: =IF($F13="","",IF($F13=Markup!$B$7,Markup!$C$11,IF($F13=Markup!$E$7,Markup!$F$11,IF($F13=Markup!$H$7,Markup!$I$11,"")))) ->  | AF13: =IF($F13="","",IF($F13=Markup!$B$7,Markup!$C$12,IF($F13=Markup!$E$7,Markup!$F$12,IF($F13=Markup!$H$7,Markup!$I$12,"")))) -> 
I14: =IF(C14="","",Markup!$H$3*E14) ->  | AC14: =IF($F14="","",IF($F14=Markup!$B$7,Markup!$C$9,IF($F14=Markup!$E$7,Markup!$F$9,IF($F14=Markup!$H$7,Markup!$I$9,"")))) ->  | AD14: =IF($F14="","",IF($F14=Markup!$B$7,Markup!$C$10,IF($F14=Markup!$E$7,Markup!$F$10,IF($F14=Markup!$H$7,Markup!$I$10,"")))) ->  | AE14: =IF($F14="","",IF($F14=Markup!$B$7,Markup!$C$11,IF($F14=Markup!$E$7,Markup!$F$11,IF($F14=Markup!$H$7,Markup!$I$11,"")))) ->  | AF14: =IF($F14="","",IF($F14=Markup!$B$7,Markup!$C$12,IF($F14=Markup!$E$7,Markup!$F$12,IF($F14=Markup!$H$7,Markup!$I$12,"")))) -> 
I15: =IF(C15="","",Markup!$H$3*E15) ->  | AC15: =IF($F15="","",IF($F15=Markup!$B$7,Markup!$C$9,IF($F15=Markup!$E$7,Markup!$F$9,IF($F15=Markup!$H$7,Markup!$I$9,"")))) ->  | AD15: =IF($F15="","",IF($F15=Markup!$B$7,Markup!$C$10,IF($F15=Markup!$E$7,Markup!$F$10,IF($F15=Markup!$H$7,Markup!$I$10,"")))) ->  | AE15: =IF($F15="","",IF($F15=Markup!$B$7,Markup!$C$11,IF($F15=Markup!$E$7,Markup!$F$11,IF($F15=Markup!$H$7,Markup!$I$11,"")))) ->  | AF15: =IF($F15="","",IF($F15=Markup!$B$7,Markup!$C$12,IF($F15=Markup!$E$7,Markup!$F$12,IF($F15=Markup!$H$7,Markup!$I$12,"")))) -> 
I16: =IF(C16="","",Markup!$H$3*E16) ->  | AC16: =IF($F16="","",IF($F16=Markup!$B$7,Markup!$C$9,IF($F16=Markup!$E$7,Markup!$F$9,IF($F16=Markup!$H$7,Markup!$I$9,"")))) ->  | AD16: =IF($F16="","",IF($F16=Markup!$B$7,Markup!$C$10,IF($F16=Markup!$E$7,Markup!$F$10,IF($F16=Markup!$H$7,Markup!$I$10,"")))) ->  | AE16: =IF($F16="","",IF($F16=Markup!$B$7,Markup!$C$11,IF($F16=Markup!$E$7,Markup!$F$11,IF($F16=Markup!$H$7,Markup!$I$11,"")))) ->  | AF16: =IF($F16="","",IF($F16=Markup!$B$7,Markup!$C$12,IF($F16=Markup!$E$7,Markup!$F$12,IF($F16=Markup!$H$7,Markup!$I$12,"")))) -> 
I17: =IF(C17="","",Markup!$H$3*E17) ->  | AC17: =IF($F17="","",IF($F17=Markup!$B$7,Markup!$C$9,IF($F17=Markup!$E$7,Markup!$F$9,IF($F17=Markup!$H$7,Markup!$I$9,"")))) ->  | AD17: =IF($F17="","",IF($F17=Markup!$B$7,Markup!$C$10,IF($F17=Markup!$E$7,Markup!$F$10,IF($F17=Markup!$H$7,Markup!$I$10,"")))) ->  | AE17: =IF($F17="","",IF($F17=Markup!$B$7,Markup!$C$11,IF($F17=Markup!$E$7,Markup!$F$11,IF($F17=Markup!$H$7,Markup!$I$11,"")))) ->  | AF17: =IF($F17="","",IF($F17=Markup!$B$7,Markup!$C$12,IF($F17=Markup!$E$7,Markup!$F$12,IF($F17=Markup!$H$7,Markup!$I$12,"")))) -> 
I18: =IF(C18="","",Markup!$H$3*E18) ->  | AC18: =IF($F18="","",IF($F18=Markup!$B$7,Markup!$C$9,IF($F18=Markup!$E$7,Markup!$F$9,IF($F18=Markup!$H$7,Markup!$I$9,"")))) ->  | AD18: =IF($F18="","",IF($F18=Markup!$B$7,Markup!$C$10,IF($F18=Markup!$E$7,Markup!$F$10,IF($F18=Markup!$H$7,Markup!$I$10,"")))) ->  | AE18: =IF($F18="","",IF($F18=Markup!$B$7,Markup!$C$11,IF($F18=Markup!$E$7,Markup!$F$11,IF($F18=Markup!$H$7,Markup!$I$11,"")))) ->  | AF18: =IF($F18="","",IF($F18=Markup!$B$7,Markup!$C$12,IF($F18=Markup!$E$7,Markup!$F$12,IF($F18=Markup!$H$7,Markup!$I$12,"")))) -> 
I19: =IF(C19="","",Markup!$H$3*E19) ->  | AC19: =IF($F19="","",IF($F19=Markup!$B$7,Markup!$C$9,IF($F19=Markup!$E$7,Markup!$F$9,IF($F19=Markup!$H$7,Markup!$I$9,"")))) ->  | AD19: =IF($F19="","",IF($F19=Markup!$B$7,Markup!$C$10,IF($F19=Markup!$E$7,Markup!$F$10,IF($F19=Markup!$H$7,Markup!$I$10,"")))) ->  | AE19: =IF($F19="","",IF($F19=Markup!$B$7,Markup!$C$11,IF($F19=Markup!$E$7,Markup!$F$11,IF($F19=Markup!$H$7,Markup!$I$11,"")))) ->  | AF19: =IF($F19="","",IF($F19=Markup!$B$7,Markup!$C$12,IF($F19=Markup!$E$7,Markup!$F$12,IF($F19=Markup!$H$7,Markup!$I$12,"")))) -> 
I20: =IF(C20="","",Markup!$H$3*E20) ->  | AC20: =IF($F20="","",IF($F20=Markup!$B$7,Markup!$C$9,IF($F20=Markup!$E$7,Markup!$F$9,IF($F20=Markup!$H$7,Markup!$I$9,"")))) ->  | AD20: =IF($F20="","",IF($F20=Markup!$B$7,Markup!$C$10,IF($F20=Markup!$E$7,Markup!$F$10,IF($F20=Markup!$H$7,Markup!$I$10,"")))) ->  | AE20: =IF($F20="","",IF($F20=Markup!$B$7,Markup!$C$11,IF($F20=Markup!$E$7,Markup!$F$11,IF($F20=Markup!$H$7,Markup!$I$11,"")))) ->  | AF20: =IF($F20="","",IF($F20=Markup!$B$7,Markup!$C$12,IF($F20=Markup!$E$7,Markup!$F$12,IF($F20=Markup!$H$7,Markup!$I$12,"")))) -> 
I21: =IF(C21="","",Markup!$H$3*E21) ->  | AC21: =IF($F21="","",IF($F21=Markup!$B$7,Markup!$C$9,IF($F21=Markup!$E$7,Markup!$F$9,IF($F21=Markup!$H$7,Markup!$I$9,"")))) ->  | AD21: =IF($F21="","",IF($F21=Markup!$B$7,Markup!$C$10,IF($F21=Markup!$E$7,Markup!$F$10,IF($F21=Markup!$H$7,Markup!$I$10,"")))) ->  | AE21: =IF($F21="","",IF($F21=Markup!$B$7,Markup!$C$11,IF($F21=Markup!$E$7,Markup!$F$11,IF($F21=Markup!$H$7,Markup!$I$11,"")))) ->  | AF21: =IF($F21="","",IF($F21=Markup!$B$7,Markup!$C$12,IF($F21=Markup!$E$7,Markup!$F$12,IF($F21=Markup!$H$7,Markup!$I$12,"")))) -> 
I22: =IF(C22="","",Markup!$H$3*E22) ->  | AC22: =IF($F22="","",IF($F22=Markup!$B$7,Markup!$C$9,IF($F22=Markup!$E$7,Markup!$F$9,IF($F22=Markup!$H$7,Markup!$I$9,"")))) ->  | AD22: =IF($F22="","",IF($F22=Markup!$B$7,Markup!$C$10,IF($F22=Markup!$E$7,Markup!$F$10,IF($F22=Markup!$H$7,Markup!$I$10,"")))) ->  | AE22: =IF($F22="","",IF($F22=Markup!$B$7,Markup!$C$11,IF($F22=Markup!$E$7,Markup!$F$11,IF($F22=Markup!$H$7,Markup!$I$11,"")))) ->  | AF22: =IF($F22="","",IF($F22=Markup!$B$7,Markup!$C$12,IF($F22=Markup!$E$7,Markup!$F$12,IF($F22=Markup!$H$7,Markup!$I$12,"")))) -> 
I23: =IF(C23="","",Markup!$H$3*E23) ->  | AC23: =IF($F23="","",IF($F23=Markup!$B$7,Markup!$C$9,IF($F23=Markup!$E$7,Markup!$F$9,IF($F23=Markup!$H$7,Markup!$I$9,"")))) ->  | AD23: =IF($F23="","",IF($F23=Markup!$B$7,Markup!$C$10,IF($F23=Markup!$E$7,Markup!$F$10,IF($F23=Markup!$H$7,Markup!$I$10,"")))) ->  | AE23: =IF($F23="","",IF($F23=Markup!$B$7,Markup!$C$11,IF($F23=Markup!$E$7,Markup!$F$11,IF($F23=Markup!$H$7,Markup!$I$11,"")))) ->  | AF23: =IF($F23="","",IF($F23=Markup!$B$7,Markup!$C$12,IF($F23=Markup!$E$7,Markup!$F$12,IF($F23=Markup!$H$7,Markup!$I$12,"")))) -> 
I24: =IF(C24="","",Markup!$H$3*E24) ->  | AC24: =IF($F24="","",IF($F24=Markup!$B$7,Markup!$C$9,IF($F24=Markup!$E$7,Markup!$F$9,IF($F24=Markup!$H$7,Markup!$I$9,"")))) ->  | AD24: =IF($F24="","",IF($F24=Markup!$B$7,Markup!$C$10,IF($F24=Markup!$E$7,Markup!$F$10,IF($F24=Markup!$H$7,Markup!$I$10,"")))) ->  | AE24: =IF($F24="","",IF($F24=Markup!$B$7,Markup!$C$11,IF($F24=Markup!$E$7,Markup!$F$11,IF($F24=Markup!$H$7,Markup!$I$11,"")))) ->  | AF24: =IF($F24="","",IF($F24=Markup!$B$7,Markup!$C$12,IF($F24=Markup!$E$7,Markup!$F$12,IF($F24=Markup!$H$7,Markup!$I$12,"")))) -> 
I25: =IF(C25="","",Markup!$H$3*E25) ->  | AC25: =IF($F25="","",IF($F25=Markup!$B$7,Markup!$C$9,IF($F25=Markup!$E$7,Markup!$F$9,IF($F25=Markup!$H$7,Markup!$I$9,"")))) ->  | AD25: =IF($F25="","",IF($F25=Markup!$B$7,Markup!$C$10,IF($F25=Markup!$E$7,Markup!$F$10,IF($F25=Markup!$H$7,Markup!$I$10,"")))) ->  | AE25: =IF($F25="","",IF($F25=Markup!$B$7,Markup!$C$11,IF($F25=Markup!$E$7,Markup!$F$11,IF($F25=Markup!$H$7,Markup!$I$11,"")))) ->  | AF25: =IF($F25="","",IF($F25=Markup!$B$7,Markup!$C$12,IF($F25=Markup!$E$7,Markup!$F$12,IF($F25=Markup!$H$7,Markup!$I$12,"")))) -> 
I26: =IF(C26="","",Markup!$H$3*E26) ->  | AC26: =IF($F26="","",IF($F26=Markup!$B$7,Markup!$C$9,IF($F26=Markup!$E$7,Markup!$F$9,IF($F26=Markup!$H$7,Markup!$I$9,"")))) ->  | AD26: =IF($F26="","",IF($F26=Markup!$B$7,Markup!$C$10,IF($F26=Markup!$E$7,Markup!$F$10,IF($F26=Markup!$H$7,Markup!$I$10,"")))) ->  | AE26: =IF($F26="","",IF($F26=Markup!$B$7,Markup!$C$11,IF($F26=Markup!$E$7,Markup!$F$11,IF($F26=Markup!$H$7,Markup!$I$11,"")))) ->  | AF26: =IF($F26="","",IF($F26=Markup!$B$7,Markup!$C$12,IF($F26=Markup!$E$7,Markup!$F$12,IF($F26=Markup!$H$7,Markup!$I$12,"")))) -> 
I27: =IF(C27="","",Markup!$H$3*E27) ->  | AC27: =IF($F27="","",IF($F27=Markup!$B$7,Markup!$C$9,IF($F27=Markup!$E$7,Markup!$F$9,IF($F27=Markup!$H$7,Markup!$I$9,"")))) ->  | AD27: =IF($F27="","",IF($F27=Markup!$B$7,Markup!$C$10,IF($F27=Markup!$E$7,Markup!$F$10,IF($F27=Markup!$H$7,Markup!$I$10,"")))) ->  | AE27: =IF($F27="","",IF($F27=Markup!$B$7,Markup!$C$11,IF($F27=Markup!$E$7,Markup!$F$11,IF($F27=Markup!$H$7,Markup!$I$11,"")))) ->  | AF27: =IF($F27="","",IF($F27=Markup!$B$7,Markup!$C$12,IF($F27=Markup!$E$7,Markup!$F$12,IF($F27=Markup!$H$7,Markup!$I$12,"")))) -> 
I28: =IF(C28="","",Markup!$H$3*E28) ->  | AC28: =IF($F28="","",IF($F28=Markup!$B$7,Markup!$C$9,IF($F28=Markup!$E$7,Markup!$F$9,IF($F28=Markup!$H$7,Markup!$I$9,"")))) ->  | AD28: =IF($F28="","",IF($F28=Markup!$B$7,Markup!$C$10,IF($F28=Markup!$E$7,Markup!$F$10,IF($F28=Markup!$H$7,Markup!$I$10,"")))) ->  | AE28: =IF($F28="","",IF($F28=Markup!$B$7,Markup!$C$11,IF($F28=Markup!$E$7,Markup!$F$11,IF($F28=Markup!$H$7,Markup!$I$11,"")))) ->  | AF28: =IF($F28="","",IF($F28=Markup!$B$7,Markup!$C$12,IF($F28=Markup!$E$7,Markup!$F$12,IF($F28=Markup!$H$7,Markup!$I$12,"")))) -> 
I29: =IF(C29="","",Markup!$H$3*E29) ->  | AC29: =IF($F29="","",IF($F29=Markup!$B$7,Markup!$C$9,IF($F29=Markup!$E$7,Markup!$F$9,IF($F29=Markup!$H$7,Markup!$I$9,"")))) ->  | AD29: =IF($F29="","",IF($F29=Markup!$B$7,Markup!$C$10,IF($F29=Markup!$E$7,Markup!$F$10,IF($F29=Markup!$H$7,Markup!$I$10,"")))) ->  | AE29: =IF($F29="","",IF($F29=Markup!$B$7,Markup!$C$11,IF($F29=Markup!$E$7,Markup!$F$11,IF($F29=Markup!$H$7,Markup!$I$11,"")))) ->  | AF29: =IF($F29="","",IF($F29=Markup!$B$7,Markup!$C$12,IF($F29=Markup!$E$7,Markup!$F$12,IF($F29=Markup!$H$7,Markup!$I$12,"")))) -> 
I30: =IF(C30="","",Markup!$H$3*E30) ->  | AC30: =IF($F30="","",IF($F30=Markup!$B$7,Markup!$C$9,IF($F30=Markup!$E$7,Markup!$F$9,IF($F30=Markup!$H$7,Markup!$I$9,"")))) ->  | AD30: =IF($F30="","",IF($F30=Markup!$B$7,Markup!$C$10,IF($F30=Markup!$E$7,Markup!$F$10,IF($F30=Markup!$H$7,Markup!$I$10,"")))) ->  | AE30: =IF($F30="","",IF($F30=Markup!$B$7,Markup!$C$11,IF($F30=Markup!$E$7,Markup!$F$11,IF($F30=Markup!$H$7,Markup!$I$11,"")))) ->  | AF30: =IF($F30="","",IF($F30=Markup!$B$7,Markup!$C$12,IF($F30=Markup!$E$7,Markup!$F$12,IF($F30=Markup!$H$7,Markup!$I$12,"")))) -> 
I31: =IF(C31="","",Markup!$H$3*E31) ->  | AC31: =IF($F31="","",IF($F31=Markup!$B$7,Markup!$C$9,IF($F31=Markup!$E$7,Markup!$F$9,IF($F31=Markup!$H$7,Markup!$I$9,"")))) ->  | AD31: =IF($F31="","",IF($F31=Markup!$B$7,Markup!$C$10,IF($F31=Markup!$E$7,Markup!$F$10,IF($F31=Markup!$H$7,Markup!$I$10,"")))) ->  | AE31: =IF($F31="","",IF($F31=Markup!$B$7,Markup!$C$11,IF($F31=Markup!$E$7,Markup!$F$11,IF($F31=Markup!$H$7,Markup!$I$11,"")))) ->  | AF31: =IF($F31="","",IF($F31=Markup!$B$7,Markup!$C$12,IF($F31=Markup!$E$7,Markup!$F$12,IF($F31=Markup!$H$7,Markup!$I$12,"")))) -> 
I32: =IF(C32="","",Markup!$H$3*E32) ->  | AC32: =IF($F32="","",IF($F32=Markup!$B$7,Markup!$C$9,IF($F32=Markup!$E$7,Markup!$F$9,IF($F32=Markup!$H$7,Markup!$I$9,"")))) ->  | AD32: =IF($F32="","",IF($F32=Markup!$B$7,Markup!$C$10,IF($F32=Markup!$E$7,Markup!$F$10,IF($F32=Markup!$H$7,Markup!$I$10,"")))) ->  | AE32: =IF($F32="","",IF($F32=Markup!$B$7,Markup!$C$11,IF($F32=Markup!$E$7,Markup!$F$11,IF($F32=Markup!$H$7,Markup!$I$11,"")))) ->  | AF32: =IF($F32="","",IF($F32=Markup!$B$7,Markup!$C$12,IF($F32=Markup!$E$7,Markup!$F$12,IF($F32=Markup!$H$7,Markup!$I$12,"")))) -> 
I33: =IF(C33="","",Markup!$H$3*E33) ->  | AC33: =IF($F33="","",IF($F33=Markup!$B$7,Markup!$C$9,IF($F33=Markup!$E$7,Markup!$F$9,IF($F33=Markup!$H$7,Markup!$I$9,"")))) ->  | AD33: =IF($F33="","",IF($F33=Markup!$B$7,Markup!$C$10,IF($F33=Markup!$E$7,Markup!$F$10,IF($F33=Markup!$H$7,Markup!$I$10,"")))) ->  | AE33: =IF($F33="","",IF($F33=Markup!$B$7,Markup!$C$11,IF($F33=Markup!$E$7,Markup!$F$11,IF($F33=Markup!$H$7,Markup!$I$11,"")))) ->  | AF33: =IF($F33="","",IF($F33=Markup!$B$7,Markup!$C$12,IF($F33=Markup!$E$7,Markup!$F$12,IF($F33=Markup!$H$7,Markup!$I$12,"")))) -> 
I34: =IF(C34="","",Markup!$H$3*E34) ->  | AC34: =IF($F34="","",IF($F34=Markup!$B$7,Markup!$C$9,IF($F34=Markup!$E$7,Markup!$F$9,IF($F34=Markup!$H$7,Markup!$I$9,"")))) ->  | AD34: =IF($F34="","",IF($F34=Markup!$B$7,Markup!$C$10,IF($F34=Markup!$E$7,Markup!$F$10,IF($F34=Markup!$H$7,Markup!$I$10,"")))) ->  | AE34: =IF($F34="","",IF($F34=Markup!$B$7,Markup!$C$11,IF($F34=Markup!$E$7,Markup!$F$11,IF($F34=Markup!$H$7,Markup!$I$11,"")))) ->  | AF34: =IF($F34="","",IF($F34=Markup!$B$7,Markup!$C$12,IF($F34=Markup!$E$7,Markup!$F$12,IF($F34=Markup!$H$7,Markup!$I$12,"")))) -> 
I35: =IF(C35="","",Markup!$H$3*E35) ->  | AC35: =IF($F35="","",IF($F35=Markup!$B$7,Markup!$C$9,IF($F35=Markup!$E$7,Markup!$F$9,IF($F35=Markup!$H$7,Markup!$I$9,"")))) ->  | AD35: =IF($F35="","",IF($F35=Markup!$B$7,Markup!$C$10,IF($F35=Markup!$E$7,Markup!$F$10,IF($F35=Markup!$H$7,Markup!$I$10,"")))) ->  | AE35: =IF($F35="","",IF($F35=Markup!$B$7,Markup!$C$11,IF($F35=Markup!$E$7,Markup!$F$11,IF($F35=Markup!$H$7,Markup!$I$11,"")))) ->  | AF35: =IF($F35="","",IF($F35=Markup!$B$7,Markup!$C$12,IF($F35=Markup!$E$7,Markup!$F$12,IF($F35=Markup!$H$7,Markup!$I$12,"")))) -> 
I36: =IF(C36="","",Markup!$H$3*E36) ->  | AC36: =IF($F36="","",IF($F36=Markup!$B$7,Markup!$C$9,IF($F36=Markup!$E$7,Markup!$F$9,IF($F36=Markup!$H$7,Markup!$I$9,"")))) ->  | AD36: =IF($F36="","",IF($F36=Markup!$B$7,Markup!$C$10,IF($F36=Markup!$E$7,Markup!$F$10,IF($F36=Markup!$H$7,Markup!$I$10,"")))) ->  | AE36: =IF($F36="","",IF($F36=Markup!$B$7,Markup!$C$11,IF($F36=Markup!$E$7,Markup!$F$11,IF($F36=Markup!$H$7,Markup!$I$11,"")))) ->  | AF36: =IF($F36="","",IF($F36=Markup!$B$7,Markup!$C$12,IF($F36=Markup!$E$7,Markup!$F$12,IF($F36=Markup!$H$7,Markup!$I$12,"")))) -> 
I37: =IF(C37="","",Markup!$H$3*E37) ->  | AC37: =IF($F37="","",IF($F37=Markup!$B$7,Markup!$C$9,IF($F37=Markup!$E$7,Markup!$F$9,IF($F37=Markup!$H$7,Markup!$I$9,"")))) ->  | AD37: =IF($F37="","",IF($F37=Markup!$B$7,Markup!$C$10,IF($F37=Markup!$E$7,Markup!$F$10,IF($F37=Markup!$H$7,Markup!$I$10,"")))) ->  | AE37: =IF($F37="","",IF($F37=Markup!$B$7,Markup!$C$11,IF($F37=Markup!$E$7,Markup!$F$11,IF($F37=Markup!$H$7,Markup!$I$11,"")))) ->  | AF37: =IF($F37="","",IF($F37=Markup!$B$7,Markup!$C$12,IF($F37=Markup!$E$7,Markup!$F$12,IF($F37=Markup!$H$7,Markup!$I$12,"")))) -> 
I38: =IF(C38="","",Markup!$H$3*E38) ->  | AC38: =IF($F38="","",IF($F38=Markup!$B$7,Markup!$C$9,IF($F38=Markup!$E$7,Markup!$F$9,IF($F38=Markup!$H$7,Markup!$I$9,"")))) ->  | AD38: =IF($F38="","",IF($F38=Markup!$B$7,Markup!$C$10,IF($F38=Markup!$E$7,Markup!$F$10,IF($F38=Markup!$H$7,Markup!$I$10,"")))) ->  | AE38: =IF($F38="","",IF($F38=Markup!$B$7,Markup!$C$11,IF($F38=Markup!$E$7,Markup!$F$11,IF($F38=Markup!$H$7,Markup!$I$11,"")))) ->  | AF38: =IF($F38="","",IF($F38=Markup!$B$7,Markup!$C$12,IF($F38=Markup!$E$7,Markup!$F$12,IF($F38=Markup!$H$7,Markup!$I$12,"")))) -> 
I39: =IF(C39="","",Markup!$H$3*E39) ->  | AC39: =IF($F39="","",IF($F39=Markup!$B$7,Markup!$C$9,IF($F39=Markup!$E$7,Markup!$F$9,IF($F39=Markup!$H$7,Markup!$I$9,"")))) ->  | AD39: =IF($F39="","",IF($F39=Markup!$B$7,Markup!$C$10,IF($F39=Markup!$E$7,Markup!$F$10,IF($F39=Markup!$H$7,Markup!$I$10,"")))) ->  | AE39: =IF($F39="","",IF($F39=Markup!$B$7,Markup!$C$11,IF($F39=Markup!$E$7,Markup!$F$11,IF($F39=Markup!$H$7,Markup!$I$11,"")))) ->  | AF39: =IF($F39="","",IF($F39=Markup!$B$7,Markup!$C$12,IF($F39=Markup!$E$7,Markup!$F$12,IF($F39=Markup!$H$7,Markup!$I$12,"")))) -> 
I40: =IF(C40="","",Markup!$H$3*E40) ->  | AC40: =IF($F40="","",IF($F40=Markup!$B$7,Markup!$C$9,IF($F40=Markup!$E$7,Markup!$F$9,IF($F40=Markup!$H$7,Markup!$I$9,"")))) ->  | AD40: =IF($F40="","",IF($F40=Markup!$B$7,Markup!$C$10,IF($F40=Markup!$E$7,Markup!$F$10,IF($F40=Markup!$H$7,Markup!$I$10,"")))) ->  | AE40: =IF($F40="","",IF($F40=Markup!$B$7,Markup!$C$11,IF($F40=Markup!$E$7,Markup!$F$11,IF($F40=Markup!$H$7,Markup!$I$11,"")))) ->  | AF40: =IF($F40="","",IF($F40=Markup!$B$7,Markup!$C$12,IF($F40=Markup!$E$7,Markup!$F$12,IF($F40=Markup!$H$7,Markup!$I$12,"")))) -> 
I41: =IF(C41="","",Markup!$H$3*E41) ->  | AC41: =IF($F41="","",IF($F41=Markup!$B$7,Markup!$C$9,IF($F41=Markup!$E$7,Markup!$F$9,IF($F41=Markup!$H$7,Markup!$I$9,"")))) ->  | AD41: =IF($F41="","",IF($F41=Markup!$B$7,Markup!$C$10,IF($F41=Markup!$E$7,Markup!$F$10,IF($F41=Markup!$H$7,Markup!$I$10,"")))) ->  | AE41: =IF($F41="","",IF($F41=Markup!$B$7,Markup!$C$11,IF($F41=Markup!$E$7,Markup!$F$11,IF($F41=Markup!$H$7,Markup!$I$11,"")))) ->  | AF41: =IF($F41="","",IF($F41=Markup!$B$7,Markup!$C$12,IF($F41=Markup!$E$7,Markup!$F$12,IF($F41=Markup!$H$7,Markup!$I$12,"")))) -> 
I42: =IF(C42="","",Markup!$H$3*E42) ->  | AC42: =IF($F42="","",IF($F42=Markup!$B$7,Markup!$C$9,IF($F42=Markup!$E$7,Markup!$F$9,IF($F42=Markup!$H$7,Markup!$I$9,"")))) ->  | AD42: =IF($F42="","",IF($F42=Markup!$B$7,Markup!$C$10,IF($F42=Markup!$E$7,Markup!$F$10,IF($F42=Markup!$H$7,Markup!$I$10,"")))) ->  | AE42: =IF($F42="","",IF($F42=Markup!$B$7,Markup!$C$11,IF($F42=Markup!$E$7,Markup!$F$11,IF($F42=Markup!$H$7,Markup!$I$11,"")))) ->  | AF42: =IF($F42="","",IF($F42=Markup!$B$7,Markup!$C$12,IF($F42=Markup!$E$7,Markup!$F$12,IF($F42=Markup!$H$7,Markup!$I$12,"")))) -> 
I43: =IF(C43="","",Markup!$H$3*E43) ->  | AC43: =IF($F43="","",IF($F43=Markup!$B$7,Markup!$C$9,IF($F43=Markup!$E$7,Markup!$F$9,IF($F43=Markup!$H$7,Markup!$I$9,"")))) ->  | AD43: =IF($F43="","",IF($F43=Markup!$B$7,Markup!$C$10,IF($F43=Markup!$E$7,Markup!$F$10,IF($F43=Markup!$H$7,Markup!$I$10,"")))) ->  | AE43: =IF($F43="","",IF($F43=Markup!$B$7,Markup!$C$11,IF($F43=Markup!$E$7,Markup!$F$11,IF($F43=Markup!$H$7,Markup!$I$11,"")))) ->  | AF43: =IF($F43="","",IF($F43=Markup!$B$7,Markup!$C$12,IF($F43=Markup!$E$7,Markup!$F$12,IF($F43=Markup!$H$7,Markup!$I$12,"")))) -> 
I44: =IF(C44="","",Markup!$H$3*E44) ->  | AC44: =IF($F44="","",IF($F44=Markup!$B$7,Markup!$C$9,IF($F44=Markup!$E$7,Markup!$F$9,IF($F44=Markup!$H$7,Markup!$I$9,"")))) ->  | AD44: =IF($F44="","",IF($F44=Markup!$B$7,Markup!$C$10,IF($F44=Markup!$E$7,Markup!$F$10,IF($F44=Markup!$H$7,Markup!$I$10,"")))) ->  | AE44: =IF($F44="","",IF($F44=Markup!$B$7,Markup!$C$11,IF($F44=Markup!$E$7,Markup!$F$11,IF($F44=Markup!$H$7,Markup!$I$11,"")))) ->  | AF44: =IF($F44="","",IF($F44=Markup!$B$7,Markup!$C$12,IF($F44=Markup!$E$7,Markup!$F$12,IF($F44=Markup!$H$7,Markup!$I$12,"")))) -> 
I45: =IF(C45="","",Markup!$H$3*E45) ->  | AC45: =IF($F45="","",IF($F45=Markup!$B$7,Markup!$C$9,IF($F45=Markup!$E$7,Markup!$F$9,IF($F45=Markup!$H$7,Markup!$I$9,"")))) ->  | AD45: =IF($F45="","",IF($F45=Markup!$B$7,Markup!$C$10,IF($F45=Markup!$E$7,Markup!$F$10,IF($F45=Markup!$H$7,Markup!$I$10,"")))) ->  | AE45: =IF($F45="","",IF($F45=Markup!$B$7,Markup!$C$11,IF($F45=Markup!$E$7,Markup!$F$11,IF($F45=Markup!$H$7,Markup!$I$11,"")))) ->  | AF45: =IF($F45="","",IF($F45=Markup!$B$7,Markup!$C$12,IF($F45=Markup!$E$7,Markup!$F$12,IF($F45=Markup!$H$7,Markup!$I$12,"")))) -> 
I46: =IF(C46="","",Markup!$H$3*E46) ->  | AC46: =IF($F46="","",IF($F46=Markup!$B$7,Markup!$C$9,IF($F46=Markup!$E$7,Markup!$F$9,IF($F46=Markup!$H$7,Markup!$I$9,"")))) ->  | AD46: =IF($F46="","",IF($F46=Markup!$B$7,Markup!$C$10,IF($F46=Markup!$E$7,Markup!$F$10,IF($F46=Markup!$H$7,Markup!$I$10,"")))) ->  | AE46: =IF($F46="","",IF($F46=Markup!$B$7,Markup!$C$11,IF($F46=Markup!$E$7,Markup!$F$11,IF($F46=Markup!$H$7,Markup!$I$11,"")))) ->  | AF46: =IF($F46="","",IF($F46=Markup!$B$7,Markup!$C$12,IF($F46=Markup!$E$7,Markup!$F$12,IF($F46=Markup!$H$7,Markup!$I$12,"")))) -> 
I47: =IF(C47="","",Markup!$H$3*E47) ->  | AC47: =IF($F47="","",IF($F47=Markup!$B$7,Markup!$C$9,IF($F47=Markup!$E$7,Markup!$F$9,IF($F47=Markup!$H$7,Markup!$I$9,"")))) ->  | AD47: =IF($F47="","",IF($F47=Markup!$B$7,Markup!$C$10,IF($F47=Markup!$E$7,Markup!$F$10,IF($F47=Markup!$H$7,Markup!$I$10,"")))) ->  | AE47: =IF($F47="","",IF($F47=Markup!$B$7,Markup!$C$11,IF($F47=Markup!$E$7,Markup!$F$11,IF($F47=Markup!$H$7,Markup!$I$11,"")))) ->  | AF47: =IF($F47="","",IF($F47=Markup!$B$7,Markup!$C$12,IF($F47=Markup!$E$7,Markup!$F$12,IF($F47=Markup!$H$7,Markup!$I$12,"")))) -> 
I48: =IF(C48="","",Markup!$H$3*E48) ->  | AC48: =IF($F48="","",IF($F48=Markup!$B$7,Markup!$C$9,IF($F48=Markup!$E$7,Markup!$F$9,IF($F48=Markup!$H$7,Markup!$I$9,"")))) ->  | AD48: =IF($F48="","",IF($F48=Markup!$B$7,Markup!$C$10,IF($F48=Markup!$E$7,Markup!$F$10,IF($F48=Markup!$H$7,Markup!$I$10,"")))) ->  | AE48: =IF($F48="","",IF($F48=Markup!$B$7,Markup!$C$11,IF($F48=Markup!$E$7,Markup!$F$11,IF($F48=Markup!$H$7,Markup!$I$11,"")))) ->  | AF48: =IF($F48="","",IF($F48=Markup!$B$7,Markup!$C$12,IF($F48=Markup!$E$7,Markup!$F$12,IF($F48=Markup!$H$7,Markup!$I$12,"")))) -> 
I49: =IF(C49="","",Markup!$H$3*E49) ->  | AC49: =IF($F49="","",IF($F49=Markup!$B$7,Markup!$C$9,IF($F49=Markup!$E$7,Markup!$F$9,IF($F49=Markup!$H$7,Markup!$I$9,"")))) ->  | AD49: =IF($F49="","",IF($F49=Markup!$B$7,Markup!$C$10,IF($F49=Markup!$E$7,Markup!$F$10,IF($F49=Markup!$H$7,Markup!$I$10,"")))) ->  | AE49: =IF($F49="","",IF($F49=Markup!$B$7,Markup!$C$11,IF($F49=Markup!$E$7,Markup!$F$11,IF($F49=Markup!$H$7,Markup!$I$11,"")))) ->  | AF49: =IF($F49="","",IF($F49=Markup!$B$7,Markup!$C$12,IF($F49=Markup!$E$7,Markup!$F$12,IF($F49=Markup!$H$7,Markup!$I$12,"")))) -> 
I50: =IF(C50="","",Markup!$H$3*E50) ->  | AC50: =IF($F50="","",IF($F50=Markup!$B$7,Markup!$C$9,IF($F50=Markup!$E$7,Markup!$F$9,IF($F50=Markup!$H$7,Markup!$I$9,"")))) ->  | AD50: =IF($F50="","",IF($F50=Markup!$B$7,Markup!$C$10,IF($F50=Markup!$E$7,Markup!$F$10,IF($F50=Markup!$H$7,Markup!$I$10,"")))) ->  | AE50: =IF($F50="","",IF($F50=Markup!$B$7,Markup!$C$11,IF($F50=Markup!$E$7,Markup!$F$11,IF($F50=Markup!$H$7,Markup!$I$11,"")))) ->  | AF50: =IF($F50="","",IF($F50=Markup!$B$7,Markup!$C$12,IF($F50=Markup!$E$7,Markup!$F$12,IF($F50=Markup!$H$7,Markup!$I$12,"")))) -> 
I51: =IF(C51="","",Markup!$H$3*E51) ->  | AC51: =IF($F51="","",IF($F51=Markup!$B$7,Markup!$C$9,IF($F51=Markup!$E$7,Markup!$F$9,IF($F51=Markup!$H$7,Markup!$I$9,"")))) ->  | AD51: =IF($F51="","",IF($F51=Markup!$B$7,Markup!$C$10,IF($F51=Markup!$E$7,Markup!$F$10,IF($F51=Markup!$H$7,Markup!$I$10,"")))) ->  | AE51: =IF($F51="","",IF($F51=Markup!$B$7,Markup!$C$11,IF($F51=Markup!$E$7,Markup!$F$11,IF($F51=Markup!$H$7,Markup!$I$11,"")))) ->  | AF51: =IF($F51="","",IF($F51=Markup!$B$7,Markup!$C$12,IF($F51=Markup!$E$7,Markup!$F$12,IF($F51=Markup!$H$7,Markup!$I$12,"")))) -> 
I52: =IF(C52="","",Markup!$H$3*E52) ->  | AC52: =IF($F52="","",IF($F52=Markup!$B$7,Markup!$C$9,IF($F52=Markup!$E$7,Markup!$F$9,IF($F52=Markup!$H$7,Markup!$I$9,"")))) ->  | AD52: =IF($F52="","",IF($F52=Markup!$B$7,Markup!$C$10,IF($F52=Markup!$E$7,Markup!$F$10,IF($F52=Markup!$H$7,Markup!$I$10,"")))) ->  | AE52: =IF($F52="","",IF($F52=Markup!$B$7,Markup!$C$11,IF($F52=Markup!$E$7,Markup!$F$11,IF($F52=Markup!$H$7,Markup!$I$11,"")))) ->  | AF52: =IF($F52="","",IF($F52=Markup!$B$7,Markup!$C$12,IF($F52=Markup!$E$7,Markup!$F$12,IF($F52=Markup!$H$7,Markup!$I$12,"")))) -> 
I53: =IF(C53="","",Markup!$H$3*E53) ->  | AC53: =IF($F53="","",IF($F53=Markup!$B$7,Markup!$C$9,IF($F53=Markup!$E$7,Markup!$F$9,IF($F53=Markup!$H$7,Markup!$I$9,"")))) ->  | AD53: =IF($F53="","",IF($F53=Markup!$B$7,Markup!$C$10,IF($F53=Markup!$E$7,Markup!$F$10,IF($F53=Markup!$H$7,Markup!$I$10,"")))) ->  | AE53: =IF($F53="","",IF($F53=Markup!$B$7,Markup!$C$11,IF($F53=Markup!$E$7,Markup!$F$11,IF($F53=Markup!$H$7,Markup!$I$11,"")))) ->  | AF53: =IF($F53="","",IF($F53=Markup!$B$7,Markup!$C$12,IF($F53=Markup!$E$7,Markup!$F$12,IF($F53=Markup!$H$7,Markup!$I$12,"")))) -> 
I54: =IF(C54="","",Markup!$H$3*E54) ->  | AC54: =IF($F54="","",IF($F54=Markup!$B$7,Markup!$C$9,IF($F54=Markup!$E$7,Markup!$F$9,IF($F54=Markup!$H$7,Markup!$I$9,"")))) ->  | AD54: =IF($F54="","",IF($F54=Markup!$B$7,Markup!$C$10,IF($F54=Markup!$E$7,Markup!$F$10,IF($F54=Markup!$H$7,Markup!$I$10,"")))) ->  | AE54: =IF($F54="","",IF($F54=Markup!$B$7,Markup!$C$11,IF($F54=Markup!$E$7,Markup!$F$11,IF($F54=Markup!$H$7,Markup!$I$11,"")))) ->  | AF54: =IF($F54="","",IF($F54=Markup!$B$7,Markup!$C$12,IF($F54=Markup!$E$7,Markup!$F$12,IF($F54=Markup!$H$7,Markup!$I$12,"")))) -> 
I55: =IF(C55="","",Markup!$H$3*E55) ->  | AC55: =IF($F55="","",IF($F55=Markup!$B$7,Markup!$C$9,IF($F55=Markup!$E$7,Markup!$F$9,IF($F55=Markup!$H$7,Markup!$I$9,"")))) ->  | AD55: =IF($F55="","",IF($F55=Markup!$B$7,Markup!$C$10,IF($F55=Markup!$E$7,Markup!$F$10,IF($F55=Markup!$H$7,Markup!$I$10,"")))) ->  | AE55: =IF($F55="","",IF($F55=Markup!$B$7,Markup!$C$11,IF($F55=Markup!$E$7,Markup!$F$11,IF($F55=Markup!$H$7,Markup!$I$11,"")))) ->  | AF55: =IF($F55="","",IF($F55=Markup!$B$7,Markup!$C$12,IF($F55=Markup!$E$7,Markup!$F$12,IF($F55=Markup!$H$7,Markup!$I$12,"")))) -> 
I56: =IF(C56="","",Markup!$H$3*E56) ->  | AC56: =IF($F56="","",IF($F56=Markup!$B$7,Markup!$C$9,IF($F56=Markup!$E$7,Markup!$F$9,IF($F56=Markup!$H$7,Markup!$I$9,"")))) ->  | AD56: =IF($F56="","",IF($F56=Markup!$B$7,Markup!$C$10,IF($F56=Markup!$E$7,Markup!$F$10,IF($F56=Markup!$H$7,Markup!$I$10,"")))) ->  | AE56: =IF($F56="","",IF($F56=Markup!$B$7,Markup!$C$11,IF($F56=Markup!$E$7,Markup!$F$11,IF($F56=Markup!$H$7,Markup!$I$11,"")))) ->  | AF56: =IF($F56="","",IF($F56=Markup!$B$7,Markup!$C$12,IF($F56=Markup!$E$7,Markup!$F$12,IF($F56=Markup!$H$7,Markup!$I$12,"")))) -> 
I57: =IF(C57="","",Markup!$H$3*E57) ->  | AC57: =IF($F57="","",IF($F57=Markup!$B$7,Markup!$C$9,IF($F57=Markup!$E$7,Markup!$F$9,IF($F57=Markup!$H$7,Markup!$I$9,"")))) ->  | AD57: =IF($F57="","",IF($F57=Markup!$B$7,Markup!$C$10,IF($F57=Markup!$E$7,Markup!$F$10,IF($F57=Markup!$H$7,Markup!$I$10,"")))) ->  | AE57: =IF($F57="","",IF($F57=Markup!$B$7,Markup!$C$11,IF($F57=Markup!$E$7,Markup!$F$11,IF($F57=Markup!$H$7,Markup!$I$11,"")))) ->  | AF57: =IF($F57="","",IF($F57=Markup!$B$7,Markup!$C$12,IF($F57=Markup!$E$7,Markup!$F$12,IF($F57=Markup!$H$7,Markup!$I$12,"")))) -> 
I58: =IF(C58="","",Markup!$H$3*E58) ->  | AC58: =IF($F58="","",IF($F58=Markup!$B$7,Markup!$C$9,IF($F58=Markup!$E$7,Markup!$F$9,IF($F58=Markup!$H$7,Markup!$I$9,"")))) ->  | AD58: =IF($F58="","",IF($F58=Markup!$B$7,Markup!$C$10,IF($F58=Markup!$E$7,Markup!$F$10,IF($F58=Markup!$H$7,Markup!$I$10,"")))) ->  | AE58: =IF($F58="","",IF($F58=Markup!$B$7,Markup!$C$11,IF($F58=Markup!$E$7,Markup!$F$11,IF($F58=Markup!$H$7,Markup!$I$11,"")))) ->  | AF58: =IF($F58="","",IF($F58=Markup!$B$7,Markup!$C$12,IF($F58=Markup!$E$7,Markup!$F$12,IF($F58=Markup!$H$7,Markup!$I$12,"")))) -> 
I59: =IF(C59="","",Markup!$H$3*E59) ->  | AC59: =IF($F59="","",IF($F59=Markup!$B$7,Markup!$C$9,IF($F59=Markup!$E$7,Markup!$F$9,IF($F59=Markup!$H$7,Markup!$I$9,"")))) ->  | AD59: =IF($F59="","",IF($F59=Markup!$B$7,Markup!$C$10,IF($F59=Markup!$E$7,Markup!$F$10,IF($F59=Markup!$H$7,Markup!$I$10,"")))) ->  | AE59: =IF($F59="","",IF($F59=Markup!$B$7,Markup!$C$11,IF($F59=Markup!$E$7,Markup!$F$11,IF($F59=Markup!$H$7,Markup!$I$11,"")))) ->  | AF59: =IF($F59="","",IF($F59=Markup!$B$7,Markup!$C$12,IF($F59=Markup!$E$7,Markup!$F$12,IF($F59=Markup!$H$7,Markup!$I$12,"")))) -> 
I60: =IF(C60="","",Markup!$H$3*E60) ->  | AC60: =IF($F60="","",IF($F60=Markup!$B$7,Markup!$C$9,IF($F60=Markup!$E$7,Markup!$F$9,IF($F60=Markup!$H$7,Markup!$I$9,"")))) ->  | AD60: =IF($F60="","",IF($F60=Markup!$B$7,Markup!$C$10,IF($F60=Markup!$E$7,Markup!$F$10,IF($F60=Markup!$H$7,Markup!$I$10,"")))) ->  | AE60: =IF($F60="","",IF($F60=Markup!$B$7,Markup!$C$11,IF($F60=Markup!$E$7,Markup!$F$11,IF($F60=Markup!$H$7,Markup!$I$11,"")))) ->  | AF60: =IF($F60="","",IF($F60=Markup!$B$7,Markup!$C$12,IF($F60=Markup!$E$7,Markup!$F$12,IF($F60=Markup!$H$7,Markup!$I$12,"")))) -> 
I61: =IF(C61="","",Markup!$H$3*E61) ->  | AC61: =IF($F61="","",IF($F61=Markup!$B$7,Markup!$C$9,IF($F61=Markup!$E$7,Markup!$F$9,IF($F61=Markup!$H$7,Markup!$I$9,"")))) ->  | AD61: =IF($F61="","",IF($F61=Markup!$B$7,Markup!$C$10,IF($F61=Markup!$E$7,Markup!$F$10,IF($F61=Markup!$H$7,Markup!$I$10,"")))) ->  | AE61: =IF($F61="","",IF($F61=Markup!$B$7,Markup!$C$11,IF($F61=Markup!$E$7,Markup!$F$11,IF($F61=Markup!$H$7,Markup!$I$11,"")))) ->  | AF61: =IF($F61="","",IF($F61=Markup!$B$7,Markup!$C$12,IF($F61=Markup!$E$7,Markup!$F$12,IF($F61=Markup!$H$7,Markup!$I$12,"")))) -> 
I62: =IF(C62="","",Markup!$H$3*E62) ->  | AC62: =IF($F62="","",IF($F62=Markup!$B$7,Markup!$C$9,IF($F62=Markup!$E$7,Markup!$F$9,IF($F62=Markup!$H$7,Markup!$I$9,"")))) ->  | AD62: =IF($F62="","",IF($F62=Markup!$B$7,Markup!$C$10,IF($F62=Markup!$E$7,Markup!$F$10,IF($F62=Markup!$H$7,Markup!$I$10,"")))) ->  | AE62: =IF($F62="","",IF($F62=Markup!$B$7,Markup!$C$11,IF($F62=Markup!$E$7,Markup!$F$11,IF($F62=Markup!$H$7,Markup!$I$11,"")))) ->  | AF62: =IF($F62="","",IF($F62=Markup!$B$7,Markup!$C$12,IF($F62=Markup!$E$7,Markup!$F$12,IF($F62=Markup!$H$7,Markup!$I$12,"")))) -> 
I63: =IF(C63="","",Markup!$H$3*E63) ->  | AC63: =IF($F63="","",IF($F63=Markup!$B$7,Markup!$C$9,IF($F63=Markup!$E$7,Markup!$F$9,IF($F63=Markup!$H$7,Markup!$I$9,"")))) ->  | AD63: =IF($F63="","",IF($F63=Markup!$B$7,Markup!$C$10,IF($F63=Markup!$E$7,Markup!$F$10,IF($F63=Markup!$H$7,Markup!$I$10,"")))) ->  | AE63: =IF($F63="","",IF($F63=Markup!$B$7,Markup!$C$11,IF($F63=Markup!$E$7,Markup!$F$11,IF($F63=Markup!$H$7,Markup!$I$11,"")))) ->  | AF63: =IF($F63="","",IF($F63=Markup!$B$7,Markup!$C$12,IF($F63=Markup!$E$7,Markup!$F$12,IF($F63=Markup!$H$7,Markup!$I$12,"")))) -> 
I64: =IF(C64="","",Markup!$H$3*E64) ->  | AC64: =IF($F64="","",IF($F64=Markup!$B$7,Markup!$C$9,IF($F64=Markup!$E$7,Markup!$F$9,IF($F64=Markup!$H$7,Markup!$I$9,"")))) ->  | AD64: =IF($F64="","",IF($F64=Markup!$B$7,Markup!$C$10,IF($F64=Markup!$E$7,Markup!$F$10,IF($F64=Markup!$H$7,Markup!$I$10,"")))) ->  | AE64: =IF($F64="","",IF($F64=Markup!$B$7,Markup!$C$11,IF($F64=Markup!$E$7,Markup!$F$11,IF($F64=Markup!$H$7,Markup!$I$11,"")))) ->  | AF64: =IF($F64="","",IF($F64=Markup!$B$7,Markup!$C$12,IF($F64=Markup!$E$7,Markup!$F$12,IF($F64=Markup!$H$7,Markup!$I$12,"")))) -> 
I65: =IF(C65="","",Markup!$H$3*E65) ->  | AC65: =IF($F65="","",IF($F65=Markup!$B$7,Markup!$C$9,IF($F65=Markup!$E$7,Markup!$F$9,IF($F65=Markup!$H$7,Markup!$I$9,"")))) ->  | AD65: =IF($F65="","",IF($F65=Markup!$B$7,Markup!$C$10,IF($F65=Markup!$E$7,Markup!$F$10,IF($F65=Markup!$H$7,Markup!$I$10,"")))) ->  | AE65: =IF($F65="","",IF($F65=Markup!$B$7,Markup!$C$11,IF($F65=Markup!$E$7,Markup!$F$11,IF($F65=Markup!$H$7,Markup!$I$11,"")))) ->  | AF65: =IF($F65="","",IF($F65=Markup!$B$7,Markup!$C$12,IF($F65=Markup!$E$7,Markup!$F$12,IF($F65=Markup!$H$7,Markup!$I$12,"")))) -> 
I66: =IF(C66="","",Markup!$H$3*E66) ->  | AC66: =IF($F66="","",IF($F66=Markup!$B$7,Markup!$C$9,IF($F66=Markup!$E$7,Markup!$F$9,IF($F66=Markup!$H$7,Markup!$I$9,"")))) ->  | AD66: =IF($F66="","",IF($F66=Markup!$B$7,Markup!$C$10,IF($F66=Markup!$E$7,Markup!$F$10,IF($F66=Markup!$H$7,Markup!$I$10,"")))) ->  | AE66: =IF($F66="","",IF($F66=Markup!$B$7,Markup!$C$11,IF($F66=Markup!$E$7,Markup!$F$11,IF($F66=Markup!$H$7,Markup!$I$11,"")))) ->  | AF66: =IF($F66="","",IF($F66=Markup!$B$7,Markup!$C$12,IF($F66=Markup!$E$7,Markup!$F$12,IF($F66=Markup!$H$7,Markup!$I$12,"")))) -> 
I67: =IF(C67="","",Markup!$H$3*E67) ->  | AC67: =IF($F67="","",IF($F67=Markup!$B$7,Markup!$C$9,IF($F67=Markup!$E$7,Markup!$F$9,IF($F67=Markup!$H$7,Markup!$I$9,"")))) ->  | AD67: =IF($F67="","",IF($F67=Markup!$B$7,Markup!$C$10,IF($F67=Markup!$E$7,Markup!$F$10,IF($F67=Markup!$H$7,Markup!$I$10,"")))) ->  | AE67: =IF($F67="","",IF($F67=Markup!$B$7,Markup!$C$11,IF($F67=Markup!$E$7,Markup!$F$11,IF($F67=Markup!$H$7,Markup!$I$11,"")))) ->  | AF67: =IF($F67="","",IF($F67=Markup!$B$7,Markup!$C$12,IF($F67=Markup!$E$7,Markup!$F$12,IF($F67=Markup!$H$7,Markup!$I$12,"")))) -> 
G68: =IF(F68=$Y$4,$Z$4,IF(F68=$Y$5,$Z$5,IF(F68=$Y$6,$Z$6,""))) ->  | I68: =IF(C68="","",Markup!$H$3*E68) ->  | AC68: =IF($F68="","",IF($F68=Markup!$B$7,Markup!$C$9,IF($F68=Markup!$E$7,Markup!$F$9,IF($F68=Markup!$H$7,Markup!$I$9,"")))) ->  | AD68: =IF($F68="","",IF($F68=Markup!$B$7,Markup!$C$10,IF($F68=Markup!$E$7,Markup!$F$10,IF($F68=Markup!$H$7,Markup!$I$10,"")))) ->  | AE68: =IF($F68="","",IF($F68=Markup!$B$7,Markup!$C$11,IF($F68=Markup!$E$7,Markup!$F$11,IF($F68=Markup!$H$7,Markup!$I$11,"")))) ->  | AF68: =IF($F68="","",IF($F68=Markup!$B$7,Markup!$C$12,IF($F68=Markup!$E$7,Markup!$F$12,IF($F68=Markup!$H$7,Markup!$I$12,"")))) -> 
H69: =IF(D69="","",D69) ->  | I69: =IF(C69="","",Markup!$H$3*E69) ->  | J69: =IF(OR(H69="",G69=""),"",(H69+I69)*G69) ->  | Q69: =IF(J69="","",(L69-H69-(L69*SUM($AC$4:$AF$4)))) ->  | R69: =IF(Q69="","",(Q69/L69)) ->  | U69: =IF(T69="","",T69/SUM($T$4:$T$500)) ->  | AC69: =IF($F69="","",IF($F69=Markup!$B$7,Markup!$C$9,IF($F69=Markup!$E$7,Markup!$F$9,IF($F69=Markup!$H$7,Markup!$I$9,"")))) ->  | AD69: =IF($F69="","",IF($F69=Markup!$B$7,Markup!$C$10,IF($F69=Markup!$E$7,Markup!$F$10,IF($F69=Markup!$H$7,Markup!$I$10,"")))) ->  | AE69: =IF($F69="","",IF($F69=Markup!$B$7,Markup!$C$11,IF($F69=Markup!$E$7,Markup!$F$11,IF($F69=Markup!$H$7,Markup!$I$11,"")))) ->  | AF69: =IF($F69="","",IF($F69=Markup!$B$7,Markup!$C$12,IF($F69=Markup!$E$7,Markup!$F$12,IF($F69=Markup!$H$7,Markup!$I$12,"")))) -> 
I70: =IF(C70="","",Markup!$H$3*E70) ->  | AC70: =IF($F70="","",IF($F70=Markup!$B$7,Markup!$C$9,IF($F70=Markup!$E$7,Markup!$F$9,IF($F70=Markup!$H$7,Markup!$I$9,"")))) ->  | AD70: =IF($F70="","",IF($F70=Markup!$B$7,Markup!$C$10,IF($F70=Markup!$E$7,Markup!$F$10,IF($F70=Markup!$H$7,Markup!$I$10,"")))) ->  | AE70: =IF($F70="","",IF($F70=Markup!$B$7,Markup!$C$11,IF($F70=Markup!$E$7,Markup!$F$11,IF($F70=Markup!$H$7,Markup!$I$11,"")))) ->  | AF70: =IF($F70="","",IF($F70=Markup!$B$7,Markup!$C$12,IF($F70=Markup!$E$7,Markup!$F$12,IF($F70=Markup!$H$7,Markup!$I$12,"")))) -> 
I71: =IF(C71="","",Markup!$H$3*E71) ->  | N71: =IF(L71="","",M71/L71) ->  | AC71: =IF($F71="","",IF($F71=Markup!$B$7,Markup!$C$9,IF($F71=Markup!$E$7,Markup!$F$9,IF($F71=Markup!$H$7,Markup!$I$9,"")))) ->  | AD71: =IF($F71="","",IF($F71=Markup!$B$7,Markup!$C$10,IF($F71=Markup!$E$7,Markup!$F$10,IF($F71=Markup!$H$7,Markup!$I$10,"")))) ->  | AE71: =IF($F71="","",IF($F71=Markup!$B$7,Markup!$C$11,IF($F71=Markup!$E$7,Markup!$F$11,IF($F71=Markup!$H$7,Markup!$I$11,"")))) ->  | AF71: =IF($F71="","",IF($F71=Markup!$B$7,Markup!$C$12,IF($F71=Markup!$E$7,Markup!$F$12,IF($F71=Markup!$H$7,Markup!$I$12,"")))) -> 
A72: =IF(M72="Falta Dados","",IF(M72="","",IF(M72<0,"Abaixo do ideal","Preço bom"))) ->  | I72: =IF(C72="","",Markup!$H$3*E72) ->  | M72: =IF(AND(L72>0,J72=""),"Falta Dados",IF(L72="","",L72-J72)) ->  | AC72: =IF($F72="","",IF($F72=Markup!$B$7,Markup!$C$9,IF($F72=Markup!$E$7,Markup!$F$9,IF($F72=Markup!$H$7,Markup!$I$9,"")))) ->  | AD72: =IF($F72="","",IF($F72=Markup!$B$7,Markup!$C$10,IF($F72=Markup!$E$7,Markup!$F$10,IF($F72=Markup!$H$7,Markup!$I$10,"")))) ->  | AE72: =IF($F72="","",IF($F72=Markup!$B$7,Markup!$C$11,IF($F72=Markup!$E$7,Markup!$F$11,IF($F72=Markup!$H$7,Markup!$I$11,"")))) ->  | AF72: =IF($F72="","",IF($F72=Markup!$B$7,Markup!$C$12,IF($F72=Markup!$E$7,Markup!$F$12,IF($F72=Markup!$H$7,Markup!$I$12,"")))) -> 
I73: =IF(C73="","",Markup!$H$3*E73) ->  | AC73: =IF($F73="","",IF($F73=Markup!$B$7,Markup!$C$9,IF($F73=Markup!$E$7,Markup!$F$9,IF($F73=Markup!$H$7,Markup!$I$9,"")))) ->  | AD73: =IF($F73="","",IF($F73=Markup!$B$7,Markup!$C$10,IF($F73=Markup!$E$7,Markup!$F$10,IF($F73=Markup!$H$7,Markup!$I$10,"")))) ->  | AE73: =IF($F73="","",IF($F73=Markup!$B$7,Markup!$C$11,IF($F73=Markup!$E$7,Markup!$F$11,IF($F73=Markup!$H$7,Markup!$I$11,"")))) ->  | AF73: =IF($F73="","",IF($F73=Markup!$B$7,Markup!$C$12,IF($F73=Markup!$E$7,Markup!$F$12,IF($F73=Markup!$H$7,Markup!$I$12,"")))) -> 
I74: =IF(C74="","",Markup!$H$3*E74) ->  | AC74: =IF($F74="","",IF($F74=Markup!$B$7,Markup!$C$9,IF($F74=Markup!$E$7,Markup!$F$9,IF($F74=Markup!$H$7,Markup!$I$9,"")))) ->  | AD74: =IF($F74="","",IF($F74=Markup!$B$7,Markup!$C$10,IF($F74=Markup!$E$7,Markup!$F$10,IF($F74=Markup!$H$7,Markup!$I$10,"")))) ->  | AE74: =IF($F74="","",IF($F74=Markup!$B$7,Markup!$C$11,IF($F74=Markup!$E$7,Markup!$F$11,IF($F74=Markup!$H$7,Markup!$I$11,"")))) ->  | AF74: =IF($F74="","",IF($F74=Markup!$B$7,Markup!$C$12,IF($F74=Markup!$E$7,Markup!$F$12,IF($F74=Markup!$H$7,Markup!$I$12,"")))) -> 
I75: =IF(C75="","",Markup!$H$3*E75) ->  | AC75: =IF($F75="","",IF($F75=Markup!$B$7,Markup!$C$9,IF($F75=Markup!$E$7,Markup!$F$9,IF($F75=Markup!$H$7,Markup!$I$9,"")))) ->  | AD75: =IF($F75="","",IF($F75=Markup!$B$7,Markup!$C$10,IF($F75=Markup!$E$7,Markup!$F$10,IF($F75=Markup!$H$7,Markup!$I$10,"")))) ->  | AE75: =IF($F75="","",IF($F75=Markup!$B$7,Markup!$C$11,IF($F75=Markup!$E$7,Markup!$F$11,IF($F75=Markup!$H$7,Markup!$I$11,"")))) ->  | AF75: =IF($F75="","",IF($F75=Markup!$B$7,Markup!$C$12,IF($F75=Markup!$E$7,Markup!$F$12,IF($F75=Markup!$H$7,Markup!$I$12,"")))) -> 
I76: =IF(C76="","",Markup!$H$3*E76) ->  | AC76: =IF($F76="","",IF($F76=Markup!$B$7,Markup!$C$9,IF($F76=Markup!$E$7,Markup!$F$9,IF($F76=Markup!$H$7,Markup!$I$9,"")))) ->  | AD76: =IF($F76="","",IF($F76=Markup!$B$7,Markup!$C$10,IF($F76=Markup!$E$7,Markup!$F$10,IF($F76=Markup!$H$7,Markup!$I$10,"")))) ->  | AE76: =IF($F76="","",IF($F76=Markup!$B$7,Markup!$C$11,IF($F76=Markup!$E$7,Markup!$F$11,IF($F76=Markup!$H$7,Markup!$I$11,"")))) ->  | AF76: =IF($F76="","",IF($F76=Markup!$B$7,Markup!$C$12,IF($F76=Markup!$E$7,Markup!$F$12,IF($F76=Markup!$H$7,Markup!$I$12,"")))) -> 
I77: =IF(C77="","",Markup!$H$3*E77) ->  | AC77: =IF($F77="","",IF($F77=Markup!$B$7,Markup!$C$9,IF($F77=Markup!$E$7,Markup!$F$9,IF($F77=Markup!$H$7,Markup!$I$9,"")))) ->  | AD77: =IF($F77="","",IF($F77=Markup!$B$7,Markup!$C$10,IF($F77=Markup!$E$7,Markup!$F$10,IF($F77=Markup!$H$7,Markup!$I$10,"")))) ->  | AE77: =IF($F77="","",IF($F77=Markup!$B$7,Markup!$C$11,IF($F77=Markup!$E$7,Markup!$F$11,IF($F77=Markup!$H$7,Markup!$I$11,"")))) ->  | AF77: =IF($F77="","",IF($F77=Markup!$B$7,Markup!$C$12,IF($F77=Markup!$E$7,Markup!$F$12,IF($F77=Markup!$H$7,Markup!$I$12,"")))) -> 
I78: =IF(C78="","",Markup!$H$3*E78) ->  | AC78: =IF($F78="","",IF($F78=Markup!$B$7,Markup!$C$9,IF($F78=Markup!$E$7,Markup!$F$9,IF($F78=Markup!$H$7,Markup!$I$9,"")))) ->  | AD78: =IF($F78="","",IF($F78=Markup!$B$7,Markup!$C$10,IF($F78=Markup!$E$7,Markup!$F$10,IF($F78=Markup!$H$7,Markup!$I$10,"")))) ->  | AE78: =IF($F78="","",IF($F78=Markup!$B$7,Markup!$C$11,IF($F78=Markup!$E$7,Markup!$F$11,IF($F78=Markup!$H$7,Markup!$I$11,"")))) ->  | AF78: =IF($F78="","",IF($F78=Markup!$B$7,Markup!$C$12,IF($F78=Markup!$E$7,Markup!$F$12,IF($F78=Markup!$H$7,Markup!$I$12,"")))) -> 
I79: =IF(C79="","",Markup!$H$3*E79) ->  | AC79: =IF($F79="","",IF($F79=Markup!$B$7,Markup!$C$9,IF($F79=Markup!$E$7,Markup!$F$9,IF($F79=Markup!$H$7,Markup!$I$9,"")))) ->  | AD79: =IF($F79="","",IF($F79=Markup!$B$7,Markup!$C$10,IF($F79=Markup!$E$7,Markup!$F$10,IF($F79=Markup!$H$7,Markup!$I$10,"")))) ->  | AE79: =IF($F79="","",IF($F79=Markup!$B$7,Markup!$C$11,IF($F79=Markup!$E$7,Markup!$F$11,IF($F79=Markup!$H$7,Markup!$I$11,"")))) ->  | AF79: =IF($F79="","",IF($F79=Markup!$B$7,Markup!$C$12,IF($F79=Markup!$E$7,Markup!$F$12,IF($F79=Markup!$H$7,Markup!$I$12,"")))) -> 
I80: =IF(C80="","",Markup!$H$3*E80) ->  | AC80: =IF($F80="","",IF($F80=Markup!$B$7,Markup!$C$9,IF($F80=Markup!$E$7,Markup!$F$9,IF($F80=Markup!$H$7,Markup!$I$9,"")))) ->  | AD80: =IF($F80="","",IF($F80=Markup!$B$7,Markup!$C$10,IF($F80=Markup!$E$7,Markup!$F$10,IF($F80=Markup!$H$7,Markup!$I$10,"")))) ->  | AE80: =IF($F80="","",IF($F80=Markup!$B$7,Markup!$C$11,IF($F80=Markup!$E$7,Markup!$F$11,IF($F80=Markup!$H$7,Markup!$I$11,"")))) ->  | AF80: =IF($F80="","",IF($F80=Markup!$B$7,Markup!$C$12,IF($F80=Markup!$E$7,Markup!$F$12,IF($F80=Markup!$H$7,Markup!$I$12,"")))) -> 
I81: =IF(C81="","",Markup!$H$3*E81) ->  | AC81: =IF($F81="","",IF($F81=Markup!$B$7,Markup!$C$9,IF($F81=Markup!$E$7,Markup!$F$9,IF($F81=Markup!$H$7,Markup!$I$9,"")))) ->  | AD81: =IF($F81="","",IF($F81=Markup!$B$7,Markup!$C$10,IF($F81=Markup!$E$7,Markup!$F$10,IF($F81=Markup!$H$7,Markup!$I$10,"")))) ->  | AE81: =IF($F81="","",IF($F81=Markup!$B$7,Markup!$C$11,IF($F81=Markup!$E$7,Markup!$F$11,IF($F81=Markup!$H$7,Markup!$I$11,"")))) ->  | AF81: =IF($F81="","",IF($F81=Markup!$B$7,Markup!$C$12,IF($F81=Markup!$E$7,Markup!$F$12,IF($F81=Markup!$H$7,Markup!$I$12,"")))) -> 
I82: =IF(C82="","",Markup!$H$3*E82) ->  | AC82: =IF($F82="","",IF($F82=Markup!$B$7,Markup!$C$9,IF($F82=Markup!$E$7,Markup!$F$9,IF($F82=Markup!$H$7,Markup!$I$9,"")))) ->  | AD82: =IF($F82="","",IF($F82=Markup!$B$7,Markup!$C$10,IF($F82=Markup!$E$7,Markup!$F$10,IF($F82=Markup!$H$7,Markup!$I$10,"")))) ->  | AE82: =IF($F82="","",IF($F82=Markup!$B$7,Markup!$C$11,IF($F82=Markup!$E$7,Markup!$F$11,IF($F82=Markup!$H$7,Markup!$I$11,"")))) ->  | AF82: =IF($F82="","",IF($F82=Markup!$B$7,Markup!$C$12,IF($F82=Markup!$E$7,Markup!$F$12,IF($F82=Markup!$H$7,Markup!$I$12,"")))) -> 
I83: =IF(C83="","",Markup!$H$3*E83) ->  | AC83: =IF($F83="","",IF($F83=Markup!$B$7,Markup!$C$9,IF($F83=Markup!$E$7,Markup!$F$9,IF($F83=Markup!$H$7,Markup!$I$9,"")))) ->  | AD83: =IF($F83="","",IF($F83=Markup!$B$7,Markup!$C$10,IF($F83=Markup!$E$7,Markup!$F$10,IF($F83=Markup!$H$7,Markup!$I$10,"")))) ->  | AE83: =IF($F83="","",IF($F83=Markup!$B$7,Markup!$C$11,IF($F83=Markup!$E$7,Markup!$F$11,IF($F83=Markup!$H$7,Markup!$I$11,"")))) ->  | AF83: =IF($F83="","",IF($F83=Markup!$B$7,Markup!$C$12,IF($F83=Markup!$E$7,Markup!$F$12,IF($F83=Markup!$H$7,Markup!$I$12,"")))) -> 
I84: =IF(C84="","",Markup!$H$3*E84) ->  | AC84: =IF($F84="","",IF($F84=Markup!$B$7,Markup!$C$9,IF($F84=Markup!$E$7,Markup!$F$9,IF($F84=Markup!$H$7,Markup!$I$9,"")))) ->  | AD84: =IF($F84="","",IF($F84=Markup!$B$7,Markup!$C$10,IF($F84=Markup!$E$7,Markup!$F$10,IF($F84=Markup!$H$7,Markup!$I$10,"")))) ->  | AE84: =IF($F84="","",IF($F84=Markup!$B$7,Markup!$C$11,IF($F84=Markup!$E$7,Markup!$F$11,IF($F84=Markup!$H$7,Markup!$I$11,"")))) ->  | AF84: =IF($F84="","",IF($F84=Markup!$B$7,Markup!$C$12,IF($F84=Markup!$E$7,Markup!$F$12,IF($F84=Markup!$H$7,Markup!$I$12,"")))) -> 
I85: =IF(C85="","",Markup!$H$3*E85) ->  | AC85: =IF($F85="","",IF($F85=Markup!$B$7,Markup!$C$9,IF($F85=Markup!$E$7,Markup!$F$9,IF($F85=Markup!$H$7,Markup!$I$9,"")))) ->  | AD85: =IF($F85="","",IF($F85=Markup!$B$7,Markup!$C$10,IF($F85=Markup!$E$7,Markup!$F$10,IF($F85=Markup!$H$7,Markup!$I$10,"")))) ->  | AE85: =IF($F85="","",IF($F85=Markup!$B$7,Markup!$C$11,IF($F85=Markup!$E$7,Markup!$F$11,IF($F85=Markup!$H$7,Markup!$I$11,"")))) ->  | AF85: =IF($F85="","",IF($F85=Markup!$B$7,Markup!$C$12,IF($F85=Markup!$E$7,Markup!$F$12,IF($F85=Markup!$H$7,Markup!$I$12,"")))) -> 
I86: =IF(C86="","",Markup!$H$3*E86) ->  | AC86: =IF($F86="","",IF($F86=Markup!$B$7,Markup!$C$9,IF($F86=Markup!$E$7,Markup!$F$9,IF($F86=Markup!$H$7,Markup!$I$9,"")))) ->  | AD86: =IF($F86="","",IF($F86=Markup!$B$7,Markup!$C$10,IF($F86=Markup!$E$7,Markup!$F$10,IF($F86=Markup!$H$7,Markup!$I$10,"")))) ->  | AE86: =IF($F86="","",IF($F86=Markup!$B$7,Markup!$C$11,IF($F86=Markup!$E$7,Markup!$F$11,IF($F86=Markup!$H$7,Markup!$I$11,"")))) ->  | AF86: =IF($F86="","",IF($F86=Markup!$B$7,Markup!$C$12,IF($F86=Markup!$E$7,Markup!$F$12,IF($F86=Markup!$H$7,Markup!$I$12,"")))) -> 
I87: =IF(C87="","",Markup!$H$3*E87) ->  | AC87: =IF($F87="","",IF($F87=Markup!$B$7,Markup!$C$9,IF($F87=Markup!$E$7,Markup!$F$9,IF($F87=Markup!$H$7,Markup!$I$9,"")))) ->  | AD87: =IF($F87="","",IF($F87=Markup!$B$7,Markup!$C$10,IF($F87=Markup!$E$7,Markup!$F$10,IF($F87=Markup!$H$7,Markup!$I$10,"")))) ->  | AE87: =IF($F87="","",IF($F87=Markup!$B$7,Markup!$C$11,IF($F87=Markup!$E$7,Markup!$F$11,IF($F87=Markup!$H$7,Markup!$I$11,"")))) ->  | AF87: =IF($F87="","",IF($F87=Markup!$B$7,Markup!$C$12,IF($F87=Markup!$E$7,Markup!$F$12,IF($F87=Markup!$H$7,Markup!$I$12,"")))) -> 
I88: =IF(C88="","",Markup!$H$3*E88) ->  | AC88: =IF($F88="","",IF($F88=Markup!$B$7,Markup!$C$9,IF($F88=Markup!$E$7,Markup!$F$9,IF($F88=Markup!$H$7,Markup!$I$9,"")))) ->  | AD88: =IF($F88="","",IF($F88=Markup!$B$7,Markup!$C$10,IF($F88=Markup!$E$7,Markup!$F$10,IF($F88=Markup!$H$7,Markup!$I$10,"")))) ->  | AE88: =IF($F88="","",IF($F88=Markup!$B$7,Markup!$C$11,IF($F88=Markup!$E$7,Markup!$F$11,IF($F88=Markup!$H$7,Markup!$I$11,"")))) ->  | AF88: =IF($F88="","",IF($F88=Markup!$B$7,Markup!$C$12,IF($F88=Markup!$E$7,Markup!$F$12,IF($F88=Markup!$H$7,Markup!$I$12,"")))) -> 
I89: =IF(C89="","",Markup!$H$3*E89) ->  | AC89: =IF($F89="","",IF($F89=Markup!$B$7,Markup!$C$9,IF($F89=Markup!$E$7,Markup!$F$9,IF($F89=Markup!$H$7,Markup!$I$9,"")))) ->  | AD89: =IF($F89="","",IF($F89=Markup!$B$7,Markup!$C$10,IF($F89=Markup!$E$7,Markup!$F$10,IF($F89=Markup!$H$7,Markup!$I$10,"")))) ->  | AE89: =IF($F89="","",IF($F89=Markup!$B$7,Markup!$C$11,IF($F89=Markup!$E$7,Markup!$F$11,IF($F89=Markup!$H$7,Markup!$I$11,"")))) ->  | AF89: =IF($F89="","",IF($F89=Markup!$B$7,Markup!$C$12,IF($F89=Markup!$E$7,Markup!$F$12,IF($F89=Markup!$H$7,Markup!$I$12,"")))) -> 
I90: =IF(C90="","",Markup!$H$3*E90) ->  | AC90: =IF($F90="","",IF($F90=Markup!$B$7,Markup!$C$9,IF($F90=Markup!$E$7,Markup!$F$9,IF($F90=Markup!$H$7,Markup!$I$9,"")))) ->  | AD90: =IF($F90="","",IF($F90=Markup!$B$7,Markup!$C$10,IF($F90=Markup!$E$7,Markup!$F$10,IF($F90=Markup!$H$7,Markup!$I$10,"")))) ->  | AE90: =IF($F90="","",IF($F90=Markup!$B$7,Markup!$C$11,IF($F90=Markup!$E$7,Markup!$F$11,IF($F90=Markup!$H$7,Markup!$I$11,"")))) ->  | AF90: =IF($F90="","",IF($F90=Markup!$B$7,Markup!$C$12,IF($F90=Markup!$E$7,Markup!$F$12,IF($F90=Markup!$H$7,Markup!$I$12,"")))) -> 
I91: =IF(C91="","",Markup!$H$3*E91) ->  | AC91: =IF($F91="","",IF($F91=Markup!$B$7,Markup!$C$9,IF($F91=Markup!$E$7,Markup!$F$9,IF($F91=Markup!$H$7,Markup!$I$9,"")))) ->  | AD91: =IF($F91="","",IF($F91=Markup!$B$7,Markup!$C$10,IF($F91=Markup!$E$7,Markup!$F$10,IF($F91=Markup!$H$7,Markup!$I$10,"")))) ->  | AE91: =IF($F91="","",IF($F91=Markup!$B$7,Markup!$C$11,IF($F91=Markup!$E$7,Markup!$F$11,IF($F91=Markup!$H$7,Markup!$I$11,"")))) ->  | AF91: =IF($F91="","",IF($F91=Markup!$B$7,Markup!$C$12,IF($F91=Markup!$E$7,Markup!$F$12,IF($F91=Markup!$H$7,Markup!$I$12,"")))) -> 
I92: =IF(C92="","",Markup!$H$3*E92) ->  | AC92: =IF($F92="","",IF($F92=Markup!$B$7,Markup!$C$9,IF($F92=Markup!$E$7,Markup!$F$9,IF($F92=Markup!$H$7,Markup!$I$9,"")))) ->  | AD92: =IF($F92="","",IF($F92=Markup!$B$7,Markup!$C$10,IF($F92=Markup!$E$7,Markup!$F$10,IF($F92=Markup!$H$7,Markup!$I$10,"")))) ->  | AE92: =IF($F92="","",IF($F92=Markup!$B$7,Markup!$C$11,IF($F92=Markup!$E$7,Markup!$F$11,IF($F92=Markup!$H$7,Markup!$I$11,"")))) ->  | AF92: =IF($F92="","",IF($F92=Markup!$B$7,Markup!$C$12,IF($F92=Markup!$E$7,Markup!$F$12,IF($F92=Markup!$H$7,Markup!$I$12,"")))) -> 
I93: =IF(C93="","",Markup!$H$3*E93) ->  | AC93: =IF($F93="","",IF($F93=Markup!$B$7,Markup!$C$9,IF($F93=Markup!$E$7,Markup!$F$9,IF($F93=Markup!$H$7,Markup!$I$9,"")))) ->  | AD93: =IF($F93="","",IF($F93=Markup!$B$7,Markup!$C$10,IF($F93=Markup!$E$7,Markup!$F$10,IF($F93=Markup!$H$7,Markup!$I$10,"")))) ->  | AE93: =IF($F93="","",IF($F93=Markup!$B$7,Markup!$C$11,IF($F93=Markup!$E$7,Markup!$F$11,IF($F93=Markup!$H$7,Markup!$I$11,"")))) ->  | AF93: =IF($F93="","",IF($F93=Markup!$B$7,Markup!$C$12,IF($F93=Markup!$E$7,Markup!$F$12,IF($F93=Markup!$H$7,Markup!$I$12,"")))) -> 
I94: =IF(C94="","",Markup!$H$3*E94) ->  | AC94: =IF($F94="","",IF($F94=Markup!$B$7,Markup!$C$9,IF($F94=Markup!$E$7,Markup!$F$9,IF($F94=Markup!$H$7,Markup!$I$9,"")))) ->  | AD94: =IF($F94="","",IF($F94=Markup!$B$7,Markup!$C$10,IF($F94=Markup!$E$7,Markup!$F$10,IF($F94=Markup!$H$7,Markup!$I$10,"")))) ->  | AE94: =IF($F94="","",IF($F94=Markup!$B$7,Markup!$C$11,IF($F94=Markup!$E$7,Markup!$F$11,IF($F94=Markup!$H$7,Markup!$I$11,"")))) ->  | AF94: =IF($F94="","",IF($F94=Markup!$B$7,Markup!$C$12,IF($F94=Markup!$E$7,Markup!$F$12,IF($F94=Markup!$H$7,Markup!$I$12,"")))) -> 
I95: =IF(C95="","",Markup!$H$3*E95) ->  | AC95: =IF($F95="","",IF($F95=Markup!$B$7,Markup!$C$9,IF($F95=Markup!$E$7,Markup!$F$9,IF($F95=Markup!$H$7,Markup!$I$9,"")))) ->  | AD95: =IF($F95="","",IF($F95=Markup!$B$7,Markup!$C$10,IF($F95=Markup!$E$7,Markup!$F$10,IF($F95=Markup!$H$7,Markup!$I$10,"")))) ->  | AE95: =IF($F95="","",IF($F95=Markup!$B$7,Markup!$C$11,IF($F95=Markup!$E$7,Markup!$F$11,IF($F95=Markup!$H$7,Markup!$I$11,"")))) ->  | AF95: =IF($F95="","",IF($F95=Markup!$B$7,Markup!$C$12,IF($F95=Markup!$E$7,Markup!$F$12,IF($F95=Markup!$H$7,Markup!$I$12,"")))) -> 
I96: =IF(C96="","",Markup!$H$3*E96) ->  | AC96: =IF($F96="","",IF($F96=Markup!$B$7,Markup!$C$9,IF($F96=Markup!$E$7,Markup!$F$9,IF($F96=Markup!$H$7,Markup!$I$9,"")))) ->  | AD96: =IF($F96="","",IF($F96=Markup!$B$7,Markup!$C$10,IF($F96=Markup!$E$7,Markup!$F$10,IF($F96=Markup!$H$7,Markup!$I$10,"")))) ->  | AE96: =IF($F96="","",IF($F96=Markup!$B$7,Markup!$C$11,IF($F96=Markup!$E$7,Markup!$F$11,IF($F96=Markup!$H$7,Markup!$I$11,"")))) ->  | AF96: =IF($F96="","",IF($F96=Markup!$B$7,Markup!$C$12,IF($F96=Markup!$E$7,Markup!$F$12,IF($F96=Markup!$H$7,Markup!$I$12,"")))) -> 
I97: =IF(C97="","",Markup!$H$3*E97) ->  | AC97: =IF($F97="","",IF($F97=Markup!$B$7,Markup!$C$9,IF($F97=Markup!$E$7,Markup!$F$9,IF($F97=Markup!$H$7,Markup!$I$9,"")))) ->  | AD97: =IF($F97="","",IF($F97=Markup!$B$7,Markup!$C$10,IF($F97=Markup!$E$7,Markup!$F$10,IF($F97=Markup!$H$7,Markup!$I$10,"")))) ->  | AE97: =IF($F97="","",IF($F97=Markup!$B$7,Markup!$C$11,IF($F97=Markup!$E$7,Markup!$F$11,IF($F97=Markup!$H$7,Markup!$I$11,"")))) ->  | AF97: =IF($F97="","",IF($F97=Markup!$B$7,Markup!$C$12,IF($F97=Markup!$E$7,Markup!$F$12,IF($F97=Markup!$H$7,Markup!$I$12,"")))) -> 
I98: =IF(C98="","",Markup!$H$3*E98) ->  | AC98: =IF($F98="","",IF($F98=Markup!$B$7,Markup!$C$9,IF($F98=Markup!$E$7,Markup!$F$9,IF($F98=Markup!$H$7,Markup!$I$9,"")))) ->  | AD98: =IF($F98="","",IF($F98=Markup!$B$7,Markup!$C$10,IF($F98=Markup!$E$7,Markup!$F$10,IF($F98=Markup!$H$7,Markup!$I$10,"")))) ->  | AE98: =IF($F98="","",IF($F98=Markup!$B$7,Markup!$C$11,IF($F98=Markup!$E$7,Markup!$F$11,IF($F98=Markup!$H$7,Markup!$I$11,"")))) ->  | AF98: =IF($F98="","",IF($F98=Markup!$B$7,Markup!$C$12,IF($F98=Markup!$E$7,Markup!$F$12,IF($F98=Markup!$H$7,Markup!$I$12,"")))) -> 
I99: =IF(C99="","",Markup!$H$3*E99) ->  | AC99: =IF($F99="","",IF($F99=Markup!$B$7,Markup!$C$9,IF($F99=Markup!$E$7,Markup!$F$9,IF($F99=Markup!$H$7,Markup!$I$9,"")))) ->  | AD99: =IF($F99="","",IF($F99=Markup!$B$7,Markup!$C$10,IF($F99=Markup!$E$7,Markup!$F$10,IF($F99=Markup!$H$7,Markup!$I$10,"")))) ->  | AE99: =IF($F99="","",IF($F99=Markup!$B$7,Markup!$C$11,IF($F99=Markup!$E$7,Markup!$F$11,IF($F99=Markup!$H$7,Markup!$I$11,"")))) ->  | AF99: =IF($F99="","",IF($F99=Markup!$B$7,Markup!$C$12,IF($F99=Markup!$E$7,Markup!$F$12,IF($F99=Markup!$H$7,Markup!$I$12,"")))) -> 
I100: =IF(C100="","",Markup!$H$3*E100) ->  | AC100: =IF($F100="","",IF($F100=Markup!$B$7,Markup!$C$9,IF($F100=Markup!$E$7,Markup!$F$9,IF($F100=Markup!$H$7,Markup!$I$9,"")))) ->  | AD100: =IF($F100="","",IF($F100=Markup!$B$7,Markup!$C$10,IF($F100=Markup!$E$7,Markup!$F$10,IF($F100=Markup!$H$7,Markup!$I$10,"")))) ->  | AE100: =IF($F100="","",IF($F100=Markup!$B$7,Markup!$C$11,IF($F100=Markup!$E$7,Markup!$F$11,IF($F100=Markup!$H$7,Markup!$I$11,"")))) ->  | AF100: =IF($F100="","",IF($F100=Markup!$B$7,Markup!$C$12,IF($F100=Markup!$E$7,Markup!$F$12,IF($F100=Markup!$H$7,Markup!$I$12,"")))) -> 
I101: =IF(C101="","",Markup!$H$3*E101) ->  | AC101: =IF($F101="","",IF($F101=Markup!$B$7,Markup!$C$9,IF($F101=Markup!$E$7,Markup!$F$9,IF($F101=Markup!$H$7,Markup!$I$9,"")))) ->  | AD101: =IF($F101="","",IF($F101=Markup!$B$7,Markup!$C$10,IF($F101=Markup!$E$7,Markup!$F$10,IF($F101=Markup!$H$7,Markup!$I$10,"")))) ->  | AE101: =IF($F101="","",IF($F101=Markup!$B$7,Markup!$C$11,IF($F101=Markup!$E$7,Markup!$F$11,IF($F101=Markup!$H$7,Markup!$I$11,"")))) ->  | AF101: =IF($F101="","",IF($F101=Markup!$B$7,Markup!$C$12,IF($F101=Markup!$E$7,Markup!$F$12,IF($F101=Markup!$H$7,Markup!$I$12,"")))) -> 
I102: =IF(C102="","",Markup!$H$3*E102) ->  | AC102: =IF($F102="","",IF($F102=Markup!$B$7,Markup!$C$9,IF($F102=Markup!$E$7,Markup!$F$9,IF($F102=Markup!$H$7,Markup!$I$9,"")))) ->  | AD102: =IF($F102="","",IF($F102=Markup!$B$7,Markup!$C$10,IF($F102=Markup!$E$7,Markup!$F$10,IF($F102=Markup!$H$7,Markup!$I$10,"")))) ->  | AE102: =IF($F102="","",IF($F102=Markup!$B$7,Markup!$C$11,IF($F102=Markup!$E$7,Markup!$F$11,IF($F102=Markup!$H$7,Markup!$I$11,"")))) ->  | AF102: =IF($F102="","",IF($F102=Markup!$B$7,Markup!$C$12,IF($F102=Markup!$E$7,Markup!$F$12,IF($F102=Markup!$H$7,Markup!$I$12,"")))) -> 
I103: =IF(C103="","",Markup!$H$3*E103) ->  | AC103: =IF($F103="","",IF($F103=Markup!$B$7,Markup!$C$9,IF($F103=Markup!$E$7,Markup!$F$9,IF($F103=Markup!$H$7,Markup!$I$9,"")))) ->  | AD103: =IF($F103="","",IF($F103=Markup!$B$7,Markup!$C$10,IF($F103=Markup!$E$7,Markup!$F$10,IF($F103=Markup!$H$7,Markup!$I$10,"")))) ->  | AE103: =IF($F103="","",IF($F103=Markup!$B$7,Markup!$C$11,IF($F103=Markup!$E$7,Markup!$F$11,IF($F103=Markup!$H$7,Markup!$I$11,"")))) ->  | AF103: =IF($F103="","",IF($F103=Markup!$B$7,Markup!$C$12,IF($F103=Markup!$E$7,Markup!$F$12,IF($F103=Markup!$H$7,Markup!$I$12,"")))) -> 
I104: =IF(C104="","",Markup!$H$3*E104) ->  | AC104: =IF($F104="","",IF($F104=Markup!$B$7,Markup!$C$9,IF($F104=Markup!$E$7,Markup!$F$9,IF($F104=Markup!$H$7,Markup!$I$9,"")))) ->  | AD104: =IF($F104="","",IF($F104=Markup!$B$7,Markup!$C$10,IF($F104=Markup!$E$7,Markup!$F$10,IF($F104=Markup!$H$7,Markup!$I$10,"")))) ->  | AE104: =IF($F104="","",IF($F104=Markup!$B$7,Markup!$C$11,IF($F104=Markup!$E$7,Markup!$F$11,IF($F104=Markup!$H$7,Markup!$I$11,"")))) ->  | AF104: =IF($F104="","",IF($F104=Markup!$B$7,Markup!$C$12,IF($F104=Markup!$E$7,Markup!$F$12,IF($F104=Markup!$H$7,Markup!$I$12,"")))) -> 
I105: =IF(C105="","",Markup!$H$3*E105) ->  | AC105: =IF($F105="","",IF($F105=Markup!$B$7,Markup!$C$9,IF($F105=Markup!$E$7,Markup!$F$9,IF($F105=Markup!$H$7,Markup!$I$9,"")))) ->  | AD105: =IF($F105="","",IF($F105=Markup!$B$7,Markup!$C$10,IF($F105=Markup!$E$7,Markup!$F$10,IF($F105=Markup!$H$7,Markup!$I$10,"")))) ->  | AE105: =IF($F105="","",IF($F105=Markup!$B$7,Markup!$C$11,IF($F105=Markup!$E$7,Markup!$F$11,IF($F105=Markup!$H$7,Markup!$I$11,"")))) ->  | AF105: =IF($F105="","",IF($F105=Markup!$B$7,Markup!$C$12,IF($F105=Markup!$E$7,Markup!$F$12,IF($F105=Markup!$H$7,Markup!$I$12,"")))) -> 
I106: =IF(C106="","",Markup!$H$3*E106) ->  | AC106: =IF($F106="","",IF($F106=Markup!$B$7,Markup!$C$9,IF($F106=Markup!$E$7,Markup!$F$9,IF($F106=Markup!$H$7,Markup!$I$9,"")))) ->  | AD106: =IF($F106="","",IF($F106=Markup!$B$7,Markup!$C$10,IF($F106=Markup!$E$7,Markup!$F$10,IF($F106=Markup!$H$7,Markup!$I$10,"")))) ->  | AE106: =IF($F106="","",IF($F106=Markup!$B$7,Markup!$C$11,IF($F106=Markup!$E$7,Markup!$F$11,IF($F106=Markup!$H$7,Markup!$I$11,"")))) ->  | AF106: =IF($F106="","",IF($F106=Markup!$B$7,Markup!$C$12,IF($F106=Markup!$E$7,Markup!$F$12,IF($F106=Markup!$H$7,Markup!$I$12,"")))) -> 
I107: =IF(C107="","",Markup!$H$3*E107) ->  | AC107: =IF($F107="","",IF($F107=Markup!$B$7,Markup!$C$9,IF($F107=Markup!$E$7,Markup!$F$9,IF($F107=Markup!$H$7,Markup!$I$9,"")))) ->  | AD107: =IF($F107="","",IF($F107=Markup!$B$7,Markup!$C$10,IF($F107=Markup!$E$7,Markup!$F$10,IF($F107=Markup!$H$7,Markup!$I$10,"")))) ->  | AE107: =IF($F107="","",IF($F107=Markup!$B$7,Markup!$C$11,IF($F107=Markup!$E$7,Markup!$F$11,IF($F107=Markup!$H$7,Markup!$I$11,"")))) ->  | AF107: =IF($F107="","",IF($F107=Markup!$B$7,Markup!$C$12,IF($F107=Markup!$E$7,Markup!$F$12,IF($F107=Markup!$H$7,Markup!$I$12,"")))) -> 
I108: =IF(C108="","",Markup!$H$3*E108) ->  | AC108: =IF($F108="","",IF($F108=Markup!$B$7,Markup!$C$9,IF($F108=Markup!$E$7,Markup!$F$9,IF($F108=Markup!$H$7,Markup!$I$9,"")))) ->  | AD108: =IF($F108="","",IF($F108=Markup!$B$7,Markup!$C$10,IF($F108=Markup!$E$7,Markup!$F$10,IF($F108=Markup!$H$7,Markup!$I$10,"")))) ->  | AE108: =IF($F108="","",IF($F108=Markup!$B$7,Markup!$C$11,IF($F108=Markup!$E$7,Markup!$F$11,IF($F108=Markup!$H$7,Markup!$I$11,"")))) ->  | AF108: =IF($F108="","",IF($F108=Markup!$B$7,Markup!$C$12,IF($F108=Markup!$E$7,Markup!$F$12,IF($F108=Markup!$H$7,Markup!$I$12,"")))) -> 
I109: =IF(C109="","",Markup!$H$3*E109) ->  | AC109: =IF($F109="","",IF($F109=Markup!$B$7,Markup!$C$9,IF($F109=Markup!$E$7,Markup!$F$9,IF($F109=Markup!$H$7,Markup!$I$9,"")))) ->  | AD109: =IF($F109="","",IF($F109=Markup!$B$7,Markup!$C$10,IF($F109=Markup!$E$7,Markup!$F$10,IF($F109=Markup!$H$7,Markup!$I$10,"")))) ->  | AE109: =IF($F109="","",IF($F109=Markup!$B$7,Markup!$C$11,IF($F109=Markup!$E$7,Markup!$F$11,IF($F109=Markup!$H$7,Markup!$I$11,"")))) ->  | AF109: =IF($F109="","",IF($F109=Markup!$B$7,Markup!$C$12,IF($F109=Markup!$E$7,Markup!$F$12,IF($F109=Markup!$H$7,Markup!$I$12,"")))) -> 
I110: =IF(C110="","",Markup!$H$3*E110) ->  | AC110: =IF($F110="","",IF($F110=Markup!$B$7,Markup!$C$9,IF($F110=Markup!$E$7,Markup!$F$9,IF($F110=Markup!$H$7,Markup!$I$9,"")))) ->  | AD110: =IF($F110="","",IF($F110=Markup!$B$7,Markup!$C$10,IF($F110=Markup!$E$7,Markup!$F$10,IF($F110=Markup!$H$7,Markup!$I$10,"")))) ->  | AE110: =IF($F110="","",IF($F110=Markup!$B$7,Markup!$C$11,IF($F110=Markup!$E$7,Markup!$F$11,IF($F110=Markup!$H$7,Markup!$I$11,"")))) ->  | AF110: =IF($F110="","",IF($F110=Markup!$B$7,Markup!$C$12,IF($F110=Markup!$E$7,Markup!$F$12,IF($F110=Markup!$H$7,Markup!$I$12,"")))) -> 
I111: =IF(C111="","",Markup!$H$3*E111) ->  | AC111: =IF($F111="","",IF($F111=Markup!$B$7,Markup!$C$9,IF($F111=Markup!$E$7,Markup!$F$9,IF($F111=Markup!$H$7,Markup!$I$9,"")))) ->  | AD111: =IF($F111="","",IF($F111=Markup!$B$7,Markup!$C$10,IF($F111=Markup!$E$7,Markup!$F$10,IF($F111=Markup!$H$7,Markup!$I$10,"")))) ->  | AE111: =IF($F111="","",IF($F111=Markup!$B$7,Markup!$C$11,IF($F111=Markup!$E$7,Markup!$F$11,IF($F111=Markup!$H$7,Markup!$I$11,"")))) ->  | AF111: =IF($F111="","",IF($F111=Markup!$B$7,Markup!$C$12,IF($F111=Markup!$E$7,Markup!$F$12,IF($F111=Markup!$H$7,Markup!$I$12,"")))) -> 
I112: =IF(C112="","",Markup!$H$3*E112) ->  | AC112: =IF($F112="","",IF($F112=Markup!$B$7,Markup!$C$9,IF($F112=Markup!$E$7,Markup!$F$9,IF($F112=Markup!$H$7,Markup!$I$9,"")))) ->  | AD112: =IF($F112="","",IF($F112=Markup!$B$7,Markup!$C$10,IF($F112=Markup!$E$7,Markup!$F$10,IF($F112=Markup!$H$7,Markup!$I$10,"")))) ->  | AE112: =IF($F112="","",IF($F112=Markup!$B$7,Markup!$C$11,IF($F112=Markup!$E$7,Markup!$F$11,IF($F112=Markup!$H$7,Markup!$I$11,"")))) ->  | AF112: =IF($F112="","",IF($F112=Markup!$B$7,Markup!$C$12,IF($F112=Markup!$E$7,Markup!$F$12,IF($F112=Markup!$H$7,Markup!$I$12,"")))) -> 
I113: =IF(C113="","",Markup!$H$3*E113) ->  | AC113: =IF($F113="","",IF($F113=Markup!$B$7,Markup!$C$9,IF($F113=Markup!$E$7,Markup!$F$9,IF($F113=Markup!$H$7,Markup!$I$9,"")))) ->  | AD113: =IF($F113="","",IF($F113=Markup!$B$7,Markup!$C$10,IF($F113=Markup!$E$7,Markup!$F$10,IF($F113=Markup!$H$7,Markup!$I$10,"")))) ->  | AE113: =IF($F113="","",IF($F113=Markup!$B$7,Markup!$C$11,IF($F113=Markup!$E$7,Markup!$F$11,IF($F113=Markup!$H$7,Markup!$I$11,"")))) ->  | AF113: =IF($F113="","",IF($F113=Markup!$B$7,Markup!$C$12,IF($F113=Markup!$E$7,Markup!$F$12,IF($F113=Markup!$H$7,Markup!$I$12,"")))) -> 
I114: =IF(C114="","",Markup!$H$3*E114) ->  | AC114: =IF($F114="","",IF($F114=Markup!$B$7,Markup!$C$9,IF($F114=Markup!$E$7,Markup!$F$9,IF($F114=Markup!$H$7,Markup!$I$9,"")))) ->  | AD114: =IF($F114="","",IF($F114=Markup!$B$7,Markup!$C$10,IF($F114=Markup!$E$7,Markup!$F$10,IF($F114=Markup!$H$7,Markup!$I$10,"")))) ->  | AE114: =IF($F114="","",IF($F114=Markup!$B$7,Markup!$C$11,IF($F114=Markup!$E$7,Markup!$F$11,IF($F114=Markup!$H$7,Markup!$I$11,"")))) ->  | AF114: =IF($F114="","",IF($F114=Markup!$B$7,Markup!$C$12,IF($F114=Markup!$E$7,Markup!$F$12,IF($F114=Markup!$H$7,Markup!$I$12,"")))) -> 
I115: =IF(C115="","",Markup!$H$3*E115) ->  | AC115: =IF($F115="","",IF($F115=Markup!$B$7,Markup!$C$9,IF($F115=Markup!$E$7,Markup!$F$9,IF($F115=Markup!$H$7,Markup!$I$9,"")))) ->  | AD115: =IF($F115="","",IF($F115=Markup!$B$7,Markup!$C$10,IF($F115=Markup!$E$7,Markup!$F$10,IF($F115=Markup!$H$7,Markup!$I$10,"")))) ->  | AE115: =IF($F115="","",IF($F115=Markup!$B$7,Markup!$C$11,IF($F115=Markup!$E$7,Markup!$F$11,IF($F115=Markup!$H$7,Markup!$I$11,"")))) ->  | AF115: =IF($F115="","",IF($F115=Markup!$B$7,Markup!$C$12,IF($F115=Markup!$E$7,Markup!$F$12,IF($F115=Markup!$H$7,Markup!$I$12,"")))) -> 
I116: =IF(C116="","",Markup!$H$3*E116) ->  | AC116: =IF($F116="","",IF($F116=Markup!$B$7,Markup!$C$9,IF($F116=Markup!$E$7,Markup!$F$9,IF($F116=Markup!$H$7,Markup!$I$9,"")))) ->  | AD116: =IF($F116="","",IF($F116=Markup!$B$7,Markup!$C$10,IF($F116=Markup!$E$7,Markup!$F$10,IF($F116=Markup!$H$7,Markup!$I$10,"")))) ->  | AE116: =IF($F116="","",IF($F116=Markup!$B$7,Markup!$C$11,IF($F116=Markup!$E$7,Markup!$F$11,IF($F116=Markup!$H$7,Markup!$I$11,"")))) ->  | AF116: =IF($F116="","",IF($F116=Markup!$B$7,Markup!$C$12,IF($F116=Markup!$E$7,Markup!$F$12,IF($F116=Markup!$H$7,Markup!$I$12,"")))) -> 
I117: =IF(C117="","",Markup!$H$3*E117) ->  | AC117: =IF($F117="","",IF($F117=Markup!$B$7,Markup!$C$9,IF($F117=Markup!$E$7,Markup!$F$9,IF($F117=Markup!$H$7,Markup!$I$9,"")))) ->  | AD117: =IF($F117="","",IF($F117=Markup!$B$7,Markup!$C$10,IF($F117=Markup!$E$7,Markup!$F$10,IF($F117=Markup!$H$7,Markup!$I$10,"")))) ->  | AE117: =IF($F117="","",IF($F117=Markup!$B$7,Markup!$C$11,IF($F117=Markup!$E$7,Markup!$F$11,IF($F117=Markup!$H$7,Markup!$I$11,"")))) ->  | AF117: =IF($F117="","",IF($F117=Markup!$B$7,Markup!$C$12,IF($F117=Markup!$E$7,Markup!$F$12,IF($F117=Markup!$H$7,Markup!$I$12,"")))) -> 
I118: =IF(C118="","",Markup!$H$3*E118) ->  | AC118: =IF($F118="","",IF($F118=Markup!$B$7,Markup!$C$9,IF($F118=Markup!$E$7,Markup!$F$9,IF($F118=Markup!$H$7,Markup!$I$9,"")))) ->  | AD118: =IF($F118="","",IF($F118=Markup!$B$7,Markup!$C$10,IF($F118=Markup!$E$7,Markup!$F$10,IF($F118=Markup!$H$7,Markup!$I$10,"")))) ->  | AE118: =IF($F118="","",IF($F118=Markup!$B$7,Markup!$C$11,IF($F118=Markup!$E$7,Markup!$F$11,IF($F118=Markup!$H$7,Markup!$I$11,"")))) ->  | AF118: =IF($F118="","",IF($F118=Markup!$B$7,Markup!$C$12,IF($F118=Markup!$E$7,Markup!$F$12,IF($F118=Markup!$H$7,Markup!$I$12,"")))) -> 
I119: =IF(C119="","",Markup!$H$3*E119) ->  | AC119: =IF($F119="","",IF($F119=Markup!$B$7,Markup!$C$9,IF($F119=Markup!$E$7,Markup!$F$9,IF($F119=Markup!$H$7,Markup!$I$9,"")))) ->  | AD119: =IF($F119="","",IF($F119=Markup!$B$7,Markup!$C$10,IF($F119=Markup!$E$7,Markup!$F$10,IF($F119=Markup!$H$7,Markup!$I$10,"")))) ->  | AE119: =IF($F119="","",IF($F119=Markup!$B$7,Markup!$C$11,IF($F119=Markup!$E$7,Markup!$F$11,IF($F119=Markup!$H$7,Markup!$I$11,"")))) ->  | AF119: =IF($F119="","",IF($F119=Markup!$B$7,Markup!$C$12,IF($F119=Markup!$E$7,Markup!$F$12,IF($F119=Markup!$H$7,Markup!$I$12,"")))) -> 
I120: =IF(C120="","",Markup!$H$3*E120) ->  | AC120: =IF($F120="","",IF($F120=Markup!$B$7,Markup!$C$9,IF($F120=Markup!$E$7,Markup!$F$9,IF($F120=Markup!$H$7,Markup!$I$9,"")))) ->  | AD120: =IF($F120="","",IF($F120=Markup!$B$7,Markup!$C$10,IF($F120=Markup!$E$7,Markup!$F$10,IF($F120=Markup!$H$7,Markup!$I$10,"")))) ->  | AE120: =IF($F120="","",IF($F120=Markup!$B$7,Markup!$C$11,IF($F120=Markup!$E$7,Markup!$F$11,IF($F120=Markup!$H$7,Markup!$I$11,"")))) ->  | AF120: =IF($F120="","",IF($F120=Markup!$B$7,Markup!$C$12,IF($F120=Markup!$E$7,Markup!$F$12,IF($F120=Markup!$H$7,Markup!$I$12,"")))) -> 
I121: =IF(C121="","",Markup!$H$3*E121) ->  | AC121: =IF($F121="","",IF($F121=Markup!$B$7,Markup!$C$9,IF($F121=Markup!$E$7,Markup!$F$9,IF($F121=Markup!$H$7,Markup!$I$9,"")))) ->  | AD121: =IF($F121="","",IF($F121=Markup!$B$7,Markup!$C$10,IF($F121=Markup!$E$7,Markup!$F$10,IF($F121=Markup!$H$7,Markup!$I$10,"")))) ->  | AE121: =IF($F121="","",IF($F121=Markup!$B$7,Markup!$C$11,IF($F121=Markup!$E$7,Markup!$F$11,IF($F121=Markup!$H$7,Markup!$I$11,"")))) ->  | AF121: =IF($F121="","",IF($F121=Markup!$B$7,Markup!$C$12,IF($F121=Markup!$E$7,Markup!$F$12,IF($F121=Markup!$H$7,Markup!$I$12,"")))) -> 
I122: =IF(C122="","",Markup!$H$3*E122) ->  | AC122: =IF($F122="","",IF($F122=Markup!$B$7,Markup!$C$9,IF($F122=Markup!$E$7,Markup!$F$9,IF($F122=Markup!$H$7,Markup!$I$9,"")))) ->  | AD122: =IF($F122="","",IF($F122=Markup!$B$7,Markup!$C$10,IF($F122=Markup!$E$7,Markup!$F$10,IF($F122=Markup!$H$7,Markup!$I$10,"")))) ->  | AE122: =IF($F122="","",IF($F122=Markup!$B$7,Markup!$C$11,IF($F122=Markup!$E$7,Markup!$F$11,IF($F122=Markup!$H$7,Markup!$I$11,"")))) ->  | AF122: =IF($F122="","",IF($F122=Markup!$B$7,Markup!$C$12,IF($F122=Markup!$E$7,Markup!$F$12,IF($F122=Markup!$H$7,Markup!$I$12,"")))) -> 
I123: =IF(C123="","",Markup!$H$3*E123) ->  | AC123: =IF($F123="","",IF($F123=Markup!$B$7,Markup!$C$9,IF($F123=Markup!$E$7,Markup!$F$9,IF($F123=Markup!$H$7,Markup!$I$9,"")))) ->  | AD123: =IF($F123="","",IF($F123=Markup!$B$7,Markup!$C$10,IF($F123=Markup!$E$7,Markup!$F$10,IF($F123=Markup!$H$7,Markup!$I$10,"")))) ->  | AE123: =IF($F123="","",IF($F123=Markup!$B$7,Markup!$C$11,IF($F123=Markup!$E$7,Markup!$F$11,IF($F123=Markup!$H$7,Markup!$I$11,"")))) ->  | AF123: =IF($F123="","",IF($F123=Markup!$B$7,Markup!$C$12,IF($F123=Markup!$E$7,Markup!$F$12,IF($F123=Markup!$H$7,Markup!$I$12,"")))) -> 
I124: =IF(C124="","",Markup!$H$3*E124) ->  | AC124: =IF($F124="","",IF($F124=Markup!$B$7,Markup!$C$9,IF($F124=Markup!$E$7,Markup!$F$9,IF($F124=Markup!$H$7,Markup!$I$9,"")))) ->  | AD124: =IF($F124="","",IF($F124=Markup!$B$7,Markup!$C$10,IF($F124=Markup!$E$7,Markup!$F$10,IF($F124=Markup!$H$7,Markup!$I$10,"")))) ->  | AE124: =IF($F124="","",IF($F124=Markup!$B$7,Markup!$C$11,IF($F124=Markup!$E$7,Markup!$F$11,IF($F124=Markup!$H$7,Markup!$I$11,"")))) ->  | AF124: =IF($F124="","",IF($F124=Markup!$B$7,Markup!$C$12,IF($F124=Markup!$E$7,Markup!$F$12,IF($F124=Markup!$H$7,Markup!$I$12,"")))) -> 
I125: =IF(C125="","",Markup!$H$3*E125) ->  | AC125: =IF($F125="","",IF($F125=Markup!$B$7,Markup!$C$9,IF($F125=Markup!$E$7,Markup!$F$9,IF($F125=Markup!$H$7,Markup!$I$9,"")))) ->  | AD125: =IF($F125="","",IF($F125=Markup!$B$7,Markup!$C$10,IF($F125=Markup!$E$7,Markup!$F$10,IF($F125=Markup!$H$7,Markup!$I$10,"")))) ->  | AE125: =IF($F125="","",IF($F125=Markup!$B$7,Markup!$C$11,IF($F125=Markup!$E$7,Markup!$F$11,IF($F125=Markup!$H$7,Markup!$I$11,"")))) ->  | AF125: =IF($F125="","",IF($F125=Markup!$B$7,Markup!$C$12,IF($F125=Markup!$E$7,Markup!$F$12,IF($F125=Markup!$H$7,Markup!$I$12,"")))) -> 
I126: =IF(C126="","",Markup!$H$3*E126) ->  | AC126: =IF($F126="","",IF($F126=Markup!$B$7,Markup!$C$9,IF($F126=Markup!$E$7,Markup!$F$9,IF($F126=Markup!$H$7,Markup!$I$9,"")))) ->  | AD126: =IF($F126="","",IF($F126=Markup!$B$7,Markup!$C$10,IF($F126=Markup!$E$7,Markup!$F$10,IF($F126=Markup!$H$7,Markup!$I$10,"")))) ->  | AE126: =IF($F126="","",IF($F126=Markup!$B$7,Markup!$C$11,IF($F126=Markup!$E$7,Markup!$F$11,IF($F126=Markup!$H$7,Markup!$I$11,"")))) ->  | AF126: =IF($F126="","",IF($F126=Markup!$B$7,Markup!$C$12,IF($F126=Markup!$E$7,Markup!$F$12,IF($F126=Markup!$H$7,Markup!$I$12,"")))) -> 
I127: =IF(C127="","",Markup!$H$3*E127) ->  | AC127: =IF($F127="","",IF($F127=Markup!$B$7,Markup!$C$9,IF($F127=Markup!$E$7,Markup!$F$9,IF($F127=Markup!$H$7,Markup!$I$9,"")))) ->  | AD127: =IF($F127="","",IF($F127=Markup!$B$7,Markup!$C$10,IF($F127=Markup!$E$7,Markup!$F$10,IF($F127=Markup!$H$7,Markup!$I$10,"")))) ->  | AE127: =IF($F127="","",IF($F127=Markup!$B$7,Markup!$C$11,IF($F127=Markup!$E$7,Markup!$F$11,IF($F127=Markup!$H$7,Markup!$I$11,"")))) ->  | AF127: =IF($F127="","",IF($F127=Markup!$B$7,Markup!$C$12,IF($F127=Markup!$E$7,Markup!$F$12,IF($F127=Markup!$H$7,Markup!$I$12,"")))) -> 
I128: =IF(C128="","",Markup!$H$3*E128) ->  | AC128: =IF($F128="","",IF($F128=Markup!$B$7,Markup!$C$9,IF($F128=Markup!$E$7,Markup!$F$9,IF($F128=Markup!$H$7,Markup!$I$9,"")))) ->  | AD128: =IF($F128="","",IF($F128=Markup!$B$7,Markup!$C$10,IF($F128=Markup!$E$7,Markup!$F$10,IF($F128=Markup!$H$7,Markup!$I$10,"")))) ->  | AE128: =IF($F128="","",IF($F128=Markup!$B$7,Markup!$C$11,IF($F128=Markup!$E$7,Markup!$F$11,IF($F128=Markup!$H$7,Markup!$I$11,"")))) ->  | AF128: =IF($F128="","",IF($F128=Markup!$B$7,Markup!$C$12,IF($F128=Markup!$E$7,Markup!$F$12,IF($F128=Markup!$H$7,Markup!$I$12,"")))) -> 
I129: =IF(C129="","",Markup!$H$3*E129) ->  | AC129: =IF($F129="","",IF($F129=Markup!$B$7,Markup!$C$9,IF($F129=Markup!$E$7,Markup!$F$9,IF($F129=Markup!$H$7,Markup!$I$9,"")))) ->  | AD129: =IF($F129="","",IF($F129=Markup!$B$7,Markup!$C$10,IF($F129=Markup!$E$7,Markup!$F$10,IF($F129=Markup!$H$7,Markup!$I$10,"")))) ->  | AE129: =IF($F129="","",IF($F129=Markup!$B$7,Markup!$C$11,IF($F129=Markup!$E$7,Markup!$F$11,IF($F129=Markup!$H$7,Markup!$I$11,"")))) ->  | AF129: =IF($F129="","",IF($F129=Markup!$B$7,Markup!$C$12,IF($F129=Markup!$E$7,Markup!$F$12,IF($F129=Markup!$H$7,Markup!$I$12,"")))) -> 
I130: =IF(C130="","",Markup!$H$3*E130) ->  | AC130: =IF($F130="","",IF($F130=Markup!$B$7,Markup!$C$9,IF($F130=Markup!$E$7,Markup!$F$9,IF($F130=Markup!$H$7,Markup!$I$9,"")))) ->  | AD130: =IF($F130="","",IF($F130=Markup!$B$7,Markup!$C$10,IF($F130=Markup!$E$7,Markup!$F$10,IF($F130=Markup!$H$7,Markup!$I$10,"")))) ->  | AE130: =IF($F130="","",IF($F130=Markup!$B$7,Markup!$C$11,IF($F130=Markup!$E$7,Markup!$F$11,IF($F130=Markup!$H$7,Markup!$I$11,"")))) ->  | AF130: =IF($F130="","",IF($F130=Markup!$B$7,Markup!$C$12,IF($F130=Markup!$E$7,Markup!$F$12,IF($F130=Markup!$H$7,Markup!$I$12,"")))) -> 
I131: =IF(C131="","",Markup!$H$3*E131) ->  | AC131: =IF($F131="","",IF($F131=Markup!$B$7,Markup!$C$9,IF($F131=Markup!$E$7,Markup!$F$9,IF($F131=Markup!$H$7,Markup!$I$9,"")))) ->  | AD131: =IF($F131="","",IF($F131=Markup!$B$7,Markup!$C$10,IF($F131=Markup!$E$7,Markup!$F$10,IF($F131=Markup!$H$7,Markup!$I$10,"")))) ->  | AE131: =IF($F131="","",IF($F131=Markup!$B$7,Markup!$C$11,IF($F131=Markup!$E$7,Markup!$F$11,IF($F131=Markup!$H$7,Markup!$I$11,"")))) ->  | AF131: =IF($F131="","",IF($F131=Markup!$B$7,Markup!$C$12,IF($F131=Markup!$E$7,Markup!$F$12,IF($F131=Markup!$H$7,Markup!$I$12,"")))) -> 
G132: =IF(F132=$Y$4,$Z$4,IF(F132=$Y$5,$Z$5,IF(F132=$Y$6,$Z$6,""))) ->  | I132: =IF(C132="","",Markup!$H$3*E132) ->  | AC132: =IF($F132="","",IF($F132=Markup!$B$7,Markup!$C$9,IF($F132=Markup!$E$7,Markup!$F$9,IF($F132=Markup!$H$7,Markup!$I$9,"")))) ->  | AD132: =IF($F132="","",IF($F132=Markup!$B$7,Markup!$C$10,IF($F132=Markup!$E$7,Markup!$F$10,IF($F132=Markup!$H$7,Markup!$I$10,"")))) ->  | AE132: =IF($F132="","",IF($F132=Markup!$B$7,Markup!$C$11,IF($F132=Markup!$E$7,Markup!$F$11,IF($F132=Markup!$H$7,Markup!$I$11,"")))) ->  | AF132: =IF($F132="","",IF($F132=Markup!$B$7,Markup!$C$12,IF($F132=Markup!$E$7,Markup!$F$12,IF($F132=Markup!$H$7,Markup!$I$12,"")))) -> 
H133: =IF(D133="","",D133) ->  | I133: =IF(C133="","",Markup!$H$3*E133) ->  | J133: =IF(OR(H133="",G133=""),"",(H133+I133)*G133) ->  | Q133: =IF(J133="","",(L133-H133-(L133*SUM($AC$4:$AF$4)))) ->  | R133: =IF(Q133="","",(Q133/L133)) ->  | U133: =IF(T133="","",T133/SUM($T$4:$T$500)) ->  | AC133: =IF($F133="","",IF($F133=Markup!$B$7,Markup!$C$9,IF($F133=Markup!$E$7,Markup!$F$9,IF($F133=Markup!$H$7,Markup!$I$9,"")))) ->  | AD133: =IF($F133="","",IF($F133=Markup!$B$7,Markup!$C$10,IF($F133=Markup!$E$7,Markup!$F$10,IF($F133=Markup!$H$7,Markup!$I$10,"")))) ->  | AE133: =IF($F133="","",IF($F133=Markup!$B$7,Markup!$C$11,IF($F133=Markup!$E$7,Markup!$F$11,IF($F133=Markup!$H$7,Markup!$I$11,"")))) ->  | AF133: =IF($F133="","",IF($F133=Markup!$B$7,Markup!$C$12,IF($F133=Markup!$E$7,Markup!$F$12,IF($F133=Markup!$H$7,Markup!$I$12,"")))) -> 
I134: =IF(C134="","",Markup!$H$3*E134) ->  | AC134: =IF($F134="","",IF($F134=Markup!$B$7,Markup!$C$9,IF($F134=Markup!$E$7,Markup!$F$9,IF($F134=Markup!$H$7,Markup!$I$9,"")))) ->  | AD134: =IF($F134="","",IF($F134=Markup!$B$7,Markup!$C$10,IF($F134=Markup!$E$7,Markup!$F$10,IF($F134=Markup!$H$7,Markup!$I$10,"")))) ->  | AE134: =IF($F134="","",IF($F134=Markup!$B$7,Markup!$C$11,IF($F134=Markup!$E$7,Markup!$F$11,IF($F134=Markup!$H$7,Markup!$I$11,"")))) ->  | AF134: =IF($F134="","",IF($F134=Markup!$B$7,Markup!$C$12,IF($F134=Markup!$E$7,Markup!$F$12,IF($F134=Markup!$H$7,Markup!$I$12,"")))) -> 
I135: =IF(C135="","",Markup!$H$3*E135) ->  | N135: =IF(L135="","",M135/L135) ->  | AC135: =IF($F135="","",IF($F135=Markup!$B$7,Markup!$C$9,IF($F135=Markup!$E$7,Markup!$F$9,IF($F135=Markup!$H$7,Markup!$I$9,"")))) ->  | AD135: =IF($F135="","",IF($F135=Markup!$B$7,Markup!$C$10,IF($F135=Markup!$E$7,Markup!$F$10,IF($F135=Markup!$H$7,Markup!$I$10,"")))) ->  | AE135: =IF($F135="","",IF($F135=Markup!$B$7,Markup!$C$11,IF($F135=Markup!$E$7,Markup!$F$11,IF($F135=Markup!$H$7,Markup!$I$11,"")))) ->  | AF135: =IF($F135="","",IF($F135=Markup!$B$7,Markup!$C$12,IF($F135=Markup!$E$7,Markup!$F$12,IF($F135=Markup!$H$7,Markup!$I$12,"")))) -> 
A136: =IF(M136="Falta Dados","",IF(M136="","",IF(M136<0,"Abaixo do ideal","Preço bom"))) ->  | I136: =IF(C136="","",Markup!$H$3*E136) ->  | M136: =IF(AND(L136>0,J136=""),"Falta Dados",IF(L136="","",L136-J136)) ->  | AC136: =IF($F136="","",IF($F136=Markup!$B$7,Markup!$C$9,IF($F136=Markup!$E$7,Markup!$F$9,IF($F136=Markup!$H$7,Markup!$I$9,"")))) ->  | AD136: =IF($F136="","",IF($F136=Markup!$B$7,Markup!$C$10,IF($F136=Markup!$E$7,Markup!$F$10,IF($F136=Markup!$H$7,Markup!$I$10,"")))) ->  | AE136: =IF($F136="","",IF($F136=Markup!$B$7,Markup!$C$11,IF($F136=Markup!$E$7,Markup!$F$11,IF($F136=Markup!$H$7,Markup!$I$11,"")))) ->  | AF136: =IF($F136="","",IF($F136=Markup!$B$7,Markup!$C$12,IF($F136=Markup!$E$7,Markup!$F$12,IF($F136=Markup!$H$7,Markup!$I$12,"")))) -> 
I137: =IF(C137="","",Markup!$H$3*E137) ->  | AC137: =IF($F137="","",IF($F137=Markup!$B$7,Markup!$C$9,IF($F137=Markup!$E$7,Markup!$F$9,IF($F137=Markup!$H$7,Markup!$I$9,"")))) ->  | AD137: =IF($F137="","",IF($F137=Markup!$B$7,Markup!$C$10,IF($F137=Markup!$E$7,Markup!$F$10,IF($F137=Markup!$H$7,Markup!$I$10,"")))) ->  | AE137: =IF($F137="","",IF($F137=Markup!$B$7,Markup!$C$11,IF($F137=Markup!$E$7,Markup!$F$11,IF($F137=Markup!$H$7,Markup!$I$11,"")))) ->  | AF137: =IF($F137="","",IF($F137=Markup!$B$7,Markup!$C$12,IF($F137=Markup!$E$7,Markup!$F$12,IF($F137=Markup!$H$7,Markup!$I$12,"")))) -> 
I138: =IF(C138="","",Markup!$H$3*E138) ->  | AC138: =IF($F138="","",IF($F138=Markup!$B$7,Markup!$C$9,IF($F138=Markup!$E$7,Markup!$F$9,IF($F138=Markup!$H$7,Markup!$I$9,"")))) ->  | AD138: =IF($F138="","",IF($F138=Markup!$B$7,Markup!$C$10,IF($F138=Markup!$E$7,Markup!$F$10,IF($F138=Markup!$H$7,Markup!$I$10,"")))) ->  | AE138: =IF($F138="","",IF($F138=Markup!$B$7,Markup!$C$11,IF($F138=Markup!$E$7,Markup!$F$11,IF($F138=Markup!$H$7,Markup!$I$11,"")))) ->  | AF138: =IF($F138="","",IF($F138=Markup!$B$7,Markup!$C$12,IF($F138=Markup!$E$7,Markup!$F$12,IF($F138=Markup!$H$7,Markup!$I$12,"")))) -> 
I139: =IF(C139="","",Markup!$H$3*E139) ->  | AC139: =IF($F139="","",IF($F139=Markup!$B$7,Markup!$C$9,IF($F139=Markup!$E$7,Markup!$F$9,IF($F139=Markup!$H$7,Markup!$I$9,"")))) ->  | AD139: =IF($F139="","",IF($F139=Markup!$B$7,Markup!$C$10,IF($F139=Markup!$E$7,Markup!$F$10,IF($F139=Markup!$H$7,Markup!$I$10,"")))) ->  | AE139: =IF($F139="","",IF($F139=Markup!$B$7,Markup!$C$11,IF($F139=Markup!$E$7,Markup!$F$11,IF($F139=Markup!$H$7,Markup!$I$11,"")))) ->  | AF139: =IF($F139="","",IF($F139=Markup!$B$7,Markup!$C$12,IF($F139=Markup!$E$7,Markup!$F$12,IF($F139=Markup!$H$7,Markup!$I$12,"")))) -> 
I140: =IF(C140="","",Markup!$H$3*E140) ->  | AC140: =IF($F140="","",IF($F140=Markup!$B$7,Markup!$C$9,IF($F140=Markup!$E$7,Markup!$F$9,IF($F140=Markup!$H$7,Markup!$I$9,"")))) ->  | AD140: =IF($F140="","",IF($F140=Markup!$B$7,Markup!$C$10,IF($F140=Markup!$E$7,Markup!$F$10,IF($F140=Markup!$H$7,Markup!$I$10,"")))) ->  | AE140: =IF($F140="","",IF($F140=Markup!$B$7,Markup!$C$11,IF($F140=Markup!$E$7,Markup!$F$11,IF($F140=Markup!$H$7,Markup!$I$11,"")))) ->  | AF140: =IF($F140="","",IF($F140=Markup!$B$7,Markup!$C$12,IF($F140=Markup!$E$7,Markup!$F$12,IF($F140=Markup!$H$7,Markup!$I$12,"")))) -> 
I141: =IF(C141="","",Markup!$H$3*E141) ->  | AC141: =IF($F141="","",IF($F141=Markup!$B$7,Markup!$C$9,IF($F141=Markup!$E$7,Markup!$F$9,IF($F141=Markup!$H$7,Markup!$I$9,"")))) ->  | AD141: =IF($F141="","",IF($F141=Markup!$B$7,Markup!$C$10,IF($F141=Markup!$E$7,Markup!$F$10,IF($F141=Markup!$H$7,Markup!$I$10,"")))) ->  | AE141: =IF($F141="","",IF($F141=Markup!$B$7,Markup!$C$11,IF($F141=Markup!$E$7,Markup!$F$11,IF($F141=Markup!$H$7,Markup!$I$11,"")))) ->  | AF141: =IF($F141="","",IF($F141=Markup!$B$7,Markup!$C$12,IF($F141=Markup!$E$7,Markup!$F$12,IF($F141=Markup!$H$7,Markup!$I$12,"")))) -> 
I142: =IF(C142="","",Markup!$H$3*E142) ->  | AC142: =IF($F142="","",IF($F142=Markup!$B$7,Markup!$C$9,IF($F142=Markup!$E$7,Markup!$F$9,IF($F142=Markup!$H$7,Markup!$I$9,"")))) ->  | AD142: =IF($F142="","",IF($F142=Markup!$B$7,Markup!$C$10,IF($F142=Markup!$E$7,Markup!$F$10,IF($F142=Markup!$H$7,Markup!$I$10,"")))) ->  | AE142: =IF($F142="","",IF($F142=Markup!$B$7,Markup!$C$11,IF($F142=Markup!$E$7,Markup!$F$11,IF($F142=Markup!$H$7,Markup!$I$11,"")))) ->  | AF142: =IF($F142="","",IF($F142=Markup!$B$7,Markup!$C$12,IF($F142=Markup!$E$7,Markup!$F$12,IF($F142=Markup!$H$7,Markup!$I$12,"")))) -> 
I143: =IF(C143="","",Markup!$H$3*E143) ->  | AC143: =IF($F143="","",IF($F143=Markup!$B$7,Markup!$C$9,IF($F143=Markup!$E$7,Markup!$F$9,IF($F143=Markup!$H$7,Markup!$I$9,"")))) ->  | AD143: =IF($F143="","",IF($F143=Markup!$B$7,Markup!$C$10,IF($F143=Markup!$E$7,Markup!$F$10,IF($F143=Markup!$H$7,Markup!$I$10,"")))) ->  | AE143: =IF($F143="","",IF($F143=Markup!$B$7,Markup!$C$11,IF($F143=Markup!$E$7,Markup!$F$11,IF($F143=Markup!$H$7,Markup!$I$11,"")))) ->  | AF143: =IF($F143="","",IF($F143=Markup!$B$7,Markup!$C$12,IF($F143=Markup!$E$7,Markup!$F$12,IF($F143=Markup!$H$7,Markup!$I$12,"")))) -> 
I144: =IF(C144="","",Markup!$H$3*E144) ->  | AC144: =IF($F144="","",IF($F144=Markup!$B$7,Markup!$C$9,IF($F144=Markup!$E$7,Markup!$F$9,IF($F144=Markup!$H$7,Markup!$I$9,"")))) ->  | AD144: =IF($F144="","",IF($F144=Markup!$B$7,Markup!$C$10,IF($F144=Markup!$E$7,Markup!$F$10,IF($F144=Markup!$H$7,Markup!$I$10,"")))) ->  | AE144: =IF($F144="","",IF($F144=Markup!$B$7,Markup!$C$11,IF($F144=Markup!$E$7,Markup!$F$11,IF($F144=Markup!$H$7,Markup!$I$11,"")))) ->  | AF144: =IF($F144="","",IF($F144=Markup!$B$7,Markup!$C$12,IF($F144=Markup!$E$7,Markup!$F$12,IF($F144=Markup!$H$7,Markup!$I$12,"")))) -> 
I145: =IF(C145="","",Markup!$H$3*E145) ->  | AC145: =IF($F145="","",IF($F145=Markup!$B$7,Markup!$C$9,IF($F145=Markup!$E$7,Markup!$F$9,IF($F145=Markup!$H$7,Markup!$I$9,"")))) ->  | AD145: =IF($F145="","",IF($F145=Markup!$B$7,Markup!$C$10,IF($F145=Markup!$E$7,Markup!$F$10,IF($F145=Markup!$H$7,Markup!$I$10,"")))) ->  | AE145: =IF($F145="","",IF($F145=Markup!$B$7,Markup!$C$11,IF($F145=Markup!$E$7,Markup!$F$11,IF($F145=Markup!$H$7,Markup!$I$11,"")))) ->  | AF145: =IF($F145="","",IF($F145=Markup!$B$7,Markup!$C$12,IF($F145=Markup!$E$7,Markup!$F$12,IF($F145=Markup!$H$7,Markup!$I$12,"")))) -> 
I146: =IF(C146="","",Markup!$H$3*E146) ->  | AC146: =IF($F146="","",IF($F146=Markup!$B$7,Markup!$C$9,IF($F146=Markup!$E$7,Markup!$F$9,IF($F146=Markup!$H$7,Markup!$I$9,"")))) ->  | AD146: =IF($F146="","",IF($F146=Markup!$B$7,Markup!$C$10,IF($F146=Markup!$E$7,Markup!$F$10,IF($F146=Markup!$H$7,Markup!$I$10,"")))) ->  | AE146: =IF($F146="","",IF($F146=Markup!$B$7,Markup!$C$11,IF($F146=Markup!$E$7,Markup!$F$11,IF($F146=Markup!$H$7,Markup!$I$11,"")))) ->  | AF146: =IF($F146="","",IF($F146=Markup!$B$7,Markup!$C$12,IF($F146=Markup!$E$7,Markup!$F$12,IF($F146=Markup!$H$7,Markup!$I$12,"")))) -> 
I147: =IF(C147="","",Markup!$H$3*E147) ->  | AC147: =IF($F147="","",IF($F147=Markup!$B$7,Markup!$C$9,IF($F147=Markup!$E$7,Markup!$F$9,IF($F147=Markup!$H$7,Markup!$I$9,"")))) ->  | AD147: =IF($F147="","",IF($F147=Markup!$B$7,Markup!$C$10,IF($F147=Markup!$E$7,Markup!$F$10,IF($F147=Markup!$H$7,Markup!$I$10,"")))) ->  | AE147: =IF($F147="","",IF($F147=Markup!$B$7,Markup!$C$11,IF($F147=Markup!$E$7,Markup!$F$11,IF($F147=Markup!$H$7,Markup!$I$11,"")))) ->  | AF147: =IF($F147="","",IF($F147=Markup!$B$7,Markup!$C$12,IF($F147=Markup!$E$7,Markup!$F$12,IF($F147=Markup!$H$7,Markup!$I$12,"")))) -> 
I148: =IF(C148="","",Markup!$H$3*E148) ->  | AC148: =IF($F148="","",IF($F148=Markup!$B$7,Markup!$C$9,IF($F148=Markup!$E$7,Markup!$F$9,IF($F148=Markup!$H$7,Markup!$I$9,"")))) ->  | AD148: =IF($F148="","",IF($F148=Markup!$B$7,Markup!$C$10,IF($F148=Markup!$E$7,Markup!$F$10,IF($F148=Markup!$H$7,Markup!$I$10,"")))) ->  | AE148: =IF($F148="","",IF($F148=Markup!$B$7,Markup!$C$11,IF($F148=Markup!$E$7,Markup!$F$11,IF($F148=Markup!$H$7,Markup!$I$11,"")))) ->  | AF148: =IF($F148="","",IF($F148=Markup!$B$7,Markup!$C$12,IF($F148=Markup!$E$7,Markup!$F$12,IF($F148=Markup!$H$7,Markup!$I$12,"")))) -> 
I149: =IF(C149="","",Markup!$H$3*E149) ->  | AC149: =IF($F149="","",IF($F149=Markup!$B$7,Markup!$C$9,IF($F149=Markup!$E$7,Markup!$F$9,IF($F149=Markup!$H$7,Markup!$I$9,"")))) ->  | AD149: =IF($F149="","",IF($F149=Markup!$B$7,Markup!$C$10,IF($F149=Markup!$E$7,Markup!$F$10,IF($F149=Markup!$H$7,Markup!$I$10,"")))) ->  | AE149: =IF($F149="","",IF($F149=Markup!$B$7,Markup!$C$11,IF($F149=Markup!$E$7,Markup!$F$11,IF($F149=Markup!$H$7,Markup!$I$11,"")))) ->  | AF149: =IF($F149="","",IF($F149=Markup!$B$7,Markup!$C$12,IF($F149=Markup!$E$7,Markup!$F$12,IF($F149=Markup!$H$7,Markup!$I$12,"")))) -> 
I150: =IF(C150="","",Markup!$H$3*E150) ->  | AC150: =IF($F150="","",IF($F150=Markup!$B$7,Markup!$C$9,IF($F150=Markup!$E$7,Markup!$F$9,IF($F150=Markup!$H$7,Markup!$I$9,"")))) ->  | AD150: =IF($F150="","",IF($F150=Markup!$B$7,Markup!$C$10,IF($F150=Markup!$E$7,Markup!$F$10,IF($F150=Markup!$H$7,Markup!$I$10,"")))) ->  | AE150: =IF($F150="","",IF($F150=Markup!$B$7,Markup!$C$11,IF($F150=Markup!$E$7,Markup!$F$11,IF($F150=Markup!$H$7,Markup!$I$11,"")))) ->  | AF150: =IF($F150="","",IF($F150=Markup!$B$7,Markup!$C$12,IF($F150=Markup!$E$7,Markup!$F$12,IF($F150=Markup!$H$7,Markup!$I$12,"")))) -> 
I151: =IF(C151="","",Markup!$H$3*E151) ->  | AC151: =IF($F151="","",IF($F151=Markup!$B$7,Markup!$C$9,IF($F151=Markup!$E$7,Markup!$F$9,IF($F151=Markup!$H$7,Markup!$I$9,"")))) ->  | AD151: =IF($F151="","",IF($F151=Markup!$B$7,Markup!$C$10,IF($F151=Markup!$E$7,Markup!$F$10,IF($F151=Markup!$H$7,Markup!$I$10,"")))) ->  | AE151: =IF($F151="","",IF($F151=Markup!$B$7,Markup!$C$11,IF($F151=Markup!$E$7,Markup!$F$11,IF($F151=Markup!$H$7,Markup!$I$11,"")))) ->  | AF151: =IF($F151="","",IF($F151=Markup!$B$7,Markup!$C$12,IF($F151=Markup!$E$7,Markup!$F$12,IF($F151=Markup!$H$7,Markup!$I$12,"")))) -> 
I152: =IF(C152="","",Markup!$H$3*E152) ->  | AC152: =IF($F152="","",IF($F152=Markup!$B$7,Markup!$C$9,IF($F152=Markup!$E$7,Markup!$F$9,IF($F152=Markup!$H$7,Markup!$I$9,"")))) ->  | AD152: =IF($F152="","",IF($F152=Markup!$B$7,Markup!$C$10,IF($F152=Markup!$E$7,Markup!$F$10,IF($F152=Markup!$H$7,Markup!$I$10,"")))) ->  | AE152: =IF($F152="","",IF($F152=Markup!$B$7,Markup!$C$11,IF($F152=Markup!$E$7,Markup!$F$11,IF($F152=Markup!$H$7,Markup!$I$11,"")))) ->  | AF152: =IF($F152="","",IF($F152=Markup!$B$7,Markup!$C$12,IF($F152=Markup!$E$7,Markup!$F$12,IF($F152=Markup!$H$7,Markup!$I$12,"")))) -> 
I153: =IF(C153="","",Markup!$H$3*E153) ->  | AC153: =IF($F153="","",IF($F153=Markup!$B$7,Markup!$C$9,IF($F153=Markup!$E$7,Markup!$F$9,IF($F153=Markup!$H$7,Markup!$I$9,"")))) ->  | AD153: =IF($F153="","",IF($F153=Markup!$B$7,Markup!$C$10,IF($F153=Markup!$E$7,Markup!$F$10,IF($F153=Markup!$H$7,Markup!$I$10,"")))) ->  | AE153: =IF($F153="","",IF($F153=Markup!$B$7,Markup!$C$11,IF($F153=Markup!$E$7,Markup!$F$11,IF($F153=Markup!$H$7,Markup!$I$11,"")))) ->  | AF153: =IF($F153="","",IF($F153=Markup!$B$7,Markup!$C$12,IF($F153=Markup!$E$7,Markup!$F$12,IF($F153=Markup!$H$7,Markup!$I$12,"")))) -> 
I154: =IF(C154="","",Markup!$H$3*E154) ->  | AC154: =IF($F154="","",IF($F154=Markup!$B$7,Markup!$C$9,IF($F154=Markup!$E$7,Markup!$F$9,IF($F154=Markup!$H$7,Markup!$I$9,"")))) ->  | AD154: =IF($F154="","",IF($F154=Markup!$B$7,Markup!$C$10,IF($F154=Markup!$E$7,Markup!$F$10,IF($F154=Markup!$H$7,Markup!$I$10,"")))) ->  | AE154: =IF($F154="","",IF($F154=Markup!$B$7,Markup!$C$11,IF($F154=Markup!$E$7,Markup!$F$11,IF($F154=Markup!$H$7,Markup!$I$11,"")))) ->  | AF154: =IF($F154="","",IF($F154=Markup!$B$7,Markup!$C$12,IF($F154=Markup!$E$7,Markup!$F$12,IF($F154=Markup!$H$7,Markup!$I$12,"")))) -> 
I155: =IF(C155="","",Markup!$H$3*E155) ->  | AC155: =IF($F155="","",IF($F155=Markup!$B$7,Markup!$C$9,IF($F155=Markup!$E$7,Markup!$F$9,IF($F155=Markup!$H$7,Markup!$I$9,"")))) ->  | AD155: =IF($F155="","",IF($F155=Markup!$B$7,Markup!$C$10,IF($F155=Markup!$E$7,Markup!$F$10,IF($F155=Markup!$H$7,Markup!$I$10,"")))) ->  | AE155: =IF($F155="","",IF($F155=Markup!$B$7,Markup!$C$11,IF($F155=Markup!$E$7,Markup!$F$11,IF($F155=Markup!$H$7,Markup!$I$11,"")))) ->  | AF155: =IF($F155="","",IF($F155=Markup!$B$7,Markup!$C$12,IF($F155=Markup!$E$7,Markup!$F$12,IF($F155=Markup!$H$7,Markup!$I$12,"")))) -> 
I156: =IF(C156="","",Markup!$H$3*E156) ->  | AC156: =IF($F156="","",IF($F156=Markup!$B$7,Markup!$C$9,IF($F156=Markup!$E$7,Markup!$F$9,IF($F156=Markup!$H$7,Markup!$I$9,"")))) ->  | AD156: =IF($F156="","",IF($F156=Markup!$B$7,Markup!$C$10,IF($F156=Markup!$E$7,Markup!$F$10,IF($F156=Markup!$H$7,Markup!$I$10,"")))) ->  | AE156: =IF($F156="","",IF($F156=Markup!$B$7,Markup!$C$11,IF($F156=Markup!$E$7,Markup!$F$11,IF($F156=Markup!$H$7,Markup!$I$11,"")))) ->  | AF156: =IF($F156="","",IF($F156=Markup!$B$7,Markup!$C$12,IF($F156=Markup!$E$7,Markup!$F$12,IF($F156=Markup!$H$7,Markup!$I$12,"")))) -> 
I157: =IF(C157="","",Markup!$H$3*E157) ->  | AC157: =IF($F157="","",IF($F157=Markup!$B$7,Markup!$C$9,IF($F157=Markup!$E$7,Markup!$F$9,IF($F157=Markup!$H$7,Markup!$I$9,"")))) ->  | AD157: =IF($F157="","",IF($F157=Markup!$B$7,Markup!$C$10,IF($F157=Markup!$E$7,Markup!$F$10,IF($F157=Markup!$H$7,Markup!$I$10,"")))) ->  | AE157: =IF($F157="","",IF($F157=Markup!$B$7,Markup!$C$11,IF($F157=Markup!$E$7,Markup!$F$11,IF($F157=Markup!$H$7,Markup!$I$11,"")))) ->  | AF157: =IF($F157="","",IF($F157=Markup!$B$7,Markup!$C$12,IF($F157=Markup!$E$7,Markup!$F$12,IF($F157=Markup!$H$7,Markup!$I$12,"")))) -> 
I158: =IF(C158="","",Markup!$H$3*E158) ->  | AC158: =IF($F158="","",IF($F158=Markup!$B$7,Markup!$C$9,IF($F158=Markup!$E$7,Markup!$F$9,IF($F158=Markup!$H$7,Markup!$I$9,"")))) ->  | AD158: =IF($F158="","",IF($F158=Markup!$B$7,Markup!$C$10,IF($F158=Markup!$E$7,Markup!$F$10,IF($F158=Markup!$H$7,Markup!$I$10,"")))) ->  | AE158: =IF($F158="","",IF($F158=Markup!$B$7,Markup!$C$11,IF($F158=Markup!$E$7,Markup!$F$11,IF($F158=Markup!$H$7,Markup!$I$11,"")))) ->  | AF158: =IF($F158="","",IF($F158=Markup!$B$7,Markup!$C$12,IF($F158=Markup!$E$7,Markup!$F$12,IF($F158=Markup!$H$7,Markup!$I$12,"")))) -> 
I159: =IF(C159="","",Markup!$H$3*E159) ->  | AC159: =IF($F159="","",IF($F159=Markup!$B$7,Markup!$C$9,IF($F159=Markup!$E$7,Markup!$F$9,IF($F159=Markup!$H$7,Markup!$I$9,"")))) ->  | AD159: =IF($F159="","",IF($F159=Markup!$B$7,Markup!$C$10,IF($F159=Markup!$E$7,Markup!$F$10,IF($F159=Markup!$H$7,Markup!$I$10,"")))) ->  | AE159: =IF($F159="","",IF($F159=Markup!$B$7,Markup!$C$11,IF($F159=Markup!$E$7,Markup!$F$11,IF($F159=Markup!$H$7,Markup!$I$11,"")))) ->  | AF159: =IF($F159="","",IF($F159=Markup!$B$7,Markup!$C$12,IF($F159=Markup!$E$7,Markup!$F$12,IF($F159=Markup!$H$7,Markup!$I$12,"")))) -> 
I160: =IF(C160="","",Markup!$H$3*E160) ->  | AC160: =IF($F160="","",IF($F160=Markup!$B$7,Markup!$C$9,IF($F160=Markup!$E$7,Markup!$F$9,IF($F160=Markup!$H$7,Markup!$I$9,"")))) ->  | AD160: =IF($F160="","",IF($F160=Markup!$B$7,Markup!$C$10,IF($F160=Markup!$E$7,Markup!$F$10,IF($F160=Markup!$H$7,Markup!$I$10,"")))) ->  | AE160: =IF($F160="","",IF($F160=Markup!$B$7,Markup!$C$11,IF($F160=Markup!$E$7,Markup!$F$11,IF($F160=Markup!$H$7,Markup!$I$11,"")))) ->  | AF160: =IF($F160="","",IF($F160=Markup!$B$7,Markup!$C$12,IF($F160=Markup!$E$7,Markup!$F$12,IF($F160=Markup!$H$7,Markup!$I$12,"")))) -> 
I161: =IF(C161="","",Markup!$H$3*E161) ->  | AC161: =IF($F161="","",IF($F161=Markup!$B$7,Markup!$C$9,IF($F161=Markup!$E$7,Markup!$F$9,IF($F161=Markup!$H$7,Markup!$I$9,"")))) ->  | AD161: =IF($F161="","",IF($F161=Markup!$B$7,Markup!$C$10,IF($F161=Markup!$E$7,Markup!$F$10,IF($F161=Markup!$H$7,Markup!$I$10,"")))) ->  | AE161: =IF($F161="","",IF($F161=Markup!$B$7,Markup!$C$11,IF($F161=Markup!$E$7,Markup!$F$11,IF($F161=Markup!$H$7,Markup!$I$11,"")))) ->  | AF161: =IF($F161="","",IF($F161=Markup!$B$7,Markup!$C$12,IF($F161=Markup!$E$7,Markup!$F$12,IF($F161=Markup!$H$7,Markup!$I$12,"")))) -> 
I162: =IF(C162="","",Markup!$H$3*E162) ->  | AC162: =IF($F162="","",IF($F162=Markup!$B$7,Markup!$C$9,IF($F162=Markup!$E$7,Markup!$F$9,IF($F162=Markup!$H$7,Markup!$I$9,"")))) ->  | AD162: =IF($F162="","",IF($F162=Markup!$B$7,Markup!$C$10,IF($F162=Markup!$E$7,Markup!$F$10,IF($F162=Markup!$H$7,Markup!$I$10,"")))) ->  | AE162: =IF($F162="","",IF($F162=Markup!$B$7,Markup!$C$11,IF($F162=Markup!$E$7,Markup!$F$11,IF($F162=Markup!$H$7,Markup!$I$11,"")))) ->  | AF162: =IF($F162="","",IF($F162=Markup!$B$7,Markup!$C$12,IF($F162=Markup!$E$7,Markup!$F$12,IF($F162=Markup!$H$7,Markup!$I$12,"")))) -> 
I163: =IF(C163="","",Markup!$H$3*E163) ->  | AC163: =IF($F163="","",IF($F163=Markup!$B$7,Markup!$C$9,IF($F163=Markup!$E$7,Markup!$F$9,IF($F163=Markup!$H$7,Markup!$I$9,"")))) ->  | AD163: =IF($F163="","",IF($F163=Markup!$B$7,Markup!$C$10,IF($F163=Markup!$E$7,Markup!$F$10,IF($F163=Markup!$H$7,Markup!$I$10,"")))) ->  | AE163: =IF($F163="","",IF($F163=Markup!$B$7,Markup!$C$11,IF($F163=Markup!$E$7,Markup!$F$11,IF($F163=Markup!$H$7,Markup!$I$11,"")))) ->  | AF163: =IF($F163="","",IF($F163=Markup!$B$7,Markup!$C$12,IF($F163=Markup!$E$7,Markup!$F$12,IF($F163=Markup!$H$7,Markup!$I$12,"")))) -> 
I164: =IF(C164="","",Markup!$H$3*E164) ->  | AC164: =IF($F164="","",IF($F164=Markup!$B$7,Markup!$C$9,IF($F164=Markup!$E$7,Markup!$F$9,IF($F164=Markup!$H$7,Markup!$I$9,"")))) ->  | AD164: =IF($F164="","",IF($F164=Markup!$B$7,Markup!$C$10,IF($F164=Markup!$E$7,Markup!$F$10,IF($F164=Markup!$H$7,Markup!$I$10,"")))) ->  | AE164: =IF($F164="","",IF($F164=Markup!$B$7,Markup!$C$11,IF($F164=Markup!$E$7,Markup!$F$11,IF($F164=Markup!$H$7,Markup!$I$11,"")))) ->  | AF164: =IF($F164="","",IF($F164=Markup!$B$7,Markup!$C$12,IF($F164=Markup!$E$7,Markup!$F$12,IF($F164=Markup!$H$7,Markup!$I$12,"")))) -> 
I165: =IF(C165="","",Markup!$H$3*E165) ->  | AC165: =IF($F165="","",IF($F165=Markup!$B$7,Markup!$C$9,IF($F165=Markup!$E$7,Markup!$F$9,IF($F165=Markup!$H$7,Markup!$I$9,"")))) ->  | AD165: =IF($F165="","",IF($F165=Markup!$B$7,Markup!$C$10,IF($F165=Markup!$E$7,Markup!$F$10,IF($F165=Markup!$H$7,Markup!$I$10,"")))) ->  | AE165: =IF($F165="","",IF($F165=Markup!$B$7,Markup!$C$11,IF($F165=Markup!$E$7,Markup!$F$11,IF($F165=Markup!$H$7,Markup!$I$11,"")))) ->  | AF165: =IF($F165="","",IF($F165=Markup!$B$7,Markup!$C$12,IF($F165=Markup!$E$7,Markup!$F$12,IF($F165=Markup!$H$7,Markup!$I$12,"")))) -> 
I166: =IF(C166="","",Markup!$H$3*E166) ->  | AC166: =IF($F166="","",IF($F166=Markup!$B$7,Markup!$C$9,IF($F166=Markup!$E$7,Markup!$F$9,IF($F166=Markup!$H$7,Markup!$I$9,"")))) ->  | AD166: =IF($F166="","",IF($F166=Markup!$B$7,Markup!$C$10,IF($F166=Markup!$E$7,Markup!$F$10,IF($F166=Markup!$H$7,Markup!$I$10,"")))) ->  | AE166: =IF($F166="","",IF($F166=Markup!$B$7,Markup!$C$11,IF($F166=Markup!$E$7,Markup!$F$11,IF($F166=Markup!$H$7,Markup!$I$11,"")))) ->  | AF166: =IF($F166="","",IF($F166=Markup!$B$7,Markup!$C$12,IF($F166=Markup!$E$7,Markup!$F$12,IF($F166=Markup!$H$7,Markup!$I$12,"")))) -> 
I167: =IF(C167="","",Markup!$H$3*E167) ->  | AC167: =IF($F167="","",IF($F167=Markup!$B$7,Markup!$C$9,IF($F167=Markup!$E$7,Markup!$F$9,IF($F167=Markup!$H$7,Markup!$I$9,"")))) ->  | AD167: =IF($F167="","",IF($F167=Markup!$B$7,Markup!$C$10,IF($F167=Markup!$E$7,Markup!$F$10,IF($F167=Markup!$H$7,Markup!$I$10,"")))) ->  | AE167: =IF($F167="","",IF($F167=Markup!$B$7,Markup!$C$11,IF($F167=Markup!$E$7,Markup!$F$11,IF($F167=Markup!$H$7,Markup!$I$11,"")))) ->  | AF167: =IF($F167="","",IF($F167=Markup!$B$7,Markup!$C$12,IF($F167=Markup!$E$7,Markup!$F$12,IF($F167=Markup!$H$7,Markup!$I$12,"")))) -> 
I168: =IF(C168="","",Markup!$H$3*E168) ->  | AC168: =IF($F168="","",IF($F168=Markup!$B$7,Markup!$C$9,IF($F168=Markup!$E$7,Markup!$F$9,IF($F168=Markup!$H$7,Markup!$I$9,"")))) ->  | AD168: =IF($F168="","",IF($F168=Markup!$B$7,Markup!$C$10,IF($F168=Markup!$E$7,Markup!$F$10,IF($F168=Markup!$H$7,Markup!$I$10,"")))) ->  | AE168: =IF($F168="","",IF($F168=Markup!$B$7,Markup!$C$11,IF($F168=Markup!$E$7,Markup!$F$11,IF($F168=Markup!$H$7,Markup!$I$11,"")))) ->  | AF168: =IF($F168="","",IF($F168=Markup!$B$7,Markup!$C$12,IF($F168=Markup!$E$7,Markup!$F$12,IF($F168=Markup!$H$7,Markup!$I$12,"")))) -> 
I169: =IF(C169="","",Markup!$H$3*E169) ->  | AC169: =IF($F169="","",IF($F169=Markup!$B$7,Markup!$C$9,IF($F169=Markup!$E$7,Markup!$F$9,IF($F169=Markup!$H$7,Markup!$I$9,"")))) ->  | AD169: =IF($F169="","",IF($F169=Markup!$B$7,Markup!$C$10,IF($F169=Markup!$E$7,Markup!$F$10,IF($F169=Markup!$H$7,Markup!$I$10,"")))) ->  | AE169: =IF($F169="","",IF($F169=Markup!$B$7,Markup!$C$11,IF($F169=Markup!$E$7,Markup!$F$11,IF($F169=Markup!$H$7,Markup!$I$11,"")))) ->  | AF169: =IF($F169="","",IF($F169=Markup!$B$7,Markup!$C$12,IF($F169=Markup!$E$7,Markup!$F$12,IF($F169=Markup!$H$7,Markup!$I$12,"")))) -> 
I170: =IF(C170="","",Markup!$H$3*E170) ->  | AC170: =IF($F170="","",IF($F170=Markup!$B$7,Markup!$C$9,IF($F170=Markup!$E$7,Markup!$F$9,IF($F170=Markup!$H$7,Markup!$I$9,"")))) ->  | AD170: =IF($F170="","",IF($F170=Markup!$B$7,Markup!$C$10,IF($F170=Markup!$E$7,Markup!$F$10,IF($F170=Markup!$H$7,Markup!$I$10,"")))) ->  | AE170: =IF($F170="","",IF($F170=Markup!$B$7,Markup!$C$11,IF($F170=Markup!$E$7,Markup!$F$11,IF($F170=Markup!$H$7,Markup!$I$11,"")))) ->  | AF170: =IF($F170="","",IF($F170=Markup!$B$7,Markup!$C$12,IF($F170=Markup!$E$7,Markup!$F$12,IF($F170=Markup!$H$7,Markup!$I$12,"")))) -> 
I171: =IF(C171="","",Markup!$H$3*E171) ->  | AC171: =IF($F171="","",IF($F171=Markup!$B$7,Markup!$C$9,IF($F171=Markup!$E$7,Markup!$F$9,IF($F171=Markup!$H$7,Markup!$I$9,"")))) ->  | AD171: =IF($F171="","",IF($F171=Markup!$B$7,Markup!$C$10,IF($F171=Markup!$E$7,Markup!$F$10,IF($F171=Markup!$H$7,Markup!$I$10,"")))) ->  | AE171: =IF($F171="","",IF($F171=Markup!$B$7,Markup!$C$11,IF($F171=Markup!$E$7,Markup!$F$11,IF($F171=Markup!$H$7,Markup!$I$11,"")))) ->  | AF171: =IF($F171="","",IF($F171=Markup!$B$7,Markup!$C$12,IF($F171=Markup!$E$7,Markup!$F$12,IF($F171=Markup!$H$7,Markup!$I$12,"")))) -> 
I172: =IF(C172="","",Markup!$H$3*E172) ->  | AC172: =IF($F172="","",IF($F172=Markup!$B$7,Markup!$C$9,IF($F172=Markup!$E$7,Markup!$F$9,IF($F172=Markup!$H$7,Markup!$I$9,"")))) ->  | AD172: =IF($F172="","",IF($F172=Markup!$B$7,Markup!$C$10,IF($F172=Markup!$E$7,Markup!$F$10,IF($F172=Markup!$H$7,Markup!$I$10,"")))) ->  | AE172: =IF($F172="","",IF($F172=Markup!$B$7,Markup!$C$11,IF($F172=Markup!$E$7,Markup!$F$11,IF($F172=Markup!$H$7,Markup!$I$11,"")))) ->  | AF172: =IF($F172="","",IF($F172=Markup!$B$7,Markup!$C$12,IF($F172=Markup!$E$7,Markup!$F$12,IF($F172=Markup!$H$7,Markup!$I$12,"")))) -> 
I173: =IF(C173="","",Markup!$H$3*E173) ->  | AC173: =IF($F173="","",IF($F173=Markup!$B$7,Markup!$C$9,IF($F173=Markup!$E$7,Markup!$F$9,IF($F173=Markup!$H$7,Markup!$I$9,"")))) ->  | AD173: =IF($F173="","",IF($F173=Markup!$B$7,Markup!$C$10,IF($F173=Markup!$E$7,Markup!$F$10,IF($F173=Markup!$H$7,Markup!$I$10,"")))) ->  | AE173: =IF($F173="","",IF($F173=Markup!$B$7,Markup!$C$11,IF($F173=Markup!$E$7,Markup!$F$11,IF($F173=Markup!$H$7,Markup!$I$11,"")))) ->  | AF173: =IF($F173="","",IF($F173=Markup!$B$7,Markup!$C$12,IF($F173=Markup!$E$7,Markup!$F$12,IF($F173=Markup!$H$7,Markup!$I$12,"")))) -> 
I174: =IF(C174="","",Markup!$H$3*E174) ->  | AC174: =IF($F174="","",IF($F174=Markup!$B$7,Markup!$C$9,IF($F174=Markup!$E$7,Markup!$F$9,IF($F174=Markup!$H$7,Markup!$I$9,"")))) ->  | AD174: =IF($F174="","",IF($F174=Markup!$B$7,Markup!$C$10,IF($F174=Markup!$E$7,Markup!$F$10,IF($F174=Markup!$H$7,Markup!$I$10,"")))) ->  | AE174: =IF($F174="","",IF($F174=Markup!$B$7,Markup!$C$11,IF($F174=Markup!$E$7,Markup!$F$11,IF($F174=Markup!$H$7,Markup!$I$11,"")))) ->  | AF174: =IF($F174="","",IF($F174=Markup!$B$7,Markup!$C$12,IF($F174=Markup!$E$7,Markup!$F$12,IF($F174=Markup!$H$7,Markup!$I$12,"")))) -> 
I175: =IF(C175="","",Markup!$H$3*E175) ->  | AC175: =IF($F175="","",IF($F175=Markup!$B$7,Markup!$C$9,IF($F175=Markup!$E$7,Markup!$F$9,IF($F175=Markup!$H$7,Markup!$I$9,"")))) ->  | AD175: =IF($F175="","",IF($F175=Markup!$B$7,Markup!$C$10,IF($F175=Markup!$E$7,Markup!$F$10,IF($F175=Markup!$H$7,Markup!$I$10,"")))) ->  | AE175: =IF($F175="","",IF($F175=Markup!$B$7,Markup!$C$11,IF($F175=Markup!$E$7,Markup!$F$11,IF($F175=Markup!$H$7,Markup!$I$11,"")))) ->  | AF175: =IF($F175="","",IF($F175=Markup!$B$7,Markup!$C$12,IF($F175=Markup!$E$7,Markup!$F$12,IF($F175=Markup!$H$7,Markup!$I$12,"")))) -> 
I176: =IF(C176="","",Markup!$H$3*E176) ->  | AC176: =IF($F176="","",IF($F176=Markup!$B$7,Markup!$C$9,IF($F176=Markup!$E$7,Markup!$F$9,IF($F176=Markup!$H$7,Markup!$I$9,"")))) ->  | AD176: =IF($F176="","",IF($F176=Markup!$B$7,Markup!$C$10,IF($F176=Markup!$E$7,Markup!$F$10,IF($F176=Markup!$H$7,Markup!$I$10,"")))) ->  | AE176: =IF($F176="","",IF($F176=Markup!$B$7,Markup!$C$11,IF($F176=Markup!$E$7,Markup!$F$11,IF($F176=Markup!$H$7,Markup!$I$11,"")))) ->  | AF176: =IF($F176="","",IF($F176=Markup!$B$7,Markup!$C$12,IF($F176=Markup!$E$7,Markup!$F$12,IF($F176=Markup!$H$7,Markup!$I$12,"")))) -> 
I177: =IF(C177="","",Markup!$H$3*E177) ->  | AC177: =IF($F177="","",IF($F177=Markup!$B$7,Markup!$C$9,IF($F177=Markup!$E$7,Markup!$F$9,IF($F177=Markup!$H$7,Markup!$I$9,"")))) ->  | AD177: =IF($F177="","",IF($F177=Markup!$B$7,Markup!$C$10,IF($F177=Markup!$E$7,Markup!$F$10,IF($F177=Markup!$H$7,Markup!$I$10,"")))) ->  | AE177: =IF($F177="","",IF($F177=Markup!$B$7,Markup!$C$11,IF($F177=Markup!$E$7,Markup!$F$11,IF($F177=Markup!$H$7,Markup!$I$11,"")))) ->  | AF177: =IF($F177="","",IF($F177=Markup!$B$7,Markup!$C$12,IF($F177=Markup!$E$7,Markup!$F$12,IF($F177=Markup!$H$7,Markup!$I$12,"")))) -> 
I178: =IF(C178="","",Markup!$H$3*E178) ->  | AC178: =IF($F178="","",IF($F178=Markup!$B$7,Markup!$C$9,IF($F178=Markup!$E$7,Markup!$F$9,IF($F178=Markup!$H$7,Markup!$I$9,"")))) ->  | AD178: =IF($F178="","",IF($F178=Markup!$B$7,Markup!$C$10,IF($F178=Markup!$E$7,Markup!$F$10,IF($F178=Markup!$H$7,Markup!$I$10,"")))) ->  | AE178: =IF($F178="","",IF($F178=Markup!$B$7,Markup!$C$11,IF($F178=Markup!$E$7,Markup!$F$11,IF($F178=Markup!$H$7,Markup!$I$11,"")))) ->  | AF178: =IF($F178="","",IF($F178=Markup!$B$7,Markup!$C$12,IF($F178=Markup!$E$7,Markup!$F$12,IF($F178=Markup!$H$7,Markup!$I$12,"")))) -> 
I179: =IF(C179="","",Markup!$H$3*E179) ->  | AC179: =IF($F179="","",IF($F179=Markup!$B$7,Markup!$C$9,IF($F179=Markup!$E$7,Markup!$F$9,IF($F179=Markup!$H$7,Markup!$I$9,"")))) ->  | AD179: =IF($F179="","",IF($F179=Markup!$B$7,Markup!$C$10,IF($F179=Markup!$E$7,Markup!$F$10,IF($F179=Markup!$H$7,Markup!$I$10,"")))) ->  | AE179: =IF($F179="","",IF($F179=Markup!$B$7,Markup!$C$11,IF($F179=Markup!$E$7,Markup!$F$11,IF($F179=Markup!$H$7,Markup!$I$11,"")))) ->  | AF179: =IF($F179="","",IF($F179=Markup!$B$7,Markup!$C$12,IF($F179=Markup!$E$7,Markup!$F$12,IF($F179=Markup!$H$7,Markup!$I$12,"")))) -> 
I180: =IF(C180="","",Markup!$H$3*E180) ->  | AC180: =IF($F180="","",IF($F180=Markup!$B$7,Markup!$C$9,IF($F180=Markup!$E$7,Markup!$F$9,IF($F180=Markup!$H$7,Markup!$I$9,"")))) ->  | AD180: =IF($F180="","",IF($F180=Markup!$B$7,Markup!$C$10,IF($F180=Markup!$E$7,Markup!$F$10,IF($F180=Markup!$H$7,Markup!$I$10,"")))) ->  | AE180: =IF($F180="","",IF($F180=Markup!$B$7,Markup!$C$11,IF($F180=Markup!$E$7,Markup!$F$11,IF($F180=Markup!$H$7,Markup!$I$11,"")))) ->  | AF180: =IF($F180="","",IF($F180=Markup!$B$7,Markup!$C$12,IF($F180=Markup!$E$7,Markup!$F$12,IF($F180=Markup!$H$7,Markup!$I$12,"")))) -> 
I181: =IF(C181="","",Markup!$H$3*E181) ->  | AC181: =IF($F181="","",IF($F181=Markup!$B$7,Markup!$C$9,IF($F181=Markup!$E$7,Markup!$F$9,IF($F181=Markup!$H$7,Markup!$I$9,"")))) ->  | AD181: =IF($F181="","",IF($F181=Markup!$B$7,Markup!$C$10,IF($F181=Markup!$E$7,Markup!$F$10,IF($F181=Markup!$H$7,Markup!$I$10,"")))) ->  | AE181: =IF($F181="","",IF($F181=Markup!$B$7,Markup!$C$11,IF($F181=Markup!$E$7,Markup!$F$11,IF($F181=Markup!$H$7,Markup!$I$11,"")))) ->  | AF181: =IF($F181="","",IF($F181=Markup!$B$7,Markup!$C$12,IF($F181=Markup!$E$7,Markup!$F$12,IF($F181=Markup!$H$7,Markup!$I$12,"")))) -> 
I182: =IF(C182="","",Markup!$H$3*E182) ->  | AC182: =IF($F182="","",IF($F182=Markup!$B$7,Markup!$C$9,IF($F182=Markup!$E$7,Markup!$F$9,IF($F182=Markup!$H$7,Markup!$I$9,"")))) ->  | AD182: =IF($F182="","",IF($F182=Markup!$B$7,Markup!$C$10,IF($F182=Markup!$E$7,Markup!$F$10,IF($F182=Markup!$H$7,Markup!$I$10,"")))) ->  | AE182: =IF($F182="","",IF($F182=Markup!$B$7,Markup!$C$11,IF($F182=Markup!$E$7,Markup!$F$11,IF($F182=Markup!$H$7,Markup!$I$11,"")))) ->  | AF182: =IF($F182="","",IF($F182=Markup!$B$7,Markup!$C$12,IF($F182=Markup!$E$7,Markup!$F$12,IF($F182=Markup!$H$7,Markup!$I$12,"")))) -> 
I183: =IF(C183="","",Markup!$H$3*E183) ->  | AC183: =IF($F183="","",IF($F183=Markup!$B$7,Markup!$C$9,IF($F183=Markup!$E$7,Markup!$F$9,IF($F183=Markup!$H$7,Markup!$I$9,"")))) ->  | AD183: =IF($F183="","",IF($F183=Markup!$B$7,Markup!$C$10,IF($F183=Markup!$E$7,Markup!$F$10,IF($F183=Markup!$H$7,Markup!$I$10,"")))) ->  | AE183: =IF($F183="","",IF($F183=Markup!$B$7,Markup!$C$11,IF($F183=Markup!$E$7,Markup!$F$11,IF($F183=Markup!$H$7,Markup!$I$11,"")))) ->  | AF183: =IF($F183="","",IF($F183=Markup!$B$7,Markup!$C$12,IF($F183=Markup!$E$7,Markup!$F$12,IF($F183=Markup!$H$7,Markup!$I$12,"")))) -> 
I184: =IF(C184="","",Markup!$H$3*E184) ->  | AC184: =IF($F184="","",IF($F184=Markup!$B$7,Markup!$C$9,IF($F184=Markup!$E$7,Markup!$F$9,IF($F184=Markup!$H$7,Markup!$I$9,"")))) ->  | AD184: =IF($F184="","",IF($F184=Markup!$B$7,Markup!$C$10,IF($F184=Markup!$E$7,Markup!$F$10,IF($F184=Markup!$H$7,Markup!$I$10,"")))) ->  | AE184: =IF($F184="","",IF($F184=Markup!$B$7,Markup!$C$11,IF($F184=Markup!$E$7,Markup!$F$11,IF($F184=Markup!$H$7,Markup!$I$11,"")))) ->  | AF184: =IF($F184="","",IF($F184=Markup!$B$7,Markup!$C$12,IF($F184=Markup!$E$7,Markup!$F$12,IF($F184=Markup!$H$7,Markup!$I$12,"")))) -> 
I185: =IF(C185="","",Markup!$H$3*E185) ->  | AC185: =IF($F185="","",IF($F185=Markup!$B$7,Markup!$C$9,IF($F185=Markup!$E$7,Markup!$F$9,IF($F185=Markup!$H$7,Markup!$I$9,"")))) ->  | AD185: =IF($F185="","",IF($F185=Markup!$B$7,Markup!$C$10,IF($F185=Markup!$E$7,Markup!$F$10,IF($F185=Markup!$H$7,Markup!$I$10,"")))) ->  | AE185: =IF($F185="","",IF($F185=Markup!$B$7,Markup!$C$11,IF($F185=Markup!$E$7,Markup!$F$11,IF($F185=Markup!$H$7,Markup!$I$11,"")))) ->  | AF185: =IF($F185="","",IF($F185=Markup!$B$7,Markup!$C$12,IF($F185=Markup!$E$7,Markup!$F$12,IF($F185=Markup!$H$7,Markup!$I$12,"")))) -> 
I186: =IF(C186="","",Markup!$H$3*E186) ->  | AC186: =IF($F186="","",IF($F186=Markup!$B$7,Markup!$C$9,IF($F186=Markup!$E$7,Markup!$F$9,IF($F186=Markup!$H$7,Markup!$I$9,"")))) ->  | AD186: =IF($F186="","",IF($F186=Markup!$B$7,Markup!$C$10,IF($F186=Markup!$E$7,Markup!$F$10,IF($F186=Markup!$H$7,Markup!$I$10,"")))) ->  | AE186: =IF($F186="","",IF($F186=Markup!$B$7,Markup!$C$11,IF($F186=Markup!$E$7,Markup!$F$11,IF($F186=Markup!$H$7,Markup!$I$11,"")))) ->  | AF186: =IF($F186="","",IF($F186=Markup!$B$7,Markup!$C$12,IF($F186=Markup!$E$7,Markup!$F$12,IF($F186=Markup!$H$7,Markup!$I$12,"")))) -> 
I187: =IF(C187="","",Markup!$H$3*E187) ->  | AC187: =IF($F187="","",IF($F187=Markup!$B$7,Markup!$C$9,IF($F187=Markup!$E$7,Markup!$F$9,IF($F187=Markup!$H$7,Markup!$I$9,"")))) ->  | AD187: =IF($F187="","",IF($F187=Markup!$B$7,Markup!$C$10,IF($F187=Markup!$E$7,Markup!$F$10,IF($F187=Markup!$H$7,Markup!$I$10,"")))) ->  | AE187: =IF($F187="","",IF($F187=Markup!$B$7,Markup!$C$11,IF($F187=Markup!$E$7,Markup!$F$11,IF($F187=Markup!$H$7,Markup!$I$11,"")))) ->  | AF187: =IF($F187="","",IF($F187=Markup!$B$7,Markup!$C$12,IF($F187=Markup!$E$7,Markup!$F$12,IF($F187=Markup!$H$7,Markup!$I$12,"")))) -> 
I188: =IF(C188="","",Markup!$H$3*E188) ->  | AC188: =IF($F188="","",IF($F188=Markup!$B$7,Markup!$C$9,IF($F188=Markup!$E$7,Markup!$F$9,IF($F188=Markup!$H$7,Markup!$I$9,"")))) ->  | AD188: =IF($F188="","",IF($F188=Markup!$B$7,Markup!$C$10,IF($F188=Markup!$E$7,Markup!$F$10,IF($F188=Markup!$H$7,Markup!$I$10,"")))) ->  | AE188: =IF($F188="","",IF($F188=Markup!$B$7,Markup!$C$11,IF($F188=Markup!$E$7,Markup!$F$11,IF($F188=Markup!$H$7,Markup!$I$11,"")))) ->  | AF188: =IF($F188="","",IF($F188=Markup!$B$7,Markup!$C$12,IF($F188=Markup!$E$7,Markup!$F$12,IF($F188=Markup!$H$7,Markup!$I$12,"")))) -> 
I189: =IF(C189="","",Markup!$H$3*E189) ->  | AC189: =IF($F189="","",IF($F189=Markup!$B$7,Markup!$C$9,IF($F189=Markup!$E$7,Markup!$F$9,IF($F189=Markup!$H$7,Markup!$I$9,"")))) ->  | AD189: =IF($F189="","",IF($F189=Markup!$B$7,Markup!$C$10,IF($F189=Markup!$E$7,Markup!$F$10,IF($F189=Markup!$H$7,Markup!$I$10,"")))) ->  | AE189: =IF($F189="","",IF($F189=Markup!$B$7,Markup!$C$11,IF($F189=Markup!$E$7,Markup!$F$11,IF($F189=Markup!$H$7,Markup!$I$11,"")))) ->  | AF189: =IF($F189="","",IF($F189=Markup!$B$7,Markup!$C$12,IF($F189=Markup!$E$7,Markup!$F$12,IF($F189=Markup!$H$7,Markup!$I$12,"")))) -> 
I190: =IF(C190="","",Markup!$H$3*E190) ->  | AC190: =IF($F190="","",IF($F190=Markup!$B$7,Markup!$C$9,IF($F190=Markup!$E$7,Markup!$F$9,IF($F190=Markup!$H$7,Markup!$I$9,"")))) ->  | AD190: =IF($F190="","",IF($F190=Markup!$B$7,Markup!$C$10,IF($F190=Markup!$E$7,Markup!$F$10,IF($F190=Markup!$H$7,Markup!$I$10,"")))) ->  | AE190: =IF($F190="","",IF($F190=Markup!$B$7,Markup!$C$11,IF($F190=Markup!$E$7,Markup!$F$11,IF($F190=Markup!$H$7,Markup!$I$11,"")))) ->  | AF190: =IF($F190="","",IF($F190=Markup!$B$7,Markup!$C$12,IF($F190=Markup!$E$7,Markup!$F$12,IF($F190=Markup!$H$7,Markup!$I$12,"")))) -> 
I191: =IF(C191="","",Markup!$H$3*E191) ->  | AC191: =IF($F191="","",IF($F191=Markup!$B$7,Markup!$C$9,IF($F191=Markup!$E$7,Markup!$F$9,IF($F191=Markup!$H$7,Markup!$I$9,"")))) ->  | AD191: =IF($F191="","",IF($F191=Markup!$B$7,Markup!$C$10,IF($F191=Markup!$E$7,Markup!$F$10,IF($F191=Markup!$H$7,Markup!$I$10,"")))) ->  | AE191: =IF($F191="","",IF($F191=Markup!$B$7,Markup!$C$11,IF($F191=Markup!$E$7,Markup!$F$11,IF($F191=Markup!$H$7,Markup!$I$11,"")))) ->  | AF191: =IF($F191="","",IF($F191=Markup!$B$7,Markup!$C$12,IF($F191=Markup!$E$7,Markup!$F$12,IF($F191=Markup!$H$7,Markup!$I$12,"")))) -> 
I192: =IF(C192="","",Markup!$H$3*E192) ->  | AC192: =IF($F192="","",IF($F192=Markup!$B$7,Markup!$C$9,IF($F192=Markup!$E$7,Markup!$F$9,IF($F192=Markup!$H$7,Markup!$I$9,"")))) ->  | AD192: =IF($F192="","",IF($F192=Markup!$B$7,Markup!$C$10,IF($F192=Markup!$E$7,Markup!$F$10,IF($F192=Markup!$H$7,Markup!$I$10,"")))) ->  | AE192: =IF($F192="","",IF($F192=Markup!$B$7,Markup!$C$11,IF($F192=Markup!$E$7,Markup!$F$11,IF($F192=Markup!$H$7,Markup!$I$11,"")))) ->  | AF192: =IF($F192="","",IF($F192=Markup!$B$7,Markup!$C$12,IF($F192=Markup!$E$7,Markup!$F$12,IF($F192=Markup!$H$7,Markup!$I$12,"")))) -> 
I193: =IF(C193="","",Markup!$H$3*E193) ->  | AC193: =IF($F193="","",IF($F193=Markup!$B$7,Markup!$C$9,IF($F193=Markup!$E$7,Markup!$F$9,IF($F193=Markup!$H$7,Markup!$I$9,"")))) ->  | AD193: =IF($F193="","",IF($F193=Markup!$B$7,Markup!$C$10,IF($F193=Markup!$E$7,Markup!$F$10,IF($F193=Markup!$H$7,Markup!$I$10,"")))) ->  | AE193: =IF($F193="","",IF($F193=Markup!$B$7,Markup!$C$11,IF($F193=Markup!$E$7,Markup!$F$11,IF($F193=Markup!$H$7,Markup!$I$11,"")))) ->  | AF193: =IF($F193="","",IF($F193=Markup!$B$7,Markup!$C$12,IF($F193=Markup!$E$7,Markup!$F$12,IF($F193=Markup!$H$7,Markup!$I$12,"")))) -> 
I194: =IF(C194="","",Markup!$H$3*E194) ->  | AC194: =IF($F194="","",IF($F194=Markup!$B$7,Markup!$C$9,IF($F194=Markup!$E$7,Markup!$F$9,IF($F194=Markup!$H$7,Markup!$I$9,"")))) ->  | AD194: =IF($F194="","",IF($F194=Markup!$B$7,Markup!$C$10,IF($F194=Markup!$E$7,Markup!$F$10,IF($F194=Markup!$H$7,Markup!$I$10,"")))) ->  | AE194: =IF($F194="","",IF($F194=Markup!$B$7,Markup!$C$11,IF($F194=Markup!$E$7,Markup!$F$11,IF($F194=Markup!$H$7,Markup!$I$11,"")))) ->  | AF194: =IF($F194="","",IF($F194=Markup!$B$7,Markup!$C$12,IF($F194=Markup!$E$7,Markup!$F$12,IF($F194=Markup!$H$7,Markup!$I$12,"")))) -> 
I195: =IF(C195="","",Markup!$H$3*E195) ->  | AC195: =IF($F195="","",IF($F195=Markup!$B$7,Markup!$C$9,IF($F195=Markup!$E$7,Markup!$F$9,IF($F195=Markup!$H$7,Markup!$I$9,"")))) ->  | AD195: =IF($F195="","",IF($F195=Markup!$B$7,Markup!$C$10,IF($F195=Markup!$E$7,Markup!$F$10,IF($F195=Markup!$H$7,Markup!$I$10,"")))) ->  | AE195: =IF($F195="","",IF($F195=Markup!$B$7,Markup!$C$11,IF($F195=Markup!$E$7,Markup!$F$11,IF($F195=Markup!$H$7,Markup!$I$11,"")))) ->  | AF195: =IF($F195="","",IF($F195=Markup!$B$7,Markup!$C$12,IF($F195=Markup!$E$7,Markup!$F$12,IF($F195=Markup!$H$7,Markup!$I$12,"")))) -> 
G196: =IF(F196=$Y$4,$Z$4,IF(F196=$Y$5,$Z$5,IF(F196=$Y$6,$Z$6,""))) ->  | I196: =IF(C196="","",Markup!$H$3*E196) ->  | AC196: =IF($F196="","",IF($F196=Markup!$B$7,Markup!$C$9,IF($F196=Markup!$E$7,Markup!$F$9,IF($F196=Markup!$H$7,Markup!$I$9,"")))) ->  | AD196: =IF($F196="","",IF($F196=Markup!$B$7,Markup!$C$10,IF($F196=Markup!$E$7,Markup!$F$10,IF($F196=Markup!$H$7,Markup!$I$10,"")))) ->  | AE196: =IF($F196="","",IF($F196=Markup!$B$7,Markup!$C$11,IF($F196=Markup!$E$7,Markup!$F$11,IF($F196=Markup!$H$7,Markup!$I$11,"")))) ->  | AF196: =IF($F196="","",IF($F196=Markup!$B$7,Markup!$C$12,IF($F196=Markup!$E$7,Markup!$F$12,IF($F196=Markup!$H$7,Markup!$I$12,"")))) -> 
H197: =IF(D197="","",D197) ->  | I197: =IF(C197="","",Markup!$H$3*E197) ->  | J197: =IF(OR(H197="",G197=""),"",(H197+I197)*G197) ->  | Q197: =IF(J197="","",(L197-H197-(L197*SUM($AC$4:$AF$4)))) ->  | R197: =IF(Q197="","",(Q197/L197)) ->  | U197: =IF(T197="","",T197/SUM($T$4:$T$500)) ->  | AC197: =IF($F197="","",IF($F197=Markup!$B$7,Markup!$C$9,IF($F197=Markup!$E$7,Markup!$F$9,IF($F197=Markup!$H$7,Markup!$I$9,"")))) ->  | AD197: =IF($F197="","",IF($F197=Markup!$B$7,Markup!$C$10,IF($F197=Markup!$E$7,Markup!$F$10,IF($F197=Markup!$H$7,Markup!$I$10,"")))) ->  | AE197: =IF($F197="","",IF($F197=Markup!$B$7,Markup!$C$11,IF($F197=Markup!$E$7,Markup!$F$11,IF($F197=Markup!$H$7,Markup!$I$11,"")))) ->  | AF197: =IF($F197="","",IF($F197=Markup!$B$7,Markup!$C$12,IF($F197=Markup!$E$7,Markup!$F$12,IF($F197=Markup!$H$7,Markup!$I$12,"")))) -> 
I198: =IF(C198="","",Markup!$H$3*E198) ->  | AC198: =IF($F198="","",IF($F198=Markup!$B$7,Markup!$C$9,IF($F198=Markup!$E$7,Markup!$F$9,IF($F198=Markup!$H$7,Markup!$I$9,"")))) ->  | AD198: =IF($F198="","",IF($F198=Markup!$B$7,Markup!$C$10,IF($F198=Markup!$E$7,Markup!$F$10,IF($F198=Markup!$H$7,Markup!$I$10,"")))) ->  | AE198: =IF($F198="","",IF($F198=Markup!$B$7,Markup!$C$11,IF($F198=Markup!$E$7,Markup!$F$11,IF($F198=Markup!$H$7,Markup!$I$11,"")))) ->  | AF198: =IF($F198="","",IF($F198=Markup!$B$7,Markup!$C$12,IF($F198=Markup!$E$7,Markup!$F$12,IF($F198=Markup!$H$7,Markup!$I$12,"")))) -> 
I199: =IF(C199="","",Markup!$H$3*E199) ->  | N199: =IF(L199="","",M199/L199) ->  | AC199: =IF($F199="","",IF($F199=Markup!$B$7,Markup!$C$9,IF($F199=Markup!$E$7,Markup!$F$9,IF($F199=Markup!$H$7,Markup!$I$9,"")))) ->  | AD199: =IF($F199="","",IF($F199=Markup!$B$7,Markup!$C$10,IF($F199=Markup!$E$7,Markup!$F$10,IF($F199=Markup!$H$7,Markup!$I$10,"")))) ->  | AE199: =IF($F199="","",IF($F199=Markup!$B$7,Markup!$C$11,IF($F199=Markup!$E$7,Markup!$F$11,IF($F199=Markup!$H$7,Markup!$I$11,"")))) ->  | AF199: =IF($F199="","",IF($F199=Markup!$B$7,Markup!$C$12,IF($F199=Markup!$E$7,Markup!$F$12,IF($F199=Markup!$H$7,Markup!$I$12,"")))) -> 
A200: =IF(M200="Falta Dados","",IF(M200="","",IF(M200<0,"Abaixo do ideal","Preço bom"))) ->  | I200: =IF(C200="","",Markup!$H$3*E200) ->  | M200: =IF(AND(L200>0,J200=""),"Falta Dados",IF(L200="","",L200-J200)) ->  | AC200: =IF($F200="","",IF($F200=Markup!$B$7,Markup!$C$9,IF($F200=Markup!$E$7,Markup!$F$9,IF($F200=Markup!$H$7,Markup!$I$9,"")))) ->  | AD200: =IF($F200="","",IF($F200=Markup!$B$7,Markup!$C$10,IF($F200=Markup!$E$7,Markup!$F$10,IF($F200=Markup!$H$7,Markup!$I$10,"")))) ->  | AE200: =IF($F200="","",IF($F200=Markup!$B$7,Markup!$C$11,IF($F200=Markup!$E$7,Markup!$F$11,IF($F200=Markup!$H$7,Markup!$I$11,"")))) ->  | AF200: =IF($F200="","",IF($F200=Markup!$B$7,Markup!$C$12,IF($F200=Markup!$E$7,Markup!$F$12,IF($F200=Markup!$H$7,Markup!$I$12,"")))) -> 
... 301 more rows

Sheet Simulação
B2: FORMAÇÃO DO PREÇO
Y3: Linha do serviço | Z3: Taxa de Marcação
Y4: =IF(Markup!B8="","",Markup!B8) -> Linha Premium | Z4: =IF(Y4="","",(Markup!C16)) -> 1.961 | AB4: =Markup!B9 -> Impostos sobre faturamento | AC4: =IF($G7="","",IF($G7=Markup!$B$7,Markup!$C$9,IF($G7=Markup!$E$7,Markup!$F$9,IF($G7=Markup!$H$7,Markup!$I$9,"")))) -> 6.0%
Q5: =Markup!B7 -> Linha Premium | Y5: =IF(Markup!E8="","",Markup!E8) -> Linha Gold | Z5: =IF(Y5="","",Markup!F16) -> 1.786 | AB5: =Markup!B10 -> Comissões de venda | AC5: =IF($G7="","",IF($G7=Markup!$B$7,Markup!$C$10,IF($G7=Markup!$E$7,Markup!$F$10,IF($G7=Markup!$H$7,Markup!$I$10,"")))) -> 10.0%
G6: Utilizar a Taxa de Marcação: | I6: TM - Taxa de Marcação | J6: =IF(G7=Y4,Z4,IF(G7=Y5,Z5,IF(G7=Y6,Z6,"selecione TM"))) -> 1.64 | Y6: =IF(Markup!H8="","",Markup!H8) -> Linha Prata | Z6: =IF(Y6="","",Markup!I16) -> 1.639 | AB6: =Markup!B11 -> % de cartão crédito / débito | AC6: =IF($G7="","",IF($G7=Markup!$B$7,Markup!$C$11,IF($G7=Markup!$E$7,Markup!$F$11,IF($G7=Markup!$H$7,Markup!$I$11,"")))) -> 3.0%
G7: Linha Prata | AB7: =Markup!B12 -> Outro % sobre venda | AC7: =IF($G7="","",IF($G7=Markup!$B$7,Markup!$C$12,IF($G7=Markup!$E$7,Markup!$F$12,IF($G7=Markup!$H$7,Markup!$I$12,"")))) -> 0.0%
G8: =IF(G7="","Selecione a Taxa de Marcação desejada!","") ->  | I8: Gasto Fixo por hora | J8: =Markup!$H$3 -> R$ 91.99
I10: Preço da Hora Técnica | J10: =J8*J6 -> R$ 150.81
B15: Precificação ideal | F15: Ganho do Projeto | I15: Simulação 2 do projeto
B17: Horas previstas no projeto | C17: 20 | F17: Preço Cobrado Ideal | G17: =C31 -> R$ 6,622.67 | I17: Preço Cobrado Simulado | J17: R$ 6,500.00 | K17: <- Coloque o preço simulado
F18: =Markup!B9 -> Impostos sobre faturamento | G18: =$G$17*$AC4 -> R$ 397.36 | I18: =IF(F18="","",F18) -> Impostos sobre faturamento | J18: =$J$17*$AC4 -> R$ 390.00
B19: Gasto fixo rateado | C19: =C17*J8 -> R$ 1,839.83 | F19: =Markup!B10 -> Comissões de venda | G19: =$G$17*$AC5 -> R$ 662.27 | I19: Comissões de venda | J19: =$J$17*$AC5 -> R$ 650.00
F20: =Markup!B11 -> % de cartão crédito / débito | G20: R$ 198.68 | I20: % de cartão crédito / débito | J20: R$ 195.00
B21: Gastos variáveis do projeto | C21: =SUM(C22:C28) -> R$ 2,200.00 | F21: =Markup!B12 -> Outro % sobre venda | G21: 0 | I21: Outro % sobre venda | J21: 0
B22: Transporte | C22: R$ 200.00
B23: Materiais | C23: R$ 600.00 | F23: =B22 -> Transporte | G23: =$C$22 -> R$ 200.00 | I23: Transporte | J23: =$C$22 -> R$ 200.00
B24: Boletos bancários | F24: Materiais | G24: =$C$23 -> R$ 600.00 | I24: Materiais | J24: =$C$23 -> R$ 600.00
B25: Terceirização de mão de obra | C25: =400+800+200 -> R$ 1,400.00 | F25: Boletos bancários | G25: =$C$24 -> 0 | I25: Boletos bancários | J25: =$C$24 -> 0
F26: Terceirização de mão de obra | G26: =$C$25 -> R$ 1,400.00 | I26: Terceirização de mão de obra | J26: =$C$25 -> R$ 1,400.00
F27: 0 | G27: =$C$26 -> 0 | I27: 0 | J27: =$C$26 -> 0
F28: 0 | G28: =$C$27 -> 0 | I28: 0 | J28: =$C$27 -> 0
F29: 0 | G29: =$C$28 -> 0 | I29: 0 | J29: =$C$28 -> 0
B31: Preço Ideal | C31: =C19*J6+C21*J6 -> R$ 6,622.67 | F31: Margem do Projeto | G31: =G17-SUM(G18:G30) -> R$ 3,164.36 | I31: Margem do Projeto | J31: =J17-SUM(J18:J30) -> R$ 3,065.00
F32: % de Margem | G32: =G31/G17 -> 47.8% | I32: % de Margem | J32: =J31/J17 -> 47.2%
F34: Gasto Fixo Rateado | G34: =C19 -> R$ 1,839.83 | I34: Gasto Fixo Rateado | J34: =C19 -> R$ 1,839.83
F36: Lucro Previsto | G36: =G31-G34 -> R$ 1,324.53 | I36: Lucro Previsto | J36: =J31-J34 -> R$ 1,225.17
L40: Diferença de:
L41: =J31-G31 -> -R$ 99
L42: =J31/G31-1 -> -3.1%

Sheet Cálculo PE
I2: Cálculo Ponto de Equilíbrio
J4: Consultoria Tipo 01 | K4: Consultoria tipo 02 | L4: Serviço 3 | M4: Serviço 4 | N4: Serviço 5 | O4: Serviço 6 | P4: Serviço 7 | Q4: Serviço 8 | R4: Serviço 9 | S4: Serviço 10 | T4: Serviço 11
D5: Despesa Total (mês) | E5: ='Despesas Totais'!F4 -> R$ 17,000.00 | I5: Preço de Venda dos Produtos/Serviços: | J5: R$ 5,000.00 | K5: R$ 2,000.00
I6: Custo com Serviço | J6: 0 | L6: 0 | M6: 0 | N6: 0 | O6: 0 | P6: 0 | Q6: 0 | R6: 0 | S6: 0 | T6: 0
D7: Média da Margem de Contribuição | E7: =Precificação!R2 -> 78.8% | I7: Custo com tercerização | J7: R$ 1,000.00 | L7: 0 | M7: 0 | N7: 0 | O7: 0 | P7: 0 | Q7: 0 | R7: 0 | S7: 0 | T7: 0
I8: Outros custos serviço | J8: 0 | L8: 0 | M8: 0 | N8: 0 | O8: 0 | P8: 0 | Q8: 0 | R8: 0 | S8: 0 | T8: 0
D9: Ponto de Equilíbrio | E9: =E5/E7 -> R$ 21,579.69 | I9: Comissão | J9: 0 | K9: 0 | L9: 0 | M9: 0 | N9: 0 | O9: 0 | P9: 0 | Q9: 0 | R9: 0 | S9: 0 | T9: 0
I10: Impostos | J10: =J5*16% -> R$ 800.00 | K10: =K5*16% -> R$ 320.00 | L10: 0 | M10: 0 | N10: 0 | O10: 0 | P10: 0 | Q10: 0 | R10: 0 | S10: 0 | T10: 0
I11: Custo com Transporte | J11: R$ 120.00 | K11: R$ 80.00 | L11: 0 | M11: 0 | N11: 0 | O11: 0 | P11: 0 | Q11: 0 | R11: 0 | S11: 0 | T11: 0
J12: 0 | K12: 0 | L12: 0 | M12: 0 | N12: 0 | O12: 0 | P12: 0 | Q12: 0 | R12: 0 | S12: 0 | T12: 0
J13: 0 | K13: 0 | L13: 0 | M13: 0 | N13: 0 | O13: 0 | P13: 0 | Q13: 0 | R13: 0 | S13: 0 | T13: 0
I15: Margem de Contribuição Unitária | J15: =J5-SUM(J6:J13) -> R$ 3,080.00 | K15: R$ 1,600.00 | L15: 0 | M15: 0 | N15: 0 | O15: 0 | P15: 0 | Q15: 0 | R15: 0 | S15: 0 | T15: 0
I16: Margem de Contribuição (%) | J16: =IF(OR(J5=0,J15=0),FALSE,J15/J5) -> 62% | K16: 80% | L16: FALSE | M16: FALSE | N16: FALSE | O16: FALSE | P16: FALSE | Q16: FALSE | R16: FALSE | S16: FALSE | T16: FALSE
I18: Faturamento Total médio (ou esperado) com Produto/Serviço ao mês | J18: R$ 7,000.00 | K18: R$ 3,000.00
I20: Despesa Total (mês) | J20: ='Despesas Totais'!F4 -> R$ 17,000.00 | L20: Média da Margem de Contribuição | M20: =IF(OR(SUM(J16:T16)*SUM(J18:T18)=0,SUM(J18:T18)=0),0,SUM(J16:T16*J18:T18)/SUM(J18:T18)) -> 67% | O20: Ponto de Equilíbrio | P20: =IF(OR(M20=0,J20=0),0,J20/M20) -> R$ 25,327.77
O21: PE em Unidades | P21: =IF(P20=0,0,P20/(SUM(J5:T5*J18:T18)/SUM(J18:T18))) -> 6

Sheet Cálculo PE Específico
B2: Cálculo PE Específico
B4: Contratar pessoas | C4: R$ 4,500.00
G8: Preencha quais são os tipos de Investimentos
G9: Contratar pessoas
B10: Média da Margem de Contrubuição | C10: ='Cálculo PE'!E7 -> 79% | G10: Aumento de Salário
G11: Contratar Consultoria
B12: =B22 -> Faturamento para alcançar o PE | C12: =IF(OR(SUM($C$4,$C$6,$C$8)=0,$C$10=0),0,SUM($C$4,$C$6,$C$8)/$C$10) -> R$ 5,712.27 | G12: Investimento em treinamentos
G13: Exemplo 01
G14: Exemplo 02
G15: Exemplo 03
B19: =B4 -> Contratar pessoas | C19: =C4 -> 4500
B20: =B6 -> 0 | C20: =C6 -> 0
B21: =B8 -> 0 | C21: =C8 -> 0
B22: Faturamento para alcançar o PE | C22: =C12 -> R$ 5,712.27

Sheet Seu próximo passo
